{"text_format":"3","workbook":"xlsx","n_sheets":5,"sheets":["表1 機關別勞務標","表2 機關別工程標","表3勞務標(工程類別)","表4工程標(工程類別)","節能減碳檢核明細"],"not_rendered":{"defined_names":7},"read":"whole","date_system":"1900"}

{"sheet":"表1 機關別勞務標","index":0,"n_rows":45,"n_cols":16,"rows_kept":45,"merged":[[0,0,0,1],[0,2,0,7],[0,8,1,14],[0,15,1,15],[1,0,2,0],[1,1,2,1],[1,2,2,2],[1,3,1,5],[1,6,1,7]]}
[null,null,"應辦理節能減碳檢核辦理情形統計",{"$nulls":5},"不需辦理節能減碳檢核原因統計(原因可複選)",{"$nulls":6},"備註"]
["機關別","決標\n總件數\n(A)\n(A = C+D+F)","應辦理件數(B)\n(B = A-F)","已依規定辦理情形",null,null,"未依規定辦理情形"]
[{"$nulls":3},"依規定辦理節能減碳檢核之件數\n(C)","計畫提報核定階段納入辦理節能減碳檢核件數","規劃設計階段納入辦理節能減碳檢核件數","未依規定於計畫提報核定、規劃設計階段納入辦理節能減碳檢核件數\n(D)","未依規定辦理節能減碳檢核件數比率%(E)\n(E = D/B)","不需辦理節能減碳檢核之件數\n(F)","非中央政府辦理新臺幣一億元以上之公共工程之件數","非受中央政府補助比率逾工程建造經費百分之五十且補助經費達新臺幣一億元以上之個案公共工程之件數","災後緊急處理、搶修、搶險之件數","災後原地復建之件數","整修工程、拆除工程、疏濬工程、結構補強工程之件數","規劃取得綠建築標章之建築工程之件數","為公共工程節能減碳檢核注意事項公布前核定案件"]
["內政部 ",8,0,0,0,0,0,{"$f":"IF(D4+G4=0,0,G4/(D4+G4))","v":{"v":0,"d":"0%"}},8,4,1,1,0,3,1,0]
["外交部 ",3,0,0,0,0,0,{"v":0,"d":"0%"},3,2,3,0,0,1,0,0]
["國防部 ",12,0,0,0,0,0,{"v":0,"d":"0%"},12,2,1,0,0,9,2,0]
["財政部 ",4,0,0,0,0,0,{"v":0,"d":"0%"},4,3,2,0,0,2,0,0]
["教育部 ",41,5,5,0,5,0,{"v":0,"d":"0%"},36,15,8,0,1,20,2,0]
["法務部 ",2,0,0,0,0,0,{"v":0,"d":"0%"},2,2,1,0,0,1,0,0]
["經濟部 ",25,4,4,0,4,0,{"v":0,"d":"0%"},21,11,3,0,0,6,4,0]
["交通部 ",50,3,3,0,3,0,{"v":0,"d":"0%"},47,34,14,0,1,11,2,0]
["勞動部 ",2,0,0,0,0,0,{"v":0,"d":"0%"},2,0,0,0,0,2,0,0]
["農業部 ",24,3,3,0,3,0,{"v":0,"d":"0%"},21,17,5,1,0,3,2,0]
["衛生福利部 ",3,0,0,0,0,0,{"v":0,"d":"0%"},3,0,0,0,0,3,0,0]
["環境部 ",1,0,0,0,0,0,{"v":0,"d":"0%"},1,0,0,0,0,1,0,0]
["文化部 ",2,0,0,0,0,0,{"v":0,"d":"0%"},2,1,1,0,0,1,0,0]
["國家科學及技術委員會 ",1,0,0,0,0,0,{"v":0,"d":"0%"},1,0,0,0,0,0,1,0]
["海洋委員會 ",2,0,0,0,0,0,{"v":0,"d":"0%"},2,0,0,0,0,2,0,0]
["國軍退除役官兵輔導委員會 ",1,0,0,0,0,0,{"v":0,"d":"0%"},1,0,0,0,0,1,0,0]
["客家委員會 ",2,0,0,0,0,0,{"v":0,"d":"0%"},2,1,1,0,0,1,0,0]
["國立故宮博物院 ",2,0,0,0,0,0,{"v":0,"d":"0%"},2,2,0,0,0,0,0,0]
["臺北市政府 ",36,0,0,0,0,0,{"v":0,"d":"0%"},36,24,21,1,0,6,1,0]
["高雄市政府 ",56,5,5,2,4,0,{"v":0,"d":"0%"},51,22,14,0,0,23,2,0]
["新北市政府 ",63,3,3,1,2,0,{"v":0,"d":"0%"},60,36,21,4,2,30,1,1]
["宜蘭縣政府 ",17,0,0,0,0,0,{"v":0,"d":"0%"},17,10,3,0,0,9,1,0]
["桃園市政府 ",47,1,1,0,1,0,{"v":0,"d":"0%"},46,28,15,0,0,17,1,0]
["新竹縣政府 ",18,0,0,0,0,0,{"v":0,"d":"0%"},18,13,8,0,1,4,0,0]
["苗栗縣政府 ",32,0,0,0,0,0,{"v":0,"d":"0%"},32,17,9,1,0,14,1,0]
["彰化縣政府 ",33,1,1,1,0,0,{"v":0,"d":"0%"},32,15,6,0,0,18,3,0]
["南投縣政府 ",32,2,2,2,2,0,{"v":0,"d":"0%"},30,11,10,4,4,11,0,0]
["雲林縣政府 ",23,1,1,0,1,0,{"v":0,"d":"0%"},22,8,9,0,0,9,2,0]
["嘉義縣政府 ",29,0,0,0,0,0,{"v":0,"d":"0%"},29,10,13,2,2,13,4,0]
["屏東縣政府 ",32,0,0,0,0,0,{"v":0,"d":"0%"},32,18,6,0,0,11,2,0]
["臺東縣政府 ",3,0,0,0,0,0,{"v":0,"d":"0%"},3,1,2,0,1,0,0,0]
["花蓮縣政府 ",7,1,1,0,1,0,{"v":0,"d":"0%"},6,4,1,0,0,2,0,0]
["澎湖縣政府 ",2,0,0,0,0,0,{"v":0,"d":"0%"},2,1,1,0,0,1,0,0]
["基隆市政府 ",5,0,0,0,0,0,{"v":0,"d":"0%"},5,3,3,1,1,0,0,0]
["新竹市政府 ",11,0,0,0,0,0,{"v":0,"d":"0%"},11,5,2,1,0,5,0,0]
["臺中市政府 ",66,1,1,0,1,0,{"v":0,"d":"0%"},65,38,31,0,1,22,0,0]
["嘉義市政府 ",5,0,0,0,0,0,{"v":0,"d":"0%"},5,2,2,0,0,1,0,0]
["臺南市政府 ",45,1,1,0,1,0,{"v":0,"d":"0%"},44,19,12,0,1,21,1,0]
["連江縣政府 ",1,0,0,0,0,0,{"v":0,"d":"0%"},1,1,0,0,0,0,0,0]
["金門縣政府 ",4,1,1,0,1,0,{"v":0,"d":"0%"},3,2,2,0,0,2,0,0]
["其他(法人團體) ",7,0,0,0,0,0,{"v":0,"d":"0%"},7,4,1,0,0,3,0,0]
["合計",{"$f":"SUM(B4:B44)","v":759},32,32,6,29,0,{"v":0,"d":"0%"},{"$f":"SUM(I4:I44)","v":727},386,232,16,15,289,33,1]

{"sheet":"表2 機關別工程標","index":1,"n_rows":20,"n_cols":16,"rows_kept":20,"merged":[[0,0,0,1],[0,2,0,7],[0,8,1,14],[0,15,1,15],[1,0,2,0],[1,1,2,1],[1,2,2,2],[1,3,1,5],[1,6,1,7]]}
[null,null,"應辦理節能減碳檢核辦理情形統計",{"$nulls":5},"不需辦理節能減碳檢核原因統計(原因可複選)",{"$nulls":6},"備註"]
["機關別","決標\n總件數\n(A)\n(A = C+D+F)","應辦理件數(B)\n(B = A-F)","已依規定辦理情形",null,null,"未依規定辦理情形"]
[{"$nulls":3},"依規定辦理節能減碳檢核之件數\n(C)","計畫提報核定階段納入辦理節能減碳檢核件數","規劃設計階段納入辦理節能減碳檢核件數","未依規定於計畫提報核定、規劃設計階段納入辦理節能減碳檢核件數\n(D)","未依規定辦理節能減碳檢核件數比率%(E)\n(E = D/B)","不需辦理節能減碳檢核之件數\n(F)","非中央政府辦理新臺幣一億元以上之公共工程之件數","非受中央政府補助比率逾工程建造經費百分之五十且補助經費達新臺幣一億元以上之個案公共工程之件數","災後緊急處理、搶修、搶險之件數","災後原地復建之件數","整修工程、拆除工程、疏濬工程、結構補強工程之件數","規劃取得綠建築標章之建築工程之件數","為公共工程節能減碳檢核注意事項公布前核定案件"]
["內政部 ",2,1,1,0,1,0,{"$f":"IF(D4+G4=0,0,G4/(D4+G4))","v":{"v":0,"d":"0%"}},1,0,0,0,0,0,1,0]
["國防部 ",3,0,0,0,0,0,{"v":0,"d":"0%"},3,0,0,0,0,3,0,0]
["教育部 ",3,0,0,0,0,0,{"v":0,"d":"0%"},3,0,0,0,0,1,2,0]
["經濟部 ",19,7,7,1,7,0,{"v":0,"d":"0%"},12,4,2,0,1,2,4,0]
["交通部 ",7,1,1,0,1,0,{"v":0,"d":"0%"},6,0,3,0,0,2,1,0]
["農業部 ",1,0,0,0,0,0,{"v":0,"d":"0%"},1,0,0,0,0,1,0,0]
["國軍退除役官兵輔導委員會 ",1,0,0,0,0,0,{"v":0,"d":"0%"},1,0,0,0,0,0,1,0]
["臺北市政府 ",3,1,1,0,1,0,{"v":0,"d":"0%"},2,2,0,0,0,0,0,0]
["高雄市政府 ",6,2,2,0,2,0,{"v":0,"d":"0%"},4,2,2,0,0,0,2,0]
["新北市政府 ",4,0,0,0,0,0,{"v":0,"d":"0%"},4,2,1,0,0,0,2,0]
["宜蘭縣政府 ",1,1,1,0,1,0,{"v":0,"d":"0%"},0,0,0,0,0,0,0,0]
["桃園市政府 ",4,1,1,1,1,0,{"v":0,"d":"0%"},3,1,2,0,0,0,1,0]
["雲林縣政府 ",2,0,0,0,0,0,{"v":0,"d":"0%"},2,0,0,0,0,0,1,1]
["臺中市政府 ",2,0,0,0,0,0,{"v":0,"d":"0%"},2,0,1,0,0,0,1,0]
["臺南市政府 ",1,0,0,0,0,0,{"v":0,"d":"0%"},1,0,0,0,0,0,1,0]
["其他(法人團體) ",1,0,0,0,0,0,{"v":0,"d":"0%"},1,1,1,0,0,0,0,0]
["合計",{"$f":"SUM(B4:B19)","v":60},14,14,2,14,0,{"$f":"IF(D20+G20=0,0,G20/(D20+G20))","v":{"v":0,"d":"0%"}},{"$f":"SUM(I4:I19)","v":46},12,12,0,1,9,17,1]

{"sheet":"表3勞務標(工程類別)","index":2,"n_rows":11,"n_cols":16,"rows_kept":11,"merged":[[0,0,0,1],[0,2,0,7],[0,8,1,14],[0,15,1,15],[1,0,2,0],[1,1,2,1],[1,2,2,2],[1,3,1,5],[1,6,1,7],[10,0,10,14]]}
[null,null,"應辦理節能減碳檢核辦理情形統計",{"$nulls":5},"不需辦理節能減碳檢核原因統計(原因可複選)",{"$nulls":6},"備註"]
["機關別","決標\n總件數\n(A)\n(A = C+D+F)","應辦理件數(B)\n(B = A-F)","已依規定辦理情形",null,null,"未依規定辦理情形"]
[{"$nulls":3},"依規定辦理節能減碳檢核之件數\n(C)","計畫提報核定階段納入辦理節能減碳檢核件數\n","規劃設計階段納入辦理節能減碳檢核件數\n","未依規定於計畫提報核定、規劃設計階段納入辦理節能減碳檢核件數\n(D)","未依規定辦理節能減碳檢核件數比率%\n(E)\n(E = D/B)","不需辦理節能減碳檢核之件數\n(F)","非中央政府辦理新臺幣一億元以上之公共工程之件數","非受中央政府補助比率逾工程建造經費百分之五十且補助經費達新臺幣一億元以上之個案公共工程之件數","災後緊急處理、搶修、搶險之件數","災後原地復建之件數","整修工程、拆除工程、疏濬工程、結構補強工程之件數","規劃取得綠建築標章之建築工程之件數","為公共工程節能減碳檢核注意事項公布前核定案件"]
["建築服務 ",207,5,5,0,5,0,{"$f":"IF(D4+G4=0,0,G4/(D4+G4))","v":{"v":0,"d":"0%"}},202,93,64,0,0,95,19,0]
["工程服務 ",462,23,23,5,21,0,{"v":0,"d":"0%"},439,239,129,16,14,175,12,1]
["綜合工程服務 ",49,3,3,1,2,0,{"v":0,"d":"0%"},46,25,15,0,1,17,1,0]
["都市計劃及景觀建築服務 ",41,1,1,0,1,0,{"v":0,"d":"0%"},40,29,24,0,0,2,1,0]
["合計",{"$f":"SUM(B4:B7)","v":759},32,32,6,{"$f":"SUM(F4:F7)","v":29},0,{"$f":"IF(D8+G8=0,0,G8/(D8+G8))","v":{"v":0,"d":"0%"}},{"$f":"SUM(I4:I7)","v":727},386,232,16,15,289,33,1]
[]
[]
["備註：\n1.標的分類為「8671建築服務」、「8672工程服務」、「8673綜合工程服務」、「8674都市計劃及景觀建築服務」。\n2.各機關節能減碳檢核辦理情形係依據各機關所填之決標公告。"]

{"sheet":"表4工程標(工程類別)","index":3,"n_rows":11,"n_cols":16,"rows_kept":11,"merged":[[0,0,0,1],[0,2,0,7],[0,8,1,14],[0,15,1,15],[1,0,2,0],[1,1,2,1],[1,2,2,2],[1,3,1,5],[1,6,1,7],[10,0,10,14]]}
[null,null,"應辦理節能減碳檢核辦理情形統計",{"$nulls":5},"不需辦理節能減碳檢核原因統計(原因可複選)",{"$nulls":6},"備註"]
["機關別","決標\n總件數\n(A)\n(A = C+D+F)","應辦理件數(B)\n(B = A-F)","已依規定辦理情形",null,null,"未依規定辦理情形"]
[{"$nulls":3},"依規定辦理節能減碳檢核之件數\n(C)","計畫提報核定階段納入辦理節能減碳檢核件數\n","規劃設計階段納入辦理節能減碳檢核件數\n","未依規定於計畫提報核定、規劃設計階段納入辦理節能減碳檢核件數\n(D)","未依規定辦理節能減碳檢核件數比率%\n(E)\n(E = D/B)","不需辦理節能減碳檢核之件數\n(F)","非中央政府辦理新臺幣一億元以上之公共工程之件數","非受中央政府補助比率逾工程建造經費百分之五十且補助經費達新臺幣一億元以上之個案公共工程之件數","災後緊急處理、搶修、搶險之件數","災後原地復建之件數","整修工程、拆除工程、疏濬工程、結構補強工程之件數","規劃取得綠建築標章之建築工程之件數","為公共工程節能減碳檢核注意事項公布前核定案件"]
["交通工程 ",8,3,3,1,3,0,{"$f":"IF(D4+G4=0,0,G4/(D4+G4))","v":{"v":0,"d":"0%"}},5,2,0,0,0,2,0,1]
["水利工程 ",5,3,3,0,3,0,{"v":0,"d":"0%"},2,0,1,0,0,1,0,0]
["建築工程 ",37,8,8,1,8,0,{"v":0,"d":"0%"},29,6,9,0,0,4,15,0]
["其他土木工程 ",10,0,0,0,0,0,{"v":0,"d":"0%"},10,4,2,0,1,2,2,0]
["合計",{"$f":"SUM(B4:B7)","v":60},14,14,2,14,0,{"$f":"IF(D8+G8=0,0,G8/(D8+G8))","v":{"v":0,"d":"0%"}},{"$f":"SUM(I4:I7)","v":46},12,12,0,1,9,17,1]
[]
[]
["備註：\n1.交通工程類：依政府採購標的分類代碼表，代碼5131~5132。\n2.水利工程類：依政府採購標的分類代碼表，代碼5133。\n3.建築工程類：依政府採購標的分類代碼表，代碼5121~5129、5153、5161~5165、5171~5175、5177~5180。\n4.其他土木工程類：依政府採購標的分類代碼表，代碼5134~5137、5139~5140、5151~5152、5154~5159、5166、5169、5176。\n5.各機關節能減碳檢核辦理情形係依據各機關所填之決標公告。"]

{"sheet":"節能減碳檢核明細","index":4,"n_rows":819,"n_cols":15,"rows_kept":819}
["項次","主管機關","機關名稱","補助機關","標案名稱","採購性質","標的分類名稱","預算金額","決標金額","決標日期","決標公告日期","履約地點","節能減碳檢核狀態","已依規定辦理節能減碳檢核","不需辦理節能減碳檢核原因"]
["1","內政部 ","臺灣警察專科學校 ","無 ","新建學生宿舍傢俱工程委託規劃設計及監造技術服務案 ","勞務","建築服務 ","3600000","3250000","112/07/27","112/09/12","北部地區－全區 ","否","","非中央政府辦理新臺幣一億元以上之公共工程 "]
["2","內政部 ","臺灣警察專科學校 ","無 ","學生駐地宿舍電力工程委託規劃設計及監造技術服務 ","勞務","工程服務 ","713584","690000","112/09/20","112/09/27","北部地區－全區 ","否","","非中央政府辦理新臺幣一億元以上之公共工程,非受中央政府補助比率逾工程建造經費百分之五十且補助經費達新臺幣一億元以上之個案公共工程,整修工程、拆除工程、疏濬工程、結構補強工程 "]
["3","內政部 ","內政部營建署 ","無 ","國立中央大學附屬中壢高級中學專科教室綜合大樓新建工程 ","工程","教育用建築工程 ","143200000","143200000","112/09/11","112/09/13","桃園市－中壢區 ","否","","規劃取得綠建築標章之建築工程 "]
["4","內政部 ","內政部營建署 ","無 ","彰化縣彰化市污水下水道系統第二期管線及用戶接管工程第二標 ","工程","水管及排水設施鋪設工程 ","263560000","262600000","112/08/29","112/09/06","彰化縣－彰化 ","已依規定納入辦理節能減碳檢核 ","規劃設計階段納入辦理節能減碳檢核 ",""]
["5","內政部 ","內政部營建署 ","無 ","「國立屏東高級中學宿舍及未來領航大樓統包工程」委託監造服務 ","勞務","建築服務 ","11089232","11089232","112/07/20","112/09/18","南部地區－全區 ","否","","規劃取得綠建築標章之建築工程 "]
["6","內政部 ","海洋國家公園管理處 ","無 ","東沙海水淡化廠新建及既有設施改善工程委託規劃設計與監造技術服務 ","勞務","工程服務 ","4373000","4332000","112/09/13","112/09/19","高雄市－旗津區 ","否","","非中央政府辦理新臺幣一億元以上之公共工程 "]
["7","內政部 ","金門國家公園管理處 ","無 ","「112年度傳統民宿建築修繕工程」委託技術服務案 ","勞務","工程服務 ","1414831","1409172","112/09/11","112/09/12","金門縣－金沙,金門縣－金湖,金門縣－金寧,金門縣－金城 ","否","","整修工程、拆除工程、疏濬工程、結構補強工程 "]
["8","內政部 ","台江國家公園管理處 ","無 ","「112年度網仔寮汕設施暨環境搶修工程」委託設計監造技術服務案(開口合約) ","勞務","工程服務 ","1499558","1379593","112/08/30","112/09/01","臺南市－七股區 ","否","","災後緊急處理、搶修、搶險 "]
["9","內政部 ","內政部國家公園署金門國家公園管理處 ","無 ","「112年度傳統民宿建築修繕工程」委託技術服務案 ","勞務","工程服務 ","1414831","1409172","112/09/11","112/09/28","金門縣－全區 ","否","","整修工程、拆除工程、疏濬工程、結構補強工程 "]
["10","內政部 ","內政部國家公園署海洋國家公園管理處 ","無 ","東吉村60號傳統建築修復工程委託規劃設計與監造技術服務 ","勞務","建築服務 ","2233125","2202176","112/09/25","112/09/28","澎湖縣－望安 ","否","","非中央政府辦理新臺幣一億元以上之公共工程 "]
["11","文化部 ","國立歷史博物館 ","無 ","國立歷史博物館修復及再利用委託規劃設計及監造(含因應計畫)案(第四次契約變更新增項目) ","勞務","建築服務 ","10255310","9905310","112/08/28","112/09/26","臺北市－中正區 ","否","","非受中央政府補助比率逾工程建造經費百分之五十且補助經費達新臺幣一億元以上之個案公共工程,整修工程、拆除工程、疏濬工程、結構補強工程 "]
["12","文化部 ","國立臺灣工藝研究發展中心 ","無 ","「鹿港實驗工廠修繕工程」委託規劃設計及監造技術服務案 ","勞務","建築服務 ","1490000","1450000","112/08/15","112/09/01","彰化縣－鹿港 ","否","","非中央政府辦理新臺幣一億元以上之公共工程 "]
["13","外交部 ","外交部 ","無 ","112年國慶酒會搭建帳棚採購案 ","勞務","都市計劃及景觀建築服務 ","1120000","1060000","112/09/22","112/09/22","臺北市－中正區 ","否","","非中央政府辦理新臺幣一億元以上之公共工程,非受中央政府補助比率逾工程建造經費百分之五十且補助經費達新臺幣一億元以上之個案公共工程 "]
["14","外交部 ","外交部 ","無 ","112年國慶酒會鋪設步道臺板及地毯委外案 ","勞務","都市計劃及景觀建築服務 ","485000","470000","112/09/22","112/09/22","臺北市－中正區 ","否","","非受中央政府補助比率逾工程建造經費百分之五十且補助經費達新臺幣一億元以上之個案公共工程 "]
["15","外交部 ","駐外機構 ","無 ","駐米蘭台北辦事處館舍內部設計及監造採購案 ","勞務","工程服務 ","2114504","2114504","112/07/18","112/09/22","其他－其他 ","否","","非中央政府辦理新臺幣一億元以上之公共工程,非受中央政府補助比率逾工程建造經費百分之五十且補助經費達新臺幣一億元以上之個案公共工程,整修工程、拆除工程、疏濬工程、結構補強工程 "]
["16","交通部 ","交通部民用航空局臺北國際航空站 ","無 ","松山機場跑滑道及環場道翻修工程委託可行性評估 ","勞務","工程服務 ","456750","360000","112/09/25","112/09/28","北部地區－全區 ","否","","非中央政府辦理新臺幣一億元以上之公共工程,非受中央政府補助比率逾工程建造經費百分之五十且補助經費達新臺幣一億元以上之個案公共工程 "]
["17","交通部 ","交通部民用航空局飛航服務總臺 ","無 ","新一代低空風切警報系統建置先期計畫委託專業服務案 ","勞務","工程服務 ","7650000","7650000","112/08/28","112/09/05","臺北市－松山區 ","否","","非中央政府辦理新臺幣一億元以上之公共工程 "]
["18","交通部 ","交通部民用航空局飛航服務總臺 ","無 ","桃園低空風切警報系統第9號測風站遷移案 ","勞務","工程服務 ","4065107","3900000","112/09/23","112/09/27","北部地區－全區 ","否","","非中央政府辦理新臺幣一億元以上之公共工程 "]
["19","交通部 ","交通部中央氣象局 ","無 ","觀塘港區海氣象觀測平臺新建工程委外設計及監造案 ","勞務","工程服務 ","3000000","3000000","112/09/22","112/09/26","其他－其他 ","否","","非中央政府辦理新臺幣一億元以上之公共工程,非受中央政府補助比率逾工程建造經費百分之五十且補助經費達新臺幣一億元以上之個案公共工程 "]
["20","交通部 ","交通部觀光局東部海岸國家風景區管理處 ","無 ","綠島生態渡假中心變更使用併室內裝修執照服務案 ","勞務","建築服務 ","1255000","1200000","112/08/28","112/09/05","臺東縣－臺東,臺東縣－綠島,臺東縣－成功 ","否","","整修工程、拆除工程、疏濬工程、結構補強工程 "]
["21","交通部 ","交通部觀光局馬祖國家風景區管理處 ","無 ","112年度南竿遊客中心公廁品質提升計畫 ","勞務","工程服務 ","1000000","1000000","112/09/13","112/09/14","連江縣－南竿 ","否","","非中央政府辦理新臺幣一億元以上之公共工程,整修工程、拆除工程、疏濬工程、結構補強工程 "]
["22","交通部 ","交通部觀光局阿里山國家風景區管理處 ","無 ","大阿里山國家風景區轄內吊橋設施整(新)建維護改善工程（113～115年度）委託設計監造服務案 ","勞務","工程服務 ","9800000","9800000","112/09/20","112/09/23","嘉義縣－番路,嘉義縣－梅山,嘉義縣－竹崎,嘉義縣－阿里山 ","否","","非中央政府辦理新臺幣一億元以上之公共工程,整修工程、拆除工程、疏濬工程、結構補強工程 "]
["23","交通部 ","交通部觀光局阿里山國家風景區管理處 ","無 ","臺18周邊地區緩慢一及緩慢二遊憩服務設施統包工程委託專案管理(含監造)技術服務案 ","勞務","工程服務 ","9800000","9800000","112/09/23","112/09/27","嘉義縣－番路,嘉義縣－梅山,嘉義縣－竹崎,嘉義縣－阿里山 ","否","","規劃取得綠建築標章之建築工程 "]
["24","交通部 ","交通部觀光局西拉雅國家風景區管理處 ","無 ","嘉義轄區據點裝修及公共設施優化委託設計監造 ","勞務","都市計劃及景觀建築服務 ","9500000","9500000","112/09/12","112/09/14","嘉義縣－中埔,嘉義縣－大埔 ","否","","非中央政府辦理新臺幣一億元以上之公共工程 "]
["25","交通部 ","交通部臺灣鐵路管理局 ","無 ","北迴線K51+170~500山側邊坡後續防護優化工程(委託設計及監造、委託(完整標案名稱詳附加說明) ","勞務","工程服務 ","27384203","27384203","112/08/31","112/09/04","花蓮縣－秀林 ","否","","非中央政府辦理新臺幣一億元以上之公共工程,整修工程、拆除工程、疏濬工程、結構補強工程 "]
["26","交通部 ","交通部臺灣鐵路管理局 ","無 ","彰化市三民路3、5、7及9號房舍拆除工程(委託規劃設計及監造部分) ","勞務","建築服務 ","947540","770000","112/09/06","112/09/08","彰化縣－彰化 ","否","","整修工程、拆除工程、疏濬工程、結構補強工程 "]
["27","交通部 ","交通部臺灣鐵路管理局 ","無 ","歷史建築「烏日車站舊站長宿舍」修復再利用計畫、規劃設計(含因應計畫)及監造委託技術服務案  ","勞務","建築服務 ","6380150","6380150","112/09/26","112/09/28","臺中市－烏日區 ","否","","非中央政府辦理新臺幣一億元以上之公共工程,非受中央政府補助比率逾工程建造經費百分之五十且補助經費達新臺幣一億元以上之個案公共工程 "]
["28","交通部 ","交通部公路總局第二區養護工程處 ","無 ","台61線159K+064平面WH45山腳大排橋改建工程委託測量、設計及地質探查服務工作(變更新增數量) ","勞務","工程服務 ","838432","838432","112/08/30","112/09/11","臺中市－龍井區 ","否","","非中央政府辦理新臺幣一億元以上之公共工程 "]
["29","交通部 ","交通部公路總局第二區養護工程處 ","無 ","台14線0K~3K+050人行道及路口改善工程委託設計服務工作 ","勞務","工程服務 ","1414571","1414571","112/09/20","112/09/21","彰化縣－彰化 ","否","","非中央政府辦理新臺幣一億元以上之公共工程 "]
["30","交通部 ","交通部公路總局第二區養護工程處 ","無 ","中橫公路上谷關至德基段地貌變異分析服務工作(第3期) ","勞務","工程服務 ","5320260","5320260","112/09/20","112/09/21","臺中市－和平區 ","否","","非中央政府辦理新臺幣一億元以上之公共工程 "]
["31","交通部 ","交通部公路總局第二區養護工程處 ","無 ","微地動監測技術應用於台8臨37線(中橫便道)邊坡崩塌落石災害告警與預警委託服務工作 ","勞務","工程服務 ","3098007","2950438","112/09/27","112/09/28","臺中市－和平區 ","否","","非中央政府辦理新臺幣一億元以上之公共工程 "]
["32","交通部 ","交通部公路總局第二區養護工程處 ","無 ","本處轄區112~114年度災害工程委託鑽探及測量設計服務工作（開口契約） ","勞務","工程服務 ","19476100","19476100","112/09/22","112/09/25","苗栗縣－全區,臺中市－全區,彰化縣－全區,南投縣－全區 ","否","","非中央政府辦理新臺幣一億元以上之公共工程 "]
["33","交通部 ","交通部公路總局第二區養護工程處 ","無 ","台61線94K+455玄寶大橋局部補強及改建工程 ","工程","快速道路(不含高架快速道路), 街道, 馬路, 鐵路及機場跑道 ","771334473","771334473","112/09/20","112/09/22","苗栗縣－竹南,苗栗縣－後龍 ","否","","整修工程、拆除工程、疏濬工程、結構補強工程 "]
["34","交通部 ","交通部公路總局第三區養護工程處 ","無 ","公路總局第三區養護工程處管轄屏東縣境省道112-113年度工程委託鑽探及測量設計服務工作 ","勞務","工程服務 ","12316249","12316249","112/09/07","112/09/13","高雄市－全區,屏東縣－全區,臺東縣－全區 ","否","","非中央政府辦理新臺幣一億元以上之公共工程,非受中央政府補助比率逾工程建造經費百分之五十且補助經費達新臺幣一億元以上之個案公共工程 "]
["35","交通部 ","交通部公路總局第三區養護工程處 ","無 ","台23線39K+850災害修復工程委託監造服務工作 ","勞務","工程服務 ","34464166","34464166","112/07/25","112/09/07","臺東縣－全區 ","否","","災後原地復建 "]
["36","交通部 ","交通部公路總局第五區養護工程處 ","無 ","112-114年曾文工務段轄區邊坡穩定監測技術服務工作 ","勞務","工程服務 ","19584952","19584952","112/09/01","112/09/18","嘉義縣－番路,嘉義縣－中埔,嘉義縣－大埔,臺南市－左鎮區,臺南市－玉井區,臺南市－楠西區,臺南市－南化區,臺南市－山上區 ","否","","非中央政府辦理新臺幣一億元以上之公共工程,非受中央政府補助比率逾工程建造經費百分之五十且補助經費達新臺幣一億元以上之個案公共工程 "]
["37","交通部 ","交通部公路總局第五區養護工程處 ","無 ","曾文工務段台3線295K+089~365K+755景觀委託規劃設計服務工作 ","勞務","都市計劃及景觀建築服務 ","1410114","1410114","112/09/01","112/09/06","嘉義縣－中埔,嘉義縣－大埔 ","否","","非中央政府辦理新臺幣一億元以上之公共工程,非受中央政府補助比率逾工程建造經費百分之五十且補助經費達新臺幣一億元以上之個案公共工程 "]
["38","交通部 ","交通部公路總局西部濱海公路北區臨時工程處 ","無 ","台61乙線(美港公路)高架化綜合規劃及環境影響評估作業委託服務工作 ","勞務","綜合工程服務 ","14880000","14880000","112/08/28","112/09/01","彰化縣－和美,彰化縣－伸港 ","否","","非中央政府辦理新臺幣一億元以上之公共工程 "]
["39","交通部 ","交通部高速公路局 ","無 ","國道1號土庫排水橋耐洪及耐震能力提升改善工程(第B103標) ","工程","橋樑, 高架快速道路, 隧道及地鐵 ","1302899351","1288000000","112/09/07","112/09/21","高雄市－岡山區,高雄市－路竹區,高雄市－阿蓮區 ","否","","整修工程、拆除工程、疏濬工程、結構補強工程 "]
["40","交通部 ","交通部高速公路局北區養護工程分局 ","無 ","112~113年度北區養護工程分局邊坡及隧道技術諮詢暨設計監造委託技術服務工作 ","勞務","工程服務 ","5143029","5000000","112/09/18","112/09/28","北部地區－全區 ","否","","非中央政府辦理新臺幣一億元以上之公共工程,非受中央政府補助比率逾工程建造經費百分之五十且補助經費達新臺幣一億元以上之個案公共工程 "]
["41","交通部 ","交通部高速公路局北區養護工程分局 ","無 ","112-113年度木柵、關西及內湖段隧道檢測工作 ","勞務","工程服務 ","15200000","15200000","112/09/07","112/09/08","臺北市－全區 ","否","","非中央政府辦理新臺幣一億元以上之公共工程,非受中央政府補助比率逾工程建造經費百分之五十且補助經費達新臺幣一億元以上之個案公共工程 "]
["42","交通部 ","交通部高速公路局北區養護工程分局 ","無 ","北區國1五楊高架及國3暨港西聯絡道交控設備更新提升委託設計監造及技術顧問服務工作 ","勞務","工程服務 ","93084998","91000000","112/09/13","112/09/22","新北市－全區,新竹縣－全區 ","否","","非中央政府辦理新臺幣一億元以上之公共工程 "]
["43","交通部 ","交通部高速公路局中區養護工程分局 ","無 ","國道6號石灼高架橋及雙冬高架橋變位監測系統技術服務工作(112年至113年) ","勞務","工程服務 ","5862178","5752700","112/09/05","112/09/08","南投縣－草屯 ","否","","非中央政府辦理新臺幣一億元以上之公共工程 "]
["44","交通部 ","交通部高速公路局中區養護工程分局 ","無 ","112-115年人工智慧匝道儀控系統維護工作 ","勞務","工程服務 ","3674568","3627500","112/09/14","112/09/18","臺中市－全區 ","否","","非中央政府辦理新臺幣一億元以上之公共工程,非受中央政府補助比率逾工程建造經費百分之五十且補助經費達新臺幣一億元以上之個案公共工程 "]
["45","交通部 ","交通部高速公路局中區養護工程分局 ","無 ","泰安服務區南站給水管路改善工程委託設計監造技術服務工作 ","勞務","工程服務 ","885000","850000","112/09/13","112/09/21","臺中市－后里區 ","否","","整修工程、拆除工程、疏濬工程、結構補強工程 "]
["46","交通部 ","交通部高速公路局南區養護工程分局 ","無 ","國道1號285k+860排水箱涵改建工程委託設計及監造暨專業技術顧問服務工作-第2次契約變更(新增工項) ","勞務","工程服務 ","654000","640000","112/09/11","112/09/21","臺南市－全區 ","否","","整修工程、拆除工程、疏濬工程、結構補強工程 "]
["47","交通部 ","交通部高速公路局南區養護工程分局 ","無 ","高速公路局南區交控系統更新採購案(R34標)委託設計監造暨專業技術顧問服務工作 ","勞務","綜合工程服務 ","38125328","37520000","112/09/15","112/09/18","南部地區－全區 ","否","","非中央政府辦理新臺幣一億元以上之公共工程,非受中央政府補助比率逾工程建造經費百分之五十且補助經費達新臺幣一億元以上之個案公共工程 "]
["48","交通部 ","交通部高速公路局第二新建工程處 ","無 ","「國道1號漁港高架橋緊急修復工程委託監造暨專業技術顧問服務」第1號契約變更 ","勞務","綜合工程服務 ","548360","545000","112/09/13","112/09/13","高雄市－前鎮區 ","否","","非中央政府辦理新臺幣一億元以上之公共工程 "]
["49","交通部 ","交通部鐵道局 ","無 ","臺鐵汐科站增設出口暨站體改善工程委託監造技術服務 ","勞務","工程服務 ","15323975","15323975","112/09/06","112/09/13","新北市－汐止區 ","否","","非中央政府辦理新臺幣一億元以上之公共工程 "]
["50","交通部 ","交通部鐵道局 ","無 ","「嘉義縣市鐵路高架化延伸計畫」先期工程細部設計相關配合工作委託技術服務 ","勞務","工程服務 ","5037688","5037688","112/09/13","112/09/19","新北市－板橋區,嘉義市－東區 ","否","","非中央政府辦理新臺幣一億元以上之公共工程 "]
["51","交通部 ","中華郵政股份有限公司 ","無 ","「郵政物流中心新建工程」第3次設計變更 ","工程","商用建築工程 ","119853824","111173378","112/07/18","112/09/25","桃園市－龜山區 ","否","","非受中央政府補助比率逾工程建造經費百分之五十且補助經費達新臺幣一億元以上之個案公共工程 "]
["52","交通部 ","中華郵政股份有限公司 ","無 ","「歷史建築原嘉義郵局建築外觀修復暨周邊景觀規劃設計及監造(含修復計畫及工作報告書)委託技術服務案」第1次契約變更 ","勞務","工程服務 ","931854","931854","112/08/16","112/09/07","臺北市－大安區 ","否","","非中央政府辦理新臺幣一億元以上之公共工程 "]
["53","交通部 ","中華郵政股份有限公司 ","無 ","臺中軍功郵局新建工程委託規劃設計及監造技術服務案 ","勞務","工程服務 ","18290000","18290000","112/08/24","112/09/04","臺中市－北屯區 ","否","","非中央政府辦理新臺幣一億元以上之公共工程 "]
["54","交通部 ","中華郵政股份有限公司臺中郵局 ","無 ","臺中郵件處理中心電梯設備保養維護(半責) ","勞務","工程服務 ","775200","747240","112/09/06","112/09/12","臺中市－南屯區 ","否","","非中央政府辦理新臺幣一億元以上之公共工程,非受中央政府補助比率逾工程建造經費百分之五十且補助經費達新臺幣一億元以上之個案公共工程 "]
["55","交通部 ","中華郵政股份有限公司宜蘭郵局 ","無 ","宜蘭營業支局無障礙設施－委託製作提送改善計畫書 ","勞務","建築服務 ","990000","882000","112/09/22","112/09/22","北部地區－全區 ","否","","非中央政府辦理新臺幣一億元以上之公共工程 "]
["56","交通部 ","桃園國際機場股份有限公司 ","無 ","第一、二航廈高低壓電力系統汰換工程 ","工程","電力工程 ","460733778","460733778","112/08/24","112/09/04","桃園市－大園區 ","否","","非受中央政府補助比率逾工程建造經費百分之五十且補助經費達新臺幣一億元以上之個案公共工程 "]
["57","交通部 ","桃園國際機場股份有限公司 ","無 ","112-114年桃園國際機場道面設施效能提升燈光配合工程(開口契約) ","工程","長程管線, 通訊及電線(纜) ","139898360","139500000","112/09/04","112/09/06","桃園市－大園區 ","否","","非受中央政府補助比率逾工程建造經費百分之五十且補助經費達新臺幣一億元以上之個案公共工程 "]
["58","交通部 ","桃園國際機場股份有限公司 ","無 ","桃園國際機場公司辦公大樓新建工程第1次契約變更 ","工程","其他專業工程 ","661516329","661500000","112/09/18","112/09/28","桃園市－大園區 ","否","","規劃取得綠建築標章之建築工程 "]
["59","交通部 ","桃園國際機場股份有限公司 ","無 ","113年至115年桃園國際機場年度場面鋪面績效調查及燈光亮度檢測委託技術服務 ","勞務","綜合工程服務 ","111822668","109500000","112/09/20","112/09/22","桃園市－大園區 ","否","","整修工程、拆除工程、疏濬工程、結構補強工程 "]
["60","交通部 ","臺灣港務股份有限公司基隆港務分公司 ","無 ","「南方澳跨港大橋動態地磅」設計委託技術服務案 ","勞務","工程服務 ","1499400","1473909","112/08/29","112/09/07","基隆市－全區 ","否","","非中央政府辦理新臺幣一億元以上之公共工程 "]
["61","交通部 ","臺灣港務股份有限公司臺中港務分公司 ","無 ","臺中港111年度基礎設施暨營運設施建置(老舊碼頭、南防波堤、淺水船渠管制站)委託設計及監造技術服務第1次契約變更 ","勞務","工程服務 ","9775000","8800000","112/09/05","112/09/08","臺中市－梧棲區 ","已依規定納入辦理節能減碳檢核 ","規劃設計階段納入辦理節能減碳檢核 ",""]
["62","交通部 ","臺灣港務股份有限公司高雄港務分公司 ","無 ","『「馬公大樓1、2F客運服務設施優化」規劃設計及監造工作委託技術服務』第1次變更 ","勞務","工程服務 ","3101550","3070000","112/08/18","112/09/04","高雄市－全區 ","否","","規劃取得綠建築標章之建築工程 "]
["63","交通部 ","臺灣港務股份有限公司高雄港務分公司 ","無 ","「112年度高雄港區橋梁整修工程」設計及監造工作委託技術服務 ","勞務","工程服務 ","1496250","1420000","112/08/29","112/09/11","高雄市－旗津區,高雄市－前鎮區,高雄市－小港區 ","否","","整修工程、拆除工程、疏濬工程、結構補強工程 "]
["64","交通部 ","交通部觀光署日月潭國家風景區管理處 ","無 ","向山至車埕纜車站推動研究規劃案 ","勞務","都市計劃及景觀建築服務 ","2000000","1980000","112/09/25","112/09/27","南投縣－水里,南投縣－魚池 ","否","","非中央政府辦理新臺幣一億元以上之公共工程,非受中央政府補助比率逾工程建造經費百分之五十且補助經費達新臺幣一億元以上之個案公共工程 "]
["65","交通部 ","交通部觀光署北海岸及觀音山國家風景區管理處 ","無 ","「111~112年度北觀處風景區特約維護工程設計監造委託案」後續擴充 ","勞務","綜合工程服務 ","2475000","2475000","112/09/15","112/09/27","基隆市－中正區,基隆市－安樂區,新北市－萬里區,新北市－金山區,新北市－五股區,新北市－三芝區,新北市－石門區 ","否","","整修工程、拆除工程、疏濬工程、結構補強工程 "]
["66","交通部 ","交通部公路局北區養護工程分局 ","無 ","112年度機電、消防設施新建、改善及維護委託專案管理計畫 ","勞務","工程服務 ","3492520","3492520","112/08/30","112/09/19","基隆市－全區,新北市－全區,新竹市－全區,新竹縣－全區,桃園市－全區 ","否","","非中央政府辦理新臺幣一億元以上之公共工程 "]
["67","交通部 ","交通部公路局北區養護工程分局 ","無 ","台7線49K+800段明隧道委託測量、鑽探及設計服務工作-第2次變更契約(追加) ","勞務","工程服務 ","9812500","9812500","112/09/15","112/09/20","桃園市－復興區 ","否","","非受中央政府補助比率逾工程建造經費百分之五十且補助經費達新臺幣一億元以上之個案公共工程 "]
["68","交通部 ","交通部公路局北區養護工程分局 ","無 ","台7線49K+800段明隧道委託測量、鑽探及設計服務工作-第2次變更契約-新增項目議價 ","勞務","工程服務 ","570000","495750","112/09/08","112/09/20","桃園市－復興區 ","否","","非受中央政府補助比率逾工程建造經費百分之五十且補助經費達新臺幣一億元以上之個案公共工程 "]
["69","交通部 ","交通部公路局南區公路新建工程分局 ","無 ","台61線增設布袋新塭交流道工程委託測量、地質探查、設計及環境差異影響分析服務工作 ","勞務","綜合工程服務 ","16383435","16383435","112/09/12","112/09/18","嘉義縣－布袋 ","已依規定納入辦理節能減碳檢核 ","規劃設計階段納入辦理節能減碳檢核 ",""]
["70","交通部 ","交通部公路局南區公路新建工程分局 ","無 ","國道10號里港交流道至新威大橋新闢道路里港至美濃段(0K+000~9K+860)工程 ","工程","橋樑, 高架快速道路, 隧道及地鐵 ","4326186211","4326186211","112/09/21","112/09/28","高雄市－美濃區,屏東縣－里港 ","已依規定納入辦理節能減碳檢核 ","規劃設計階段納入辦理節能減碳檢核 ",""]
["71","交通部 ","交通部公路局公路人員訓練所 ","無 ","所本部高壓變電站汰換及增設充電樁電源採購委託技術服務 ","勞務","工程服務 ","800000","800000","112/09/26","112/09/27","新北市－中和區,新北市－土城區 ","否","","整修工程、拆除工程、疏濬工程、結構補強工程 "]
["72","交通部 ","交通部鐵道局南部工程分局 ","無 ","臺南市區鐵路地下化計畫工程委託監造及專業技術顧問服務(CCO-07-07) ","勞務","工程服務 ","10203664","9897600","112/09/15","112/09/27","臺南市－東區,臺南市－北區,臺南市－仁德區 ","已依規定納入辦理節能減碳檢核 ","規劃設計階段納入辦理節能減碳檢核 ",""]
["73","行政院農業委員會 ","行政院農業委員會林務局羅東林區管理處 ","無 ","國有林治理工程構造物檢測工作 ","勞務","工程服務 ","1000000","1000000","112/07/18","112/09/08","臺北市－全區,基隆市－全區,新北市－全區,宜蘭縣－全區 ","否","","非中央政府辦理新臺幣一億元以上之公共工程 "]
["74","行政院農業委員會 ","行政院農業委員會水產試驗所 ","無 ","七股海水魚介類種原庫統包工程變更使用執照申請 ","勞務","建築服務 ","250000","248000","112/07/20","112/09/06","南部地區－全區 ","否","","非中央政府辦理新臺幣一億元以上之公共工程 "]
["75","其他(法人團體) ","財團法人中央廣播電臺 ","文化部 ","央廣褒忠分臺房舍室內裝修工程委託規劃設計監造服務案 ","勞務","工程服務 ","758200","736000","112/09/14","112/09/23","雲林縣－褒忠 ","否","","整修工程、拆除工程、疏濬工程、結構補強工程 "]
["76","其他(法人團體) ","花蓮縣農產運銷股份有限公司 ","農業部、花蓮縣政府 ","112年度「建構肉品批發市場現代化屠宰及冷鏈設施設備計畫」 ","勞務","建築服務 ","3829604","3829604","112/09/15","112/09/18","花蓮縣－鳳林 ","否","","非中央政府辦理新臺幣一億元以上之公共工程 "]
["77","其他(法人團體) ","太麻里地區農會 ","農業部農糧署 ","臺東縣太麻里地區農會農產品物流包裝場新建規劃設計及監造委託技術服務 ","勞務","工程服務 ","2747126","2692183","112/09/05","112/09/23","東部地區－全區 ","否","","非中央政府辦理新臺幣一億元以上之公共工程 "]
["78","其他(法人團體) ","桃園市大園區農會 ","行政院農業委員會、桃園市政府 ","112年度桃園市大園區農會強化農業推廣教育設施整修工程委託設計監造技術服務 ","勞務","建築服務 ","1500000","1150000","112/09/01","112/09/05","北部地區－全區 ","否","","整修工程、拆除工程、疏濬工程、結構補強工程 "]
["79","其他(法人團體) ","國家中山科學研究院 ","無 ","新竹J047、臺中J048及臺南I030等新建工程公共藝術設置委託專業服務採購案 ","勞務","工程服務 ","2500000","2500000","112/08/08","112/09/06","北部地區－全區,中部地區－全區,南部地區－全區 ","否","","非中央政府辦理新臺幣一億元以上之公共工程 "]
["80","其他(法人團體) ","馬祖連江航業有限公司 ","連江縣政府 ","112年度東海明珠歲修第一次追加工程 ","勞務","工程服務 ","739583","658000","112/09/26","112/09/27","基隆市－全區,連江縣－全區 ","否","","整修工程、拆除工程、疏濬工程、結構補強工程 "]
["81","其他(法人團體) ","財團法人臺灣生活美學基金會 ","無 ","市定古蹟空軍總司令部工業研究所附屬設施通信處辦公室修復再利用規劃設計委託技術服務-後續擴充監造技術服務 ","勞務","工程服務 ","1400000","1380000","112/08/25","112/09/07","臺北市－全區 ","否","","非中央政府辦理新臺幣一億元以上之公共工程,非受中央政府補助比率逾工程建造經費百分之五十且補助經費達新臺幣一億元以上之個案公共工程 "]
["82","宜蘭縣政府 ","宜蘭縣政府 ","內政部營建署 ","宜蘭縣五結鄉鄉村地區整體規劃案 ","勞務","都市計劃及景觀建築服務 ","4700000","4700000","112/09/26","112/09/27","宜蘭縣－五結 ","否","","非中央政府辦理新臺幣一億元以上之公共工程,非受中央政府補助比率逾工程建造經費百分之五十且補助經費達新臺幣一億元以上之個案公共工程 "]
["83","宜蘭縣政府 ","宜蘭縣政府 ","交通部公路總局 ","宜25線(2K+080~3K+803)拓寬改善工程委託設計服務 ","勞務","工程服務 ","7960000","7960000","112/09/12","112/09/13","宜蘭縣－五結 ","否","","非中央政府辦理新臺幣一億元以上之公共工程 "]
["84","宜蘭縣政府 ","宜蘭縣政府 ","行政院農業委員會漁業署 ","南方澳漁港南寧魚市場碼頭改善工程監造工作技術服務案 ","勞務","綜合工程服務 ","2764000","2625800","112/09/12","112/09/14","宜蘭縣－蘇澳 ","否","","整修工程、拆除工程、疏濬工程、結構補強工程 "]
["85","宜蘭縣政府 ","宜蘭縣政府 ","行政院環境保護署 ","「梅花湖風景區及五峰旗風景區公廁改善工程」委託設計及監造技術服務案 ","勞務","工程服務 ","409500","407400","112/09/05","112/09/06","宜蘭縣－礁溪,宜蘭縣－冬山 ","否","","非中央政府辦理新臺幣一億元以上之公共工程,非受中央政府補助比率逾工程建造經費百分之五十且補助經費達新臺幣一億元以上之個案公共工程,整修工程、拆除工程、疏濬工程、結構補強工程 "]
["86","宜蘭縣政府 ","宜蘭縣政府 ","無 ","宜蘭縣溪洲排水(七賢地區)淹水治理評估改善規劃第一次契約變更 ","勞務","綜合工程服務 ","100000","100000","112/09/06","112/09/08","宜蘭縣－員山 ","否","","非中央政府辦理新臺幣一億元以上之公共工程 "]
["87","宜蘭縣政府 ","宜蘭縣政府 ","經濟部 ","五結防潮閘門改善工程 ","工程","水道、海港、水壩及其他水利工程 ","1277528154","1277528154","112/09/13","112/09/14","宜蘭縣－五結 ","已依規定納入辦理節能減碳檢核 ","規劃設計階段納入辦理節能減碳檢核 ",""]
["88","宜蘭縣政府 ","宜蘭縣政府 ","農業部漁業署 ","烏石漁港直銷中心建物結構安全鑑定 ","勞務","工程服務 ","913000","913000","112/09/15","112/09/18","宜蘭縣－頭城 ","否","","整修工程、拆除工程、疏濬工程、結構補強工程 "]
["89","宜蘭縣政府 ","宜蘭縣羅東鎮公所 ","內政部 ","「羅東鎮竹林國小周邊通學廊道工程」委託設計監造技術服務(後續擴充) ","勞務","工程服務 ","717600","696072","112/09/15","112/09/22","宜蘭縣－羅東 ","否","","整修工程、拆除工程、疏濬工程、結構補強工程 "]
["90","宜蘭縣政府 ","宜蘭縣礁溪鄉公所 ","行政院環境保護署 ","「礁溪鄉巨大垃圾再利用修繕廠廠區暨公廁改善工程」委託設計及監造服務案 ","勞務","工程服務 ","803768","779655","112/08/22","112/09/11","宜蘭縣－礁溪 ","否","","非中央政府辦理新臺幣一億元以上之公共工程 "]
["91","宜蘭縣政府 ","宜蘭縣冬山鄉公所 ","無 ","「冬山梅園生命紀念園區二期工程(含出流管制設施)」委託規劃設計暨監造技術服務案 ","勞務","建築服務 ","12520000","12520000","112/09/14","112/09/28","宜蘭縣－冬山 ","否","","非中央政府辦理新臺幣一億元以上之公共工程,規劃取得綠建築標章之建築工程 "]
["92","宜蘭縣政府 ","宜蘭縣立三星國民中學 ","教育部 ","專科教室、鐸韻樓老舊廁所整修工程委託規劃設計監造技術服務案 ","勞務","工程服務 ","446528","446528","112/09/27","112/09/27","宜蘭縣－三星 ","否","","整修工程、拆除工程、疏濬工程、結構補強工程 "]
["93","宜蘭縣政府 ","宜蘭縣立復興國民中學 ","無 ","112年度公立國民中小學老舊廁所整修工程委託規劃設計監造案 ","勞務","工程服務 ","901237","901237","112/09/25","112/09/28","宜蘭縣－宜蘭 ","否","","整修工程、拆除工程、疏濬工程、結構補強工程 "]
["94","宜蘭縣政府 ","宜蘭縣立中華國民中學 ","教育部國民及學前教育署 ","「112-113年度設置學校社區共讀站」規劃設計監造服務 ","勞務","建築服務 ","168805","168805","112/09/06","112/09/11","宜蘭縣－宜蘭 ","否","","非中央政府辦理新臺幣一億元以上之公共工程,非受中央政府補助比率逾工程建造經費百分之五十且補助經費達新臺幣一億元以上之個案公共工程 "]
["95","宜蘭縣政府 ","宜蘭縣宜蘭市凱旋國民小學 ","無 ","整建學校草地運動場委託規劃、設計及監造 ","勞務","建築服務 ","917724","917724","112/09/19","112/09/21","東部地區－全區,宜蘭縣－宜蘭 ","否","","非中央政府辦理新臺幣一億元以上之公共工程,整修工程、拆除工程、疏濬工程、結構補強工程 "]
["96","宜蘭縣政府 ","宜蘭縣蘇澳鎮蘇澳國民小學 ","教育部國民及學前教育署 ","「老舊廁所整修工程」委託規劃設計監造技術服務 ","勞務","建築服務 ","710000","710000","112/09/20","112/09/21","宜蘭縣－蘇澳 ","否","","非中央政府辦理新臺幣一億元以上之公共工程 "]
["97","宜蘭縣政府 ","宜蘭縣南澳鄉武塔國民小學 ","教育部國民及學前教育署 ","「設置學校社區共讀站計畫」委託設計監造採購 ","勞務","工程服務 ","167416","167416","112/09/06","112/09/06","宜蘭縣－南澳 ","否","","整修工程、拆除工程、疏濬工程、結構補強工程 "]
["98","宜蘭縣政府 ","宜蘭縣頭城鎮大里國民小學 ","教育部國民及學前教育署、宜蘭縣政府 ","「設置學校社區共讀站」委託設計監造採購案 ","勞務","建築服務 ","177380","177380","112/09/22","112/09/23","宜蘭縣－頭城 ","否","","整修工程、拆除工程、疏濬工程、結構補強工程 "]
["99","宜蘭縣政府 ","宜蘭縣宜蘭市宜蘭國民小學 ","內政部營建署 ","學生上下學安全動線改善工程委託設計監造技術服務 ","勞務","工程服務 ","382537","382537","112/09/20","112/09/23","宜蘭縣－宜蘭 ","否","","非中央政府辦理新臺幣一億元以上之公共工程 "]
["100","法務部 ","法務部矯正署東成技能訓練所 ","無 ","臥型爐筒式蒸汽鍋爐及蒸汽式不鏽鋼開水機汰換委託規劃、設計暨監造技術服務案 ","勞務","工程服務 ","465050","432497","112/07/14","112/09/15","臺東縣－卑南 ","否","","非中央政府辦理新臺幣一億元以上之公共工程,非受中央政府補助比率逾工程建造經費百分之五十且補助經費達新臺幣一億元以上之個案公共工程 "]
["101","法務部 ","法務部矯正署臺北女子看守所 ","法務部矯正署 ","電器線路設備更新委託規劃設計暨後續擴充監造服務案 ","勞務","工程服務 ","261000","250000","112/09/22","112/09/26","新北市－土城區 ","否","","非中央政府辦理新臺幣一億元以上之公共工程,整修工程、拆除工程、疏濬工程、結構補強工程 "]
["102","花蓮縣政府 ","花蓮縣政府 ","無 ","光華樂活創意園區二期園區智慧及節能路燈建置計畫統包工程委託專案管理（含監造）技術服務案 ","勞務","工程服務 ","959006","959000","112/09/22","112/09/25","東部地區－全區 ","否","","非中央政府辦理新臺幣一億元以上之公共工程 "]
["103","花蓮縣政府 ","花蓮縣政府 ","無 ","花蓮縣112年度公立國民中小學建築物公共安全檢查申報 ","勞務","建築服務 ","503500","420000","112/09/23","112/09/25","花蓮縣－全區 ","否","","非中央政府辦理新臺幣一億元以上之公共工程,非受中央政府補助比率逾工程建造經費百分之五十且補助經費達新臺幣一億元以上之個案公共工程 "]
["104","花蓮縣政府 ","花蓮縣環境保護局 ","行政院環境保護署 ","「花蓮縣環保餐具清洗中心委託設計監造技術服務案」第二次契約變更 ","勞務","工程服務 ","470000","465000","112/08/25","112/09/20","花蓮縣－全區 ","否","","非中央政府辦理新臺幣一億元以上之公共工程 "]
["105","花蓮縣政府 ","花蓮縣消防局 ","內政部 ","花蓮縣消防局觀音分隊廳舍中程計畫內部裝修委託規劃、設計及監造技術服務採購案 ","勞務","工程服務 ","215289","209983","112/09/20","112/09/27","花蓮縣－全區 ","否","","非中央政府辦理新臺幣一億元以上之公共工程 "]
["106","花蓮縣政府 ","花蓮縣消防局 ","無 ","花蓮縣新城鄉合署辦公廳舍新建工程計畫專案管理暨監造委託技術服務 ","勞務","工程服務 ","13408928","13388815","112/08/09","112/09/01","花蓮縣－花蓮,花蓮縣－新城 ","已依規定納入辦理節能減碳檢核 ","規劃設計階段納入辦理節能減碳檢核 ",""]
["107","花蓮縣政府 ","花蓮縣文化局 ","無 ","花蓮縣文化局演藝堂公廁修繕工程委託規劃設計監造服務 ","勞務","工程服務 ","392375","353138","112/09/15","112/09/28","花蓮縣－花蓮 ","否","","整修工程、拆除工程、疏濬工程、結構補強工程 "]
["108","花蓮縣政府 ","花蓮縣立新城國民中學 ","花蓮縣政府、教育部體育署 ","112年籃排球場整建工程設計監造工程採購 ","勞務","工程服務 ","441000","441000","112/09/25","112/09/27","花蓮縣－全區 ","否","","整修工程、拆除工程、疏濬工程、結構補強工程 "]
["109","金門縣政府 ","金門縣畜產試驗所 ","行政院農業委員會、金門縣政府 ","乳牛智慧化飼養暨乳牛專區修建工程規劃設計暨監造技術服務案 ","勞務","工程服務 ","1135101","1133864","112/08/10","112/09/19","金門縣－金湖 ","否","","非中央政府辦理新臺幣一億元以上之公共工程,非受中央政府補助比率逾工程建造經費百分之五十且補助經費達新臺幣一億元以上之個案公共工程,整修工程、拆除工程、疏濬工程、結構補強工程 "]
["110","金門縣政府 ","金門縣政府 ","無 ","「金門縣1-1-1號計畫道路新闢工程」委託規劃設計監造案 ","勞務","工程服務 ","34478619","33210554","112/08/25","112/09/06","金門縣－金城 ","已依規定納入辦理節能減碳檢核 ","規劃設計階段納入辦理節能減碳檢核 ",""]
["111","金門縣政府 ","金門縣政府 ","無 ","「配合2-29號計畫道路用地取得辦理金門大學週邊農村聚落開發計畫」委託技術服務案 ","勞務","都市計劃及景觀建築服務 ","2500000","2411000","112/09/11","112/09/19","金門縣－金寧 ","否","","非中央政府辦理新臺幣一億元以上之公共工程,非受中央政府補助比率逾工程建造經費百分之五十且補助經費達新臺幣一億元以上之個案公共工程 "]
["112","金門縣政府 ","金門縣採購招標所 ","教育部體育署、金門縣政府 ","「開瑄國小五人制人工草皮足球場」委託規劃設計監造服務案 ","勞務","工程服務 ","750713","720684","112/09/19","112/09/27","金門縣－金湖 ","否","","整修工程、拆除工程、疏濬工程、結構補強工程 "]
["113","南投縣政府 ","南投縣政府 ","內政部消防署 ","「112年度消防局南投分隊消防廳舍設施改善工程」委託規劃設計及監造服務 ","勞務","建築服務 ","367650","360297","112/09/05","112/09/12","南投縣－南投 ","否","","非中央政府辦理新臺幣一億元以上之公共工程,整修工程、拆除工程、疏濬工程、結構補強工程 "]
["114","南投縣政府 ","南投縣政府 ","內政部消防署 ","「112年度消防局草屯分隊廳舍修繕工程」委託規劃設計及監造服務 ","勞務","建築服務 ","367650","360297","112/09/19","112/09/25","南投縣－草屯 ","否","","非中央政府辦理新臺幣一億元以上之公共工程,非受中央政府補助比率逾工程建造經費百分之五十且補助經費達新臺幣一億元以上之個案公共工程,整修工程、拆除工程、疏濬工程、結構補強工程 "]
["115","南投縣政府 ","南投縣政府 ","內政部營建署 ","112年南投縣社區規劃師駐地輔導計畫 ","勞務","都市計劃及景觀建築服務 ","11000000","10950000","112/09/15","112/09/26","南投縣－全區 ","否","","非受中央政府補助比率逾工程建造經費百分之五十且補助經費達新臺幣一億元以上之個案公共工程 "]
["116","南投縣政府 ","南投縣政府 ","行政院 ","「南投縣竹山鎮鄉村地區整體規劃作業」委託技術服務案 ","勞務","都市計劃及景觀建築服務 ","3000000","3000000","112/09/06","112/09/14","南投縣－竹山 ","否","","非中央政府辦理新臺幣一億元以上之公共工程 "]
["117","南投縣政府 ","南投縣政府 ","教育部國民及學前教育署 ","「112年度清境國小老舊校舍整建工程(教師宿舍)」委託規劃設計及監造服務 ","勞務","建築服務 ","914118","900406","112/09/07","112/09/13","南投縣－仁愛 ","否","","非受中央政府補助比率逾工程建造經費百分之五十且補助經費達新臺幣一億元以上之個案公共工程,整修工程、拆除工程、疏濬工程、結構補強工程 "]
["118","南投縣政府 ","南投縣政府 ","無 ","「2024南投燈會水電設施工程」委託規劃設計及監造服務 ","勞務","建築服務 ","617950","599412","112/09/19","112/09/26","南投縣－南投 ","否","","非中央政府辦理新臺幣一億元以上之公共工程 "]
["119","南投縣政府 ","南投縣政府 ","無 ","南投縣埔里鎮投75線中正一號橋先期規劃委託技術服務工作 ","勞務","工程服務 ","1270000","1270000","112/09/19","112/09/22","南投縣－埔里 ","否","","整修工程、拆除工程、疏濬工程、結構補強工程 "]
["120","南投縣政府 ","南投縣政府 ","無 ","112年度南投縣南投市、草屯鎮、埔里鎮及竹山鎮寬頻管道現況調查計畫委託技術服務 ","勞務","工程服務 ","1485000","1485000","112/09/14","112/09/20","南投縣－南投,南投縣－草屯,南投縣－埔里,南投縣－竹山 ","否","","非中央政府辦理新臺幣一億元以上之公共工程,非受中央政府補助比率逾工程建造經費百分之五十且補助經費達新臺幣一億元以上之個案公共工程 "]
["121","南投縣政府 ","南投縣政府 ","無 ","112年度卡努風災仁愛鄉投83線災修復建工程委託技術服務工作(開口契約) ","勞務","工程服務 ","19707316","19707316","112/09/21","112/09/25","南投縣－仁愛 ","否","","災後緊急處理、搶修、搶險,災後原地復建 "]
["122","南投縣政府 ","南投縣政府 ","無 ","112年度卡努風災仁愛鄉投85線災修復建工程委託技術服務工作(開口契約) ","勞務","工程服務 ","17857716","17857716","112/09/19","112/09/25","南投縣－仁愛 ","否","","災後緊急處理、搶修、搶險,災後原地復建 "]
["123","南投縣政府 ","南投縣政府 ","無 "," 112年度卡努風災仁愛鄉投89線0K-45K災修復建工程委託技術服務工作(開口契約) ","勞務","工程服務 ","16443316","16443316","112/09/19","112/09/25","南投縣－仁愛 ","否","","災後原地復建 "]
["124","南投縣政府 ","南投縣政府 ","無 ","112年度卡努風災仁愛鄉投89線45K-53.2K災修復建工程委託技術服務工作(開口契約) ","勞務","工程服務 ","21883316","21883316","112/09/19","112/09/25","南投縣－仁愛 ","否","","災後緊急處理、搶修、搶險,災後原地復建 "]
["125","南投縣政府 ","南投縣政府 ","無 ","112南投縣野溪清疏疏濬作業計畫工程委託技術服務(開口契約) ","勞務","工程服務 ","4787200","4787200","112/08/28","112/09/01","南投縣－全區 ","否","","整修工程、拆除工程、疏濬工程、結構補強工程 "]
["126","南投縣政府 ","南投縣風景區管理所 ","無 ","仁愛鄉廬山立體停車場基礎掏空處建築物拆除工程委託技術服務案 ","勞務","工程服務 ","1463227","1433962","112/09/01","112/09/07","南投縣－仁愛 ","否","","災後緊急處理、搶修、搶險 "]
["127","南投縣政府 ","南投縣草屯鎮公所 ","經濟部水利署中區水資源局、南投縣政府 ","烏溪鳥嘴潭人工湖工程計畫109-112年度周邊環境改善工程-草屯鎮雙十吊橋外觀美化及結構修繕工程-委託監造 ","勞務","工程服務 ","886668","886668","112/09/07","112/09/07","南投縣－草屯 ","否","","非受中央政府補助比率逾工程建造經費百分之五十且補助經費達新臺幣一億元以上之個案公共工程,整修工程、拆除工程、疏濬工程、結構補強工程 "]
["128","南投縣政府 ","南投縣魚池鄉公所 ","南投縣政府 ","魚池鄉垃圾場管理室施設工程計畫-規劃設計監造案 ","勞務","建築服務 ","172000","172000","112/09/13","112/09/13","南投縣－魚池 ","否","","非受中央政府補助比率逾工程建造經費百分之五十且補助經費達新臺幣一億元以上之個案公共工程 "]
["129","南投縣政府 ","南投縣仁愛鄉公所 ","無 ","推動原住民族多元產業發展2.0計畫-部落產業升級-攜手牽『愛』·『埔』出城鄉新價值計畫委託設計及監造服務 ","勞務","工程服務 ","584035","580000","112/09/22","112/09/25","南投縣－仁愛 ","已依規定納入辦理節能減碳檢核 ","計畫提報核定階段納入辦理節能減碳檢核;規劃設計階段納入辦理節能減碳檢核 ",""]
["130","南投縣政府 ","南投縣仁愛鄉公所 ","無 ","112年度仁愛鄉委託技術服務開口契約第二次招標 ","勞務","工程服務 ","15000000","14700000","112/09/15","112/09/19","南投縣－仁愛 ","已依規定納入辦理節能減碳檢核 ","計畫提報核定階段納入辦理節能減碳檢核;規劃設計階段納入辦理節能減碳檢核 ",""]
["131","南投縣政府 ","南投縣立草屯國民中學 ","南投縣政府 ","112年度老舊廁所整修工程委託規劃設計監造案 ","勞務","建築服務 ","300000","300000","112/09/20","112/09/22","南投縣－草屯 ","否","","整修工程、拆除工程、疏濬工程、結構補強工程 "]
["132","南投縣政府 ","南投縣立水里國民中學 ","教育部國民及學前教育署 ","水里國中公立國民中學老舊廁所整修工程計畫-委託規劃設計監造勞務採購案 ","勞務","建築服務 ","248557","246000","112/09/21","112/09/28","南投縣－水里 ","否","","整修工程、拆除工程、疏濬工程、結構補強工程 "]
["133","南投縣政府 ","南投縣立南崗國民中學 ","教育部國民及學前教育署 ","「113年度南崗國中設置學校社區共讀站工程」委託設計及監造服務 ","勞務","工程服務 ","200857","160000","112/08/31","112/09/01","南投縣－南投 ","否","","非中央政府辦理新臺幣一億元以上之公共工程 "]
["134","南投縣政府 ","南投縣立日新國民中學 ","教育部國民及學前教育署 ","112-113年度日新國中設置學校社區共讀站工程委託規劃設計及監造服務 ","勞務","建築服務 ","226238","220000","112/09/12","112/09/15","南投縣－草屯 ","否","","非受中央政府補助比率逾工程建造經費百分之五十且補助經費達新臺幣一億元以上之個案公共工程"]
["135","南投縣政府 ","南投縣南投市新豐國民小學 ","南投縣政府 ","112年度老舊廁所改善計畫委託規畫設計監造服務 ","勞務","建築服務 ","270881","269180","112/09/22","112/09/27","南投縣－南投 ","否","","非受中央政府補助比率逾工程建造經費百分之五十且補助經費達新臺幣一億元以上之個案公共工程 "]
["136","南投縣政府 ","南投縣埔里鎮史港國民小學 ","教育部國民及學前教育署 ","「112-113年度史港國小設置學校社區共讀站工程」委託規劃設計及監造服務 ","勞務","工程服務 ","230000","230000","112/09/07","112/09/07","南投縣－全區 ","否","","整修工程、拆除工程、疏濬工程、結構補強工程 "]
["137","南投縣政府 ","南投縣竹山鎮中和國民小學 ","教育部 ","112年度中和國小學校運動操場及周邊設施整建-運動場整建工程委託規劃設計及監造服務採購案 ","勞務","建築服務 ","634206","634206","112/09/28","112/09/28","南投縣－竹山 ","否","","非受中央政府補助比率逾工程建造經費百分之五十且補助經費達新臺幣一億元以上之個案公共工程 "]
["138","南投縣政府 ","南投縣名間鄉弓鞋國民小學 ","教育部國民及學前教育署 ","「112-113年度弓鞋國小設置學校社區共讀站工程」委託規劃設計及監造服務 ","勞務","工程服務 ","230528","230528","112/09/05","112/09/07","中部地區－全區 ","否","","整修工程、拆除工程、疏濬工程、結構補強工程 "]
["139","南投縣政府 ","南投縣名間鄉僑興國民小學 ","教育部國民及學前教育署 ","「112-113年度僑興國小設置學校社區共讀站工程」委託規劃設計及監造服務 ","勞務","工程服務 ","206114","205762","112/09/20","112/09/21","南投縣－名間 ","否","","非中央政府辦理新臺幣一億元以上之公共工程 "]
["140","南投縣政府 ","南投縣中寮鄉爽文國民小學 ","教育部國民及學前教育署 ","「112-113年度爽文國小設置學校社區共讀站工程」委託設計及監造服務採購案 ","勞務","建築服務 ","204469","204469","112/09/20","112/09/25","中部地區－全區 ","否","","非中央政府辦理新臺幣一億元以上之公共工程 "]
["141","南投縣政府 ","南投縣國姓鄉北山國民小學 ","教育部國民及學前教育署 ","113年度設置學校社區共讀站委託規劃設計監造技術服務案 ","勞務","工程服務 ","406893","406893","112/09/13","112/09/14","南投縣－國姓 ","否","","非中央政府辦理新臺幣一億元以上之公共工程 "]
["142","南投縣政府 ","南投縣國姓鄉乾峰國民小學 ","教育部國民及學前教育署 ","「112-113年度乾峰國小設置學校社區共讀站工程」委託設計及監造服務 ","勞務","工程服務 ","194595","194595","112/09/27","112/09/27","南投縣－國姓 ","否","","非中央政府辦理新臺幣一億元以上之公共工程 "]
["143","南投縣政府 ","南投縣仁愛鄉廬山國民小學 ","教育部國民及學前教育署 ","「112-113年度廬山國小設置學校社區共讀站工程」委託設計及監造服務 ","勞務","建築服務 ","202487","202487","112/08/30","112/09/08","南投縣－仁愛 ","否","","整修工程、拆除工程、疏濬工程、結構補強工程 "]
["144","南投縣政府 ","南投縣竹山鎮前山國民小學 ","教育部 ","112年度前山國小老舊廁所整修工程委託規劃設計及監造服務 ","勞務","建築服務 ","579440","573836","112/09/21","112/09/23","南投縣－竹山 ","否","","非中央政府辦理新臺幣一億元以上之公共工程,非受中央政府補助比率逾工程建造經費百分之五十且補助經費達新臺幣一億元以上之個案公共工程 "]
["145","客家委員會 ","客家委員會 ","無 ","「111年度客庄創生環境營造計畫督導團」專業服務勞務採購案第1次協議變更 ","勞務","工程服務 ","1759832","1759832","112/09/22","112/09/23","新北市－新莊區 ","否","","非中央政府辦理新臺幣一億元以上之公共工程,非受中央政府補助比率逾工程建造經費百分之五十且補助經費達新臺幣一億元以上之個案公共工程 "]
["146","客家委員會 ","客家委員會客家文化發展中心 ","無 ","「六堆園區演藝廳鋪面及部分設施改善」規劃設計及監造技術服務採購案 ","勞務","工程服務 ","757166","719308","112/09/22","112/09/28","屏東縣－內埔 ","否","","整修工程、拆除工程、疏濬工程、結構補強工程 "]
["147","屏東縣政府 ","屏東縣政府 ","內政部 ","112年屏東縣環境景觀總顧問計畫委託專業服務案 ","勞務","工程服務 ","3000000","2970000","112/09/06","112/09/07","屏東縣－全區 ","否","","非中央政府辦理新臺幣一億元以上之公共工程 "]
["148","屏東縣政府 ","屏東縣政府 ","文化部文化資產局 ","屏東縣屏東市勝利路141號及忠孝路100號歷史建築屋舍規劃設計含因應計畫 ","勞務","建築服務 ","2400000","2388000","112/09/26","112/09/28","屏東縣－屏東 ","否","","整修工程、拆除工程、疏濬工程、結構補強工程 "]
["149","屏東縣政府 ","屏東縣政府 ","無 ","九如鄉巴轆公園及巴轆橋改善工程委託設計技術服務 ","勞務","工程服務 ","3500000","3395000","112/09/26","112/09/27","屏東縣－九如 ","否","","非中央政府辦理新臺幣一億元以上之公共工程 "]
["150","屏東縣政府 ","屏東縣政府 ","農業部漁業署 ","東港區漁會漁民活動中心綜合大樓修繕工程委託設計服務 ","勞務","建築服務 ","835000","826000","112/09/26","112/09/27","屏東縣－東港 ","否","","非受中央政府補助比率逾工程建造經費百分之五十且補助經費達新臺幣一億元以上之個案公共工程 "]
["151","屏東縣政府 ","屏東縣麟洛鄉公所 ","行政院環境保護署 ","「112年度屏東縣麟洛鄉公所既設資源回收貯存場優化工程」案委託申請建築物建照等專業服務 ","勞務","建築服務 ","700000","690000","112/09/12","112/09/13","屏東縣－麟洛 ","否","","整修工程、拆除工程、疏濬工程、結構補強工程 "]
["152","屏東縣政府 ","屏東縣鹽埔鄉公所 ","內政部營建署 ","屏東縣鹽埔國中及鹽埔國小通學步道校園安全改善工程-委託設計及監造技術服務 ","勞務","工程服務 ","1481550","1465884","112/09/01","112/09/06","屏東縣－鹽埔 ","否","","非中央政府辦理新臺幣一億元以上之公共工程 "]
["153","屏東縣政府 ","屏東縣高樹鄉公所 ","無 ","112年度荖濃溪高美大橋下游河段疏濬作業委託計畫書撰寫案 ","勞務","工程服務 ","500000","485000","112/08/01","112/09/07","屏東縣－高樹 ","否","","非中央政府辦理新臺幣一億元以上之公共工程,非受中央政府補助比率逾工程建造經費百分之五十且補助經費達新臺幣一億元以上之個案公共工程 "]
["154","屏東縣政府 ","屏東縣萬巒鄉公所 ","無 ","萬巒鄉硫黃村集會所活動中心新建工程委託技術服務 ","勞務","建築服務 ","1688000","1600000","112/09/05","112/09/20","屏東縣－萬巒 ","否","","整修工程、拆除工程、疏濬工程、結構補強工程 "]
["155","屏東縣政府 ","屏東縣內埔鄉公所 ","客家委員會 ","內埔鄉立圖書館暨六堆300年紀念館新建工程案委託製作統包送審報告書及需求說明書之服務 ","勞務","工程服務 ","600000","570000","112/08/14","112/09/26","屏東縣－內埔 ","否","","規劃取得綠建築標章之建築工程 "]
["156","屏東縣政府 ","屏東縣竹田鄉公所 ","無 ","屏東縣竹田鄉文化園區都市計畫個案變更委託技術服務 ","勞務","都市計劃及景觀建築服務 ","1000000","975000","112/09/20","112/09/22","屏東縣－竹田 ","否","","規劃取得綠建築標章之建築工程 "]
["157","屏東縣政府 ","屏東縣新埤鄉公所 ","屏東縣政府 ","『「110年度縣管河川疏濬案行政協助費」111-上萬安段、萬隆段基礎設施改善工程』委託設計監造服務 ","勞務","工程服務 ","433521","402000","112/09/27","112/09/27","屏東縣－新埤 ","否","","非中央政府辦理新臺幣一億元以上之公共工程 "]
["158","屏東縣政府 ","屏東縣新埤鄉公所 ","屏東縣政府 ","『「110年度縣管河川疏濬案公益支出經費」111-新埤鄉轄內道路改善工程』委託設計監造服務 ","勞務","工程服務 ","289812","263000","112/09/27","112/09/27","屏東縣－新埤 ","否","","非中央政府辦理新臺幣一億元以上之公共工程 "]
["159","屏東縣政府 ","屏東縣枋寮鄉公所 ","行政院農業委員會水土保持局 ","「枋寮鄉新開村忠誠路排水改善工程」委託設計暨監造技術服務 ","勞務","工程服務 ","975000","782800","112/09/05","112/09/05","屏東縣－枋寮 ","否","","整修工程、拆除工程、疏濬工程、結構補強工程 "]
["160","屏東縣政府 ","屏東縣枋寮鄉公所 ","行政院農業委員會水土保持局 ","「枋寮鄉新龍村大武力福德宮前廣場改善工程」委託設計暨監造技術服務 ","勞務","工程服務 ","351997","318473","112/09/07","112/09/15","屏東縣－枋寮 ","否","","整修工程、拆除工程、疏濬工程、結構補強工程 "]
["161","屏東縣政府 ","屏東縣枋寮鄉公所 ","行政院農業委員會水土保持局 ","「枋寮鄉隆山村、新隆村及新開村等路面及排水改善工程」委託設計暨監造技術服務 ","勞務","工程服務 ","451500","404200","112/09/26","112/09/26","屏東縣－枋寮 ","否","","整修工程、拆除工程、疏濬工程、結構補強工程 "]
["162","屏東縣政府 ","屏東縣新園鄉公所 ","屏東縣政府 ","(112)新園鄉道路改善工程委託設計監造案 ","勞務","工程服務 ","170100","145800","112/08/01","112/09/11","屏東縣－新園 ","否","","整修工程、拆除工程、疏濬工程、結構補強工程 "]
["163","屏東縣政府 ","屏東縣崁頂鄉公所 ","屏東縣政府 ","112年崁頂鄉南榮國中校園周邊暨行車安全道路改善工程委託規劃設計監造技術服務 ","勞務","工程服務 ","1258080","1132272","112/09/07","112/09/11","南部地區－全區 ","否","","非受中央政府補助比率逾工程建造經費百分之五十且補助經費達新臺幣一億元以上之個案公共工程 "]
["164","屏東縣政府 ","屏東縣琉球鄉公所 ","內政部營建署 ","【屏東縣琉球鄉天南國小通學環境改善工程】委託設計監造服務 ","勞務","工程服務 ","790000","744100","112/09/19","112/09/21","屏東縣－琉球 ","否","","非中央政府辦理新臺幣一億元以上之公共工程 "]
["165","屏東縣政府 ","屏東縣琉球鄉公所 ","內政部營建署 ","【屏東縣琉球鄉琉球國小通學環境改善工程】委託設計監造服務 ","勞務","工程服務 ","1136250","1068750","112/09/20","112/09/22","屏東縣－琉球 ","否","","非中央政府辦理新臺幣一億元以上之公共工程 "]
["166","屏東縣政府 ","屏東縣琉球鄉公所 ","內政部營建署 ","【屏東縣琉球鄉白沙國小通學環境改善工程】委託設計監造服務 ","勞務","工程服務 ","1015000","955600","112/09/20","112/09/22","屏東縣－琉球 ","否","","非中央政府辦理新臺幣一億元以上之公共工程 "]
["167","屏東縣政府 ","屏東縣琉球鄉公所 ","行政院環境保護署 ","【屏東縣琉球鄉清潔隊垃圾轉運站場區改善工程(地坪及排水)計畫】委託設計監造服務 ","勞務","工程服務 ","916000","862540","112/09/26","112/09/28","屏東縣－琉球 ","否","","非中央政府辦理新臺幣一億元以上之公共工程 "]
["168","屏東縣政府 ","屏東縣車城鄉公所 ","經濟部水利署第七河川局 ","「112-車城鄉福安村排水溝及步道改善工程」委託設計監造技術服務 ","勞務","工程服務 ","249900","249900","112/08/29","112/09/01","屏東縣－車城 ","否","","整修工程、拆除工程、疏濬工程、結構補強工程 "]
["169","屏東縣政府 ","屏東縣瑪家鄉公所 ","無 ","屏東縣瑪家鄉生命紀念園區大門、圍牆新建及環境綠美化植栽工程-委託設計及履約監造技術服務案 ","勞務","建築服務 ","570425","530495","112/08/22","112/09/11","屏東縣－瑪家 ","否","","非中央政府辦理新臺幣一億元以上之公共工程 "]
["170","屏東縣政府 ","屏東縣泰武鄉公所 ","屏東縣政府 ","泰武鄉各部落聯絡道路養護工程委託測設監造 ","勞務","工程服務 ","544652","539205","112/09/13","112/09/15","屏東縣－泰武 ","否","","整修工程、拆除工程、疏濬工程、結構補強工程 "]
["171","屏東縣政府 ","屏東縣來義鄉公所 ","原住民族委員會 ","南和村平埔道路往舊高見部落聯絡道路改善工程及南和村高見部落外環道路改善工程委託測設及監造技術服務勞務採購案 ","勞務","工程服務 ","1803783","1783516","112/09/19","112/09/23","屏東縣－來義 ","否","","非中央政府辦理新臺幣一億元以上之公共工程 "]
["172","屏東縣政府 ","屏東縣來義鄉公所 ","原住民族委員會 ","112年來義鄉聯絡道路養護工程委託測設及監造技術服務勞務採購案 ","勞務","綜合工程服務 ","390275","381092","112/09/22","112/09/26","屏東縣－來義 ","否","","非中央政府辦理新臺幣一億元以上之公共工程 "]
["173","屏東縣政府 ","屏東縣來義鄉公所 ","無 ","來義鄉公所辦公廳舍內部空間整修委託設計監造技術服務 ","勞務","建築服務 ","1000000","980000","112/08/31","112/09/01","南部地區－全區 ","否","","非中央政府辦理新臺幣一億元以上之公共工程,非受中央政府補助比率逾工程建造經費百分之五十且補助經費達新臺幣一億元以上之個案公共工程,整修工程、拆除工程、疏濬工程、結構補強工程 "]
["174","屏東縣政府 ","屏東縣春日鄉公所 ","無 ","112年度士文部落遷建興辦事業計畫勞務採購案 ","勞務","都市計劃及景觀建築服務 ","6720000","6700000","112/08/31","112/09/01","屏東縣－春日 ","否","","非中央政府辦理新臺幣一億元以上之公共工程,非受中央政府補助比率逾工程建造經費百分之五十且補助經費達新臺幣一億元以上之個案公共工程 "]
["175","屏東縣政府 ","屏東縣立內埔國民中學 ","屏東縣政府 ","「112年內埔國中老舊廁所整修工程」委託規劃設計監造服務 ","勞務","建築服務 ","586585","586585","112/09/15","112/09/25","屏東縣－內埔 ","否","","非中央政府辦理新臺幣一億元以上之公共工程 "]
["176","屏東縣政府 ","屏東縣立明正國民中學 ","屏東縣政府 ","【屏東縣立明正國中新設通學步道及周邊設施整建工程】委託規劃設計及監造工作 ","勞務","工程服務 ","708955","700000","112/08/31","112/09/01","屏東縣－屏東 ","否","","整修工程、拆除工程、疏濬工程、結構補強工程 "]
["177","屏東縣政府 ","屏東縣屏東市勝利國民小學 ","內政部營建署 ","「屏東縣屏東市勝利國民小學校園人車分道設施整建工程」委託規劃設計監造勞務採購 ","勞務","工程服務 ","1262833","1199691","112/09/08","112/09/19","南部地區－全區 ","否","","非中央政府辦理新臺幣一億元以上之公共工程 "]
["178","屏東縣政府 ","屏東縣新埤鄉新埤國民小學 ","內政部、屏東縣政府 ","屏東縣新埤鄉新埤國小校園周邊道路改善工程監造設計勞務採購案 ","勞務","工程服務 ","1114584","1030525","112/09/20","112/09/20","屏東縣－新埤 ","否","","非中央政府辦理新臺幣一億元以上之公共工程,非受中央政府補助比率逾工程建造經費百分之五十且補助經費達新臺幣一億元以上之個案公共工程 "]
["179","苗栗縣政府 ","苗栗縣政府 ","內政部 ","「苗栗縣後龍鎮鄉村地區整體規劃」委託技術服務案 ","勞務","都市計劃及景觀建築服務 ","4000000","3865000","112/08/30","112/09/01","全部地區－全區 ","否","","非受中央政府補助比率逾工程建造經費百分之五十且補助經費達新臺幣一億元以上之個案公共工程 "]
["180","苗栗縣政府 ","苗栗縣政府 ","內政部土地重劃工程處 ","苗栗縣竹南鎮海口農村社區土地重劃工程委託設計技術服務工作 ","勞務","工程服務 ","2750000","2695000","112/09/18","112/09/19","全部地區－全區 ","否","","非中央政府辦理新臺幣一億元以上之公共工程 "]
["181","苗栗縣政府 ","苗栗縣政府 ","內政部營建署 ","112年苗栗縣竹南鎮金色中港~竹南西站(南段)軸帶再生計畫委託設計及監造技術服務 ","勞務","都市計劃及景觀建築服務 ","954704","926063","112/09/27","112/09/27","苗栗縣－全區 ","否","","整修工程、拆除工程、疏濬工程、結構補強工程 "]
["182","苗栗縣政府 ","苗栗縣政府 ","文化部文化資產局 ","苗栗縣歷史建築通霄神社社務所(含參道)修復規劃設計暨因應計畫 ","勞務","建築服務 ","2500000","2435600","112/09/21","112/09/23","全部地區－全區 ","否","","整修工程、拆除工程、疏濬工程、結構補強工程 "]
["183","苗栗縣政府 ","苗栗縣政府 ","交通部公路總局 ","苗栗縣苑裡鎮學校周邊暨易肇事路口交通安全改善計畫委託設計監造技術服務 ","勞務","綜合工程服務 ","973669","949327","112/09/28","112/09/28","苗栗縣－全區 ","否","","非受中央政府補助比率逾工程建造經費百分之五十且補助經費達新臺幣一億元以上之個案公共工程 "]
["184","苗栗縣政府 ","苗栗縣政府 ","行政院 ","112年第二次颱風豪雨水利工程災害復建委託設計監造技術服務案(開口合約) ","勞務","工程服務 ","8023095","7862633","112/08/30","112/09/01","全部地區－全區 ","否","","災後緊急處理、搶修、搶險 "]
["185","苗栗縣政府 ","苗栗縣政府 ","行政院農業委員會漁業署 ","「112年白沙屯漁港整體規劃工作」委託規劃技術服務 ","勞務","工程服務 ","2000000","1960000","112/08/30","112/09/04","全部地區－全區 ","否","","非中央政府辦理新臺幣一億元以上之公共工程 "]
["186","苗栗縣政府 ","苗栗縣政府 ","無 ","112年度交通工程(開口契約)-標誌、標線、反射鏡(第二期)委託監造技術服務 ","勞務","綜合工程服務 ","159532","150758","112/09/14","112/09/14","苗栗縣－全區 ","否","","整修工程、拆除工程、疏濬工程、結構補強工程 "]
["187","苗栗縣政府 ","苗栗縣政府 ","無 ","「苗栗縣苑裡鎮新建綜合式全民運動館委託規劃設計及監造技術服務案」候選綠建築證書作業 ","勞務","建築服務 ","300000","291000","112/09/13","112/09/15","全部地區－全區 ","否","","規劃取得綠建築標章之建築工程 "]
["188","苗栗縣政府 ","苗栗縣政府文化觀光局 ","文化部文化資產局 ","「南庄事件史蹟紀念碑設置計畫」規劃設計暨委託監造服務案 ","勞務","工程服務 ","770000","750000","112/08/15","112/09/08","北部地區－全區,中部地區－全區 ","否","","非中央政府辦理新臺幣一億元以上之公共工程 "]
["189","苗栗縣政府 ","苗栗縣政府文化觀光局 ","無 ","112年「三義木雕博物館建築修繕工程」委託規劃設計監造案 ","勞務","工程服務 ","501561","494977","112/09/15","112/09/18","北部地區－全區,中部地區－全區 ","否","","整修工程、拆除工程、疏濬工程、結構補強工程 "]
["190","苗栗縣政府 ","苗栗縣通霄鎮公所 ","無 ","通霄地區工程-委託規劃、設計及監造 ","勞務","工程服務 ","395922","388004","112/09/07","112/09/08","苗栗縣－通霄 ","否","","整修工程、拆除工程、疏濬工程、結構補強工程 "]
["191","苗栗縣政府 ","苗栗縣後龍鎮公所 ","內政部營建署 ","「後龍鎮轄區內危險路口提升安全暢行改善工程」委託設計監造技術服務工作 ","勞務","工程服務 ","869134","857835","112/09/06","112/09/06","苗栗縣－後龍 ","否","","非受中央政府補助比率逾工程建造經費百分之五十且補助經費達新臺幣一億元以上之個案公共工程 "]
["192","苗栗縣政府 ","苗栗縣後龍鎮公所 ","無 ","苗栗縣後龍鎮公所112年度轄內道路及排水工程勘測設計及監造服務(開口合約) ","勞務","工程服務 ","2658228","2556962","112/09/25","112/09/26","苗栗縣－後龍 ","否","","非受中央政府補助比率逾工程建造經費百分之五十且補助經費達新臺幣一億元以上之個案公共工程 "]
["193","苗栗縣政府 ","苗栗縣大湖鄉公所 ","經濟部水利署 ","112年度大湖鄉水資源保護區內小型工程-委託設計監造開口契約 ","勞務","工程服務 ","771869","725557","112/09/05","112/09/06","苗栗縣－大湖 ","否","","非中央政府辦理新臺幣一億元以上之公共工程 "]
["194","苗栗縣政府 ","苗栗縣三義鄉公所 ","台灣電力股份有限公司核能火力發電工程處中部施工處 ","三義鄉轄內植樹計畫委託設計技術服務案 ","勞務","都市計劃及景觀建築服務 ","2335551","2218774","112/09/14","112/09/18","苗栗縣－三義 ","否","","非中央政府辦理新臺幣一億元以上之公共工程 "]
["195","苗栗縣政府 ","苗栗縣三義鄉公所 ","無 ","苗栗縣三義鄉納骨堂興辦事業計畫(第三次變更)委託技術服務案 ","勞務","工程服務 ","840000","823000","112/08/02","112/09/08","苗栗縣－三義 ","否","","非中央政府辦理新臺幣一億元以上之公共工程,非受中央政府補助比率逾工程建造經費百分之五十且補助經費達新臺幣一億元以上之個案公共工程 "]
["196","苗栗縣政府 ","苗栗縣三義鄉公所 ","無 ","苗栗縣三義鄉殯儀館興建工程規劃設計及監造服務 ","勞務","建築服務 ","11249152","11136660","112/09/14","112/09/19","新北市－板橋區 ","否","","非中央政府辦理新臺幣一億元以上之公共工程 "]
["197","苗栗縣政府 ","苗栗縣三義鄉公所 ","經濟部水利署中區水資源局 ","三義鄉鯉魚潭村亮點發展及觀光活化整體規劃案 ","勞務","工程服務 ","3500000","3000000","112/09/14","112/09/18","苗栗縣－三義 ","否","","非中央政府辦理新臺幣一億元以上之公共工程 "]
["198","苗栗縣政府 ","苗栗縣頭份市公所 ","苗栗縣政府 ","112年度頭份市村里小型建設工程-重要路口監視器系統建置及裝設工程委託設計監造 ","勞務","工程服務 ","195606","185826","112/09/19","112/09/19","苗栗縣－頭份 ","否","","非中央政府辦理新臺幣一億元以上之公共工程 "]
["199","苗栗縣政府 ","苗栗縣頭份市公所 ","無 ","苗栗縣頭份市公所經管7處活動中心公安改善變更使用執照併室內裝修許可申請作業案 ","勞務","建築服務 ","2212000","2098000","112/08/31","112/09/01","苗栗縣－頭份 ","否","","非中央政府辦理新臺幣一億元以上之公共工程,非受中央政府補助比率逾工程建造經費百分之五十且補助經費達新臺幣一億元以上之個案公共工程 "]
["200","苗栗縣政府 ","苗栗縣立大倫國民中學 ","教育部國民及學前教育署、苗栗縣政府 ","112年度老舊廁所整修委託技術服務案 ","勞務","建築服務 ","253272","252765","112/09/25","112/09/28","苗栗縣－全區 ","否","","整修工程、拆除工程、疏濬工程、結構補強工程 "]
["201","苗栗縣政府 ","苗栗縣三義鄉鯉魚國民小學 ","教育部 ","苗栗縣鯉魚國小112年度運動操場及周邊設施整建工程委託技術服務勞務採購案 ","勞務","工程服務 ","496863","472020","112/09/14","112/09/15","苗栗縣－三義 ","否","","非中央政府辦理新臺幣一億元以上之公共工程,整修工程、拆除工程、疏濬工程、結構補強工程 "]
["202","苗栗縣政府 ","苗栗縣苑裡鎮苑裡國民小學 ","苗栗縣政府 ","113年度苑裡國小社區共讀站工程委託規劃設計監造技術服務勞務採購 ","勞務","建築服務 ","183415","182498","112/09/11","112/09/13","苗栗縣－苑裡 ","否","","整修工程、拆除工程、疏濬工程、結構補強工程 "]
["203","苗栗縣政府 ","苗栗縣苑裡鎮林森國民小學 ","教育部 ","老舊廁所(北棟及東棟)整修工程委託技術服務 ","勞務","工程服務 ","347784","347784","112/09/22","112/09/23","苗栗縣－全區 ","否","","非中央政府辦理新臺幣一億元以上之公共工程,非受中央政府補助比率逾工程建造經費百分之五十且補助經費達新臺幣一億元以上之個案公共工程,整修工程、拆除工程、疏濬工程、結構補強工程 "]
["204","苗栗縣政府 ","苗栗縣苑裡鎮中山國民小學 ","苗栗縣政府 ","苗栗縣苑裡鎮中山公設民營托嬰中心裝修工程使用執照取得勞務採購 ","勞務","建築服務 ","1055755","1055000","112/09/12","112/09/12","中部地區－全區 ","否","","非中央政府辦理新臺幣一億元以上之公共工程 "]
["205","苗栗縣政府 ","苗栗縣西湖鄉西湖國民小學 ","教育部 ","112年度西湖國小瑞湖分校老舊廁所改善工程委託技術服務勞務採購案 ","勞務","建築服務 ","285461","285461","112/09/25","112/09/28","苗栗縣－西湖 ","否","","非中央政府辦理新臺幣一億元以上之公共工程,非受中央政府補助比率逾工程建造經費百分之五十且補助經費達新臺幣一億元以上之個案公共工程,整修工程、拆除工程、疏濬工程、結構補強工程 "]
["206","苗栗縣政府 ","苗栗縣竹南鎮竹南國民小學 ","苗栗縣政府 ","竹南國小112年度操場及周邊設施整建工程委託技術服務採購 ","勞務","工程服務 ","907482","898407","112/09/01","112/09/11","苗栗縣－竹南 ","否","","整修工程、拆除工程、疏濬工程、結構補強工程 "]
["207","苗栗縣政府 ","苗栗縣後龍鎮後龍國民小學 ","苗栗縣政府 ","後龍國小老舊廁所改善工程委託技術服務勞務採購案 ","勞務","建築服務 ","297560","294197","112/09/13","112/09/15","苗栗縣－後龍 ","否","","非中央政府辦理新臺幣一億元以上之公共工程,整修工程、拆除工程、疏濬工程、結構補強工程 "]
["208","苗栗縣政府 ","苗栗縣後龍鎮大山國民小學 ","苗栗縣政府 ","苗栗縣大山國小112年行政大樓老舊廁所整修工程委託規劃設計監造勞務採購 ","勞務","工程服務 ","428403","428403","112/09/23","112/09/23","苗栗縣－後龍 ","否","","整修工程、拆除工程、疏濬工程、結構補強工程 "]
["209","苗栗縣政府 ","苗栗縣公館鄉仁愛國民小學 ","苗栗縣政府 ","苗栗縣仁愛國小行政大樓老舊廁所整修工程委託規劃設計監造服務案 ","勞務","綜合工程服務 ","270835","270808","112/09/13","112/09/13","苗栗縣－公館 ","否","","非中央政府辦理新臺幣一億元以上之公共工程,非受中央政府補助比率逾工程建造經費百分之五十且補助經費達新臺幣一億元以上之個案公共工程,整修工程、拆除工程、疏濬工程、結構補強工程 "]
["210","苗栗縣政府 ","苗栗縣頭份市蟠桃國民小學 ","教育部、苗栗縣政府 ","112西棟教學大樓(後)老舊廁所整修工程委託規劃設計監造技術服務 ","勞務","工程服務 ","338940","338601","112/09/21","112/09/22","苗栗縣－頭份 ","否","","非中央政府辦理新臺幣一億元以上之公共工程 "]
["211","桃園市政府 ","桃園市政府殯葬管理所 ","無 ","桃園市觀音區第六(大堀)公墓新建納骨塔委託規劃設計監造技術服務(第1次契約變更) ","勞務","建築服務 ","15460000","15200000","112/08/30","112/09/08","桃園市－全區 ","否","","非中央政府辦理新臺幣一億元以上之公共工程,規劃取得綠建築標章之建築工程 "]
["212","桃園市政府 ","桃園市立桃園高級中等學校 ","教育部國民及學前教育署 ","112年度科學二館無障礙電梯增設工程委託技術服務採購案 ","勞務","建築服務 ","476577","476577","112/09/19","112/09/27","桃園市－全區 ","否","","整修工程、拆除工程、疏濬工程、結構補強工程 "]
["213","桃園市政府 ","桃園市立永豐高級中等學校 ","桃園市政府教育局 ","「校園增設及修繕工程（多項）」委託技術服務勞務採購 ","勞務","建築服務 ","561310","544471","112/09/07","112/09/21","桃園市－八德區 ","否","","非中央政府辦理新臺幣一億元以上之公共工程,非受中央政府補助比率逾工程建造經費百分之五十且補助經費達新臺幣一億元以上之個案公共工程 "]
["214","桃園市政府 ","桃園市立建國國民中學 ","教育部國民及學前教育署 ","第三棟校舍東西兩側廁所及周邊改善工程委託規劃設計監造技術服務 ","勞務","工程服務 ","500109","465218","112/09/14","112/09/18","桃園市－桃園區 ","否","","非中央政府辦理新臺幣一億元以上之公共工程 "]
["215","桃園市政府 ","桃園市立東興國民中學 ","無 ","高級中等以下學校運動操場及周邊設施整建計畫-委託設計監造服務案 ","勞務","工程服務 ","650000","605000","112/09/20","112/09/23","桃園市－全區 ","否","","非中央政府辦理新臺幣一億元以上之公共工程 "]
["216","桃園市政府 ","桃園市立楊明國民中學 ","教育部國民及學前教育署 ","六藝樓老舊廁所整修工程委託規劃設計監造技術服務 ","勞務","綜合工程服務 ","341866","331610","112/09/08","112/09/11","桃園市－楊梅區 ","否","","非中央政府辦理新臺幣一億元以上之公共工程,非受中央政府補助比率逾工程建造經費百分之五十且補助經費達新臺幣一億元以上之個案公共工程,整修工程、拆除工程、疏濬工程、結構補強工程 "]
["217","桃園市政府 ","桃園市立迴龍國民中小學 ","桃園市政府教育局 ","112年度老舊廁所整修工程委託設計監造案 ","勞務","建築服務 ","519000","519000","112/09/19","112/09/21","桃園市－龜山區 ","否","","非中央政府辦理新臺幣一億元以上之公共工程,非受中央政府補助比率逾工程建造經費百分之五十且補助經費達新臺幣一億元以上之個案公共工程 "]
["218","桃園市政府 ","桃園市立龍潭國民中學 ","桃園市政府教育局 ","龍潭國中老舊廁所整修工程委託規劃設計監造服務 ","勞務","建築服務 ","524760","519512","112/09/11","112/09/12","桃園市－龍潭區 ","否","","非中央政府辦理新臺幣一億元以上之公共工程 "]
["219","桃園市政府 ","桃園市立草漯國民中學 ","教育部國民及學前教育署、桃園市政府教育局 ","勤學樓右側1-3樓老舊廁所整修工程委託規劃設計監造技術服務採購案 ","勞務","工程服務 ","217939","217939","112/09/27","112/09/28","桃園市－觀音區 ","否","","非中央政府辦理新臺幣一億元以上之公共工程,非受中央政府補助比率逾工程建造經費百分之五十且補助經費達新臺幣一億元以上之個案公共工程 "]
["220","桃園市政府 ","桃園市桃園區中山國民小學 ","教育部國民及學前教育署 ","桃園市桃園區中山國小老舊廁所整修工程委託規劃設計監造技術服務採購 ","勞務","建築服務 ","967561","967561","112/09/20","112/09/26","桃園市－桃園區 ","否","","非中央政府辦理新臺幣一億元以上之公共工程,非受中央政府補助比率逾工程建造經費百分之五十且補助經費達新臺幣一億元以上之個案公共工程,整修工程、拆除工程、疏濬工程、結構補強工程 "]
["221","桃園市政府 ","桃園市桃園區西門國民小學 ","桃園市政府教育局 ","校舍拆除重建工程-接續工程委託設計監造服務 ","勞務","建築服務 ","786674","772513","112/08/08","112/09/01","北部地區－全區 ","否","","整修工程、拆除工程、疏濬工程、結構補強工程 "]
["222","桃園市政府 ","桃園市桃園區北門國民小學 ","教育部國民及學前教育署 ","北門國小廁所整修工程委託技術服務 ","勞務","工程服務 ","445659","444811","112/09/13","112/09/13","桃園市－桃園區 ","否","","非中央政府辦理新臺幣一億元以上之公共工程 "]
["223","桃園市政府 ","桃園市桃園區慈文國民小學 ","桃園市政府教育局 ","教學大樓廁所整修美化工程技術服務 ","勞務","建築服務 ","387000","387000","112/09/22","112/09/26","桃園市－桃園區 ","否","","整修工程、拆除工程、疏濬工程、結構補強工程 "]
["224","桃園市政府 ","桃園市桃園區同德國民小學 ","教育部體育署 ","同德國小學校運動操場及周邊設施整建工程委託規劃設計監造技術服務 ","勞務","工程服務 ","719175","717886","112/09/05","112/09/05","桃園市－桃園區 ","否","","整修工程、拆除工程、疏濬工程、結構補強工程 "]
["225","桃園市政府 ","桃園市中壢區新明國民小學 ","桃園市政府教育局 ","新明國小112年度改善校園環境-冷氣設置-局部電力改善工程 委託設計監造技術服務採購 ","勞務","工程服務 ","642568","629716","112/09/21","112/09/21","北部地區－全區 ","否","","整修工程、拆除工程、疏濬工程、結構補強工程 "]
["226","桃園市政府 ","桃園市平鎮區南勢國民小學 ","桃園市政府教育局、教育部國民及學前教育署 ","112學年度設置學校社區共讀站委託設計監造技術服務案 ","勞務","工程服務 ","207143","207143","112/09/20","112/09/22","桃園市－平鎮區 ","否","","非中央政府辦理新臺幣一億元以上之公共工程,非受中央政府補助比率逾工程建造經費百分之五十且補助經費達新臺幣一億元以上之個案公共工程 "]
["227","桃園市政府 ","桃園市八德區瑞豐國民小學 ","無 ","公立國民中小學老舊廁所整修工程(迎風樓西側)委託規劃設計監造技術服務 ","勞務","建築服務 ","181726","177499","112/09/26","112/09/27","桃園市－八德區 ","否","","非中央政府辦理新臺幣一億元以上之公共工程,非受中央政府補助比率逾工程建造經費百分之五十且補助經費達新臺幣一億元以上之個案公共工程 "]
["228","桃園市政府 ","桃園市楊梅區富岡國民小學 ","桃園市政府教育局 ","「112年活動中心屋頂防水改善工程」設計監造委託技術服務案 ","勞務","工程服務 ","278171","273000","112/09/14","112/09/20","桃園市－全區 ","否","","非中央政府辦理新臺幣一億元以上之公共工程,非受中央政府補助比率逾工程建造經費百分之五十且補助經費達新臺幣一億元以上之個案公共工程 "]
["229","桃園市政府 ","桃園市楊梅區瑞塘國民小學 ","桃園市政府教育局 ","博雅樓C區老舊廁所整修工程-委託規劃設計監造技術服務 ","勞務","建築服務 ","503995","503995","112/09/20","112/09/21","桃園市－楊梅區 ","否","","非中央政府辦理新臺幣一億元以上之公共工程 "]
["230","桃園市政府 ","桃園市蘆竹區南崁國民小學 ","桃園市政府教育局 ","典學樓廁所整修工程之委託設計監造服務勞務採購 ","勞務","建築服務 ","488612","488612","112/09/07","112/09/07","桃園市－蘆竹區 ","否","","整修工程、拆除工程、疏濬工程、結構補強工程 "]
["231","桃園市政府 ","桃園市蘆竹區錦興國民小學 ","桃園市政府教育局 ","112年度公立國民中小學老舊廁所整修工程(教學大樓一樓)委託規劃設計監造技術服務 ","勞務","工程服務 ","320750","320750","112/09/26","112/09/28","桃園市－蘆竹區 ","否","","非中央政府辦理新臺幣一億元以上之公共工程,非受中央政府補助比率逾工程建造經費百分之五十且補助經費達新臺幣一億元以上之個案公共工程 "]
["232","桃園市政府 ","桃園市龍潭區雙龍國民小學 ","無 ","福慧樓廁所整修工程委託規劃設計監造技術服務 ","勞務","綜合工程服務 ","236475","233725","112/09/15","112/09/19","桃園市－龍潭區 ","否","","非中央政府辦理新臺幣一億元以上之公共工程 "]
["233","桃園市政府 ","桃園市觀音區草漯國民小學 ","無 ","112年度「公立國民中小學老舊廁所整修工程」委託規劃設計監造服務-勤學樓 ","勞務","工程服務 ","246000","243540","112/09/22","112/09/22","桃園市－觀音區 ","否","","整修工程、拆除工程、疏濬工程、結構補強工程 "]
["234","桃園市政府 ","桃園市觀音區草漯國民小學 ","無 ","112年度「改善國民中小學校園環境-冷氣設置」局部電力改善工程委託規劃設計監造服務-明德樓與勤學樓 ","勞務","工程服務 ","307826","304748","112/09/20","112/09/20","桃園市－觀音區 ","否","","整修工程、拆除工程、疏濬工程、結構補強工程 "]
["235","桃園市政府 ","桃園市立龜山幼兒園 ","桃園市政府教育局 ","園本部校門口改善工程委託規劃設計暨監造技術服務採購案 ","勞務","工程服務 ","258000","258000","112/09/18","112/09/20","桃園市－全區 ","否","","非中央政府辦理新臺幣一億元以上之公共工程 "]
["236","桃園市政府 ","桃園市政府工務局 ","內政部營建署 ","A11-赤塗路新闢道路工程 ","工程","其他土木工程 ","124548504","124548504","112/09/25","112/09/28","桃園市－蘆竹區 ","否","","非中央政府辦理新臺幣一億元以上之公共工程,非受中央政府補助比率逾工程建造經費百分之五十且補助經費達新臺幣一億元以上之個案公共工程 "]
["237","桃園市政府 ","桃園市政府工務局 ","交通部公路總局 ","桃園市新屋海客文化景觀意象道路改善計畫 ","工程","快速道路(不含高架快速道路), 街道, 馬路, 鐵路及機場跑道 ","349579974","349536788","112/08/29","112/09/11","桃園市－新屋區 ","已依規定納入辦理節能減碳檢核 ","計畫提報核定階段納入辦理節能減碳檢核;規劃設計階段納入辦理節能減碳檢核 ",""]
["238","桃園市政府 ","桃園市政府工務局 ","無 ","A8長庚轉運站公益回饋空間室內裝修規劃設計暨監造技術服務 ","勞務","建築服務 ","3200000","3200000","112/09/19","112/09/22","桃園市－龜山區 ","否","","非中央政府辦理新臺幣一億元以上之公共工程 "]
["239","桃園市政府 ","桃園市政府工務局 ","無 ","中壢區新明公有零售市場暨大園區三和公有零售市場結構補強工程規劃設計及監造委託技術 ","勞務","建築服務 ","1731006","1731006","112/09/14","112/09/19","桃園市－全區 ","否","","整修工程、拆除工程、疏濬工程、結構補強工程 "]
["240","桃園市政府 ","桃園市政府工務局 ","無 ","後湖逐浪天梯工程 ","工程","水道、海港、水壩及其他水利工程 ","110606768","102600000","112/09/18","112/09/26","桃園市－新屋區 ","否","","非受中央政府補助比率逾工程建造經費百分之五十且補助經費達新臺幣一億元以上之個案公共工程 "]
["241","桃園市政府 ","桃園市政府警察局中壢分局 ","無 ","中壢派出所新建辦公廳舍裝修工程委託規劃設計監造技術服務 ","勞務","建築服務 ","687400","648120","112/08/30","112/09/15","北部地區－全區 ","否","","非中央政府辦理新臺幣一億元以上之公共工程 "]
["242","桃園市政府 ","桃園市政府環境清潔稽查大隊 ","無 ","112年度龜山區大埔轉運站設施改善工程委託設計監造技術服務 ","勞務","工程服務 ","2805000","2805000","112/08/29","112/09/04","桃園市－龜山區 ","否","","整修工程、拆除工程、疏濬工程、結構補強工程 "]
["243","桃園市政府 ","桃園市平鎮地政事務所 ","無 ","112年度桃園市平鎮區控制測量、圖根點清理及新補建測量作業 ","勞務","工程服務 ","320000","313000","112/09/08","112/09/08","桃園市－平鎮區 ","否","","非中央政府辦理新臺幣一億元以上之公共工程 "]
["244","桃園市政府 ","桃園市政府水務局 ","無 ","老街溪(領航南橋~芝和橋)護岸延長工程(斷面34至斷面41)委託規劃設計及監造技術服務(第1次契約變更) ","勞務","工程服務 ","10059910","10018737","112/09/11","112/09/18","桃園市－中壢區 ","否","","非中央政府辦理新臺幣一億元以上之公共工程 "]
["245","桃園市政府 ","桃園市政府水務局 ","無 ","山豬湖園區環境加值計畫委託設計及監造技術服務(第一次契約變更) ","勞務","工程服務 ","2911806","2810000","112/09/22","112/09/26","桃園市－大溪區 ","已依規定納入辦理節能減碳檢核 ","規劃設計階段納入辦理節能減碳檢核 ",""]
["246","桃園市政府 ","桃園市政府水務局 ","無 ","桃園市小烏來污水下水道系統第一期第1次修正實施計畫委託專業服務案 ","勞務","工程服務 ","1450000","1450000","112/09/21","112/09/23","桃園市－桃園區 ","否","","非中央政府辦理新臺幣一億元以上之公共工程 "]
["247","桃園市政府 ","桃園市政府觀光旅遊局 ","無 ","龍潭區遊憩環境整理工程設計監造委託技術服務 ","勞務","綜合工程服務 ","499277","487390","112/08/24","112/09/26","桃園市－全區 ","否","","整修工程、拆除工程、疏濬工程、結構補強工程 "]
["248","桃園市政府 ","桃園市政府風景區管理處 ","無 ","「後慈湖民國風展演空間及周邊整建工程」委託設計監造技術服務案 ","勞務","都市計劃及景觀建築服務 ","2970000","2970000","112/08/31","112/09/01","桃園市－大溪區 ","否","","非中央政府辦理新臺幣一億元以上之公共工程 "]
["249","桃園市政府 ","桃園市政府風景區管理處 ","無 ","北橫遊客中心 (原經國紀念館)電源修繕維護」採購案 ","勞務","工程服務 ","550000","487715","112/09/18","112/09/19","桃園市－大溪區 ","否","","非受中央政府補助比率逾工程建造經費百分之五十且補助經費達新臺幣一億元以上之個案公共工程 "]
["250","桃園市政府 ","桃園市政府文化局 ","無 ","「八德大湳森林公園E1、E2、E4、大隊部營舍修復再利用工程」委託規劃設計技術服務案 ","勞務","建築服務 ","2930000","2840000","112/09/07","112/09/26","桃園市－八德區 ","否","","整修工程、拆除工程、疏濬工程、結構補強工程 "]
["251","桃園市政府 ","桃園市政府都市發展局 ","無 ","112年度桃園市環境景觀總顧問服務計畫變更契約 ","勞務","都市計劃及景觀建築服務 ","340000","340000","112/08/31","112/09/07","桃園市－全區 ","否","","非受中央政府補助比率逾工程建造經費百分之五十且補助經費達新臺幣一億元以上之個案公共工程 "]
["252","桃園市政府 ","桃園市政府住宅發展處 ","無 ","桃園市中壢火車站公辦都市更新招商作業委託專業服務案 ","勞務","都市計劃及景觀建築服務 ","4800000","4800000","112/08/24","112/09/01","桃園市－中壢區 ","否","","非中央政府辦理新臺幣一億元以上之公共工程 "]
["253","桃園市政府 ","桃園市政府住宅發展處 ","無 ","桃園航空城G17基地新建安置住宅統包工程(桃園航空城機場園區新建安置住宅街廓5、6統包暨區徵工程案後續擴充)追加區徵工程 ","工程","其他土木工程 ","530129031","530000000","112/08/21","112/09/19","桃園市－大園區 ","否","","規劃取得綠建築標章之建築工程 "]
["254","桃園市政府 ","桃園市政府住宅發展處 ","無 ","桃園市八德區大湳森林公園北側公辦都市更新案(西側)之建築規劃設計委託專業服務 ","勞務","都市計劃及景觀建築服務 ","1000000","1000000","112/09/07","112/09/18","桃園市－八德區 ","否","","非中央政府辦理新臺幣一億元以上之公共工程,非受中央政府補助比率逾工程建造經費百分之五十且補助經費達新臺幣一億元以上之個案公共工程 "]
["255","桃園市政府 ","桃園市政府體育局 ","無 ","桃園市立田徑場北門宿舍修繕工程委託規劃設計監造技術服務 ","勞務","工程服務 ","1247500","1185125","112/09/19","112/09/20","桃園市－桃園區 ","否","","整修工程、拆除工程、疏濬工程、結構補強工程 "]
["256","桃園市政府 ","桃園市中壢區公所 ","桃園市政府工務局 ","中壢區龍慈路635巷水利溝整建及道路拓寬工程委託技術服務 ","勞務","工程服務 ","6000000","6000000","112/09/06","112/09/07","桃園市－中壢區 ","否","","整修工程、拆除工程、疏濬工程、結構補強工程 "]
["257","桃園市政府 ","桃園市平鎮區公所 ","無 ","112年度平鎮區其他排水水路調查規劃服務案 ","勞務","工程服務 ","3000000","2990000","112/09/19","112/09/20","桃園市－平鎮區 ","否","","非中央政府辦理新臺幣一億元以上之公共工程 "]
["258","桃園市政府 ","桃園市楊梅區公所 ","無 ","秀才里山麓5B池步道及欄杆改善工程(委託設計服務) ","勞務","工程服務 ","698764","680000","112/09/08","112/09/08","桃園市－楊梅區 ","否","","整修工程、拆除工程、疏濬工程、結構補強工程 "]
["259","桃園市政府 ","桃園市楊梅區公所 ","無 ","楊梅區楊富段1279地號新建公園工程委託設計及監造服務 ","勞務","工程服務 ","1900000","1840000","112/09/08","112/09/11","桃園市－楊梅區 ","否","","非受中央政府補助比率逾工程建造經費百分之五十且補助經費達新臺幣一億元以上之個案公共工程 "]
["260","桃園市政府 ","桃園市蘆竹區公所 ","無 ","112年度蘆竹區上級機關補助與委託代辦工程(建築類)委託規劃設計及監造技術服務(開口契約) ","勞務","工程服務 ","2150000","2150000","112/09/04","112/09/08","桃園市－蘆竹區 ","否","","非中央政府辦理新臺幣一億元以上之公共工程,非受中央政府補助比率逾工程建造經費百分之五十且補助經費達新臺幣一億元以上之個案公共工程 "]
["261","桃園市政府 ","桃園市大溪區公所 ","桃園市政府體育局 ","月眉多功能運動場館委託變更興辦事業計畫及先期規劃設計勞務採購 ","勞務","建築服務 ","525000","500000","112/09/06","112/09/06","桃園市－大溪區 ","否","","非中央政府辦理新臺幣一億元以上之公共工程,非受中央政府補助比率逾工程建造經費百分之五十且補助經費達新臺幣一億元以上之個案公共工程 "]
["262","海洋委員會 ","海洋委員會海巡署金馬澎分署 ","無 ","小門營區廳舍整建委託設計及監造技術服務 ","勞務","建築服務 ","598536","588000","112/09/14","112/09/18","澎湖縣－西嶼 ","否","","整修工程、拆除工程、疏濬工程、結構補強工程 "]
["263","海洋委員會 ","海洋委員會海巡署艦隊分署 ","無 ","「東沙島環礁既有航道助航泊靠設施及海岸線強固工程專案管理(含監造)暨現場調查工作委託技術服務案」第1次契約變更 ","勞務","工程服務 ","10080000","10000000","112/09/04","112/09/08","其他－其他 ","否","","整修工程、拆除工程、疏濬工程、結構補強工程 "]
["264","財政部 ","財政部臺北國稅局 ","無 ","北投稽徵所辦公廳舍裝修、搬遷及拆除工程委託設計監造技術服務案 ","勞務","建築服務 ","1135683","1118000","112/09/05","112/09/07","臺北市－北投區 ","否","","整修工程、拆除工程、疏濬工程、結構補強工程 "]
["265","財政部 ","臺灣銀行股份有限公司 ","無 ","行員訓練所防水、廚房及行區零星修繕工程規劃設計監造技術服務 ","勞務","建築服務 ","1255500","1255500","112/09/14","112/09/14","臺北市－士林區 ","否","","非中央政府辦理新臺幣一億元以上之公共工程 "]
["266","財政部 ","臺灣銀行股份有限公司 ","無 ","風險管理部辦公室整修工程委託設計監造技術服務 ","勞務","建築服務 ","380000","380000","112/09/08","112/09/11","臺北市－全區 ","否","","非中央政府辦理新臺幣一億元以上之公共工程,非受中央政府補助比率逾工程建造經費百分之五十且補助經費達新臺幣一億元以上之個案公共工程,整修工程、拆除工程、疏濬工程、結構補強工程 "]
["267","財政部 ","臺灣銀行股份有限公司 ","無 ","臺灣銀行股份有限公司廣州分行2023年資訊設備維護採購案 ","勞務","工程服務 ","351000","315000","112/09/26","112/09/27","其他－其他 ","否","","非中央政府辦理新臺幣一億元以上之公共工程,非受中央政府補助比率逾工程建造經費百分之五十且補助經費達新臺幣一億元以上之個案公共工程 "]
["268","高雄市政府 ","高雄市政府 ","交通部航港局、臺灣港務股份有限公司 ","高雄港洲際貨櫃中心聯外貨櫃車專用道開闢工程 ","工程","快速道路(不含高架快速道路), 街道, 馬路, 鐵路及機場跑道 ","486965000","486965000","112/09/01","112/09/08","高雄市－小港區 ","已依規定納入辦理節能減碳檢核 ","規劃設計階段納入辦理節能減碳檢核 ",""]
["269","高雄市政府 ","高雄市政府教育局 ","無 ","教育局興建校舍工程促參前置作業計畫委託專業服務(開口契約) ","勞務","建築服務 ","9000000","9000000","112/09/21","112/09/23","高雄市－全區 ","否","","非中央政府辦理新臺幣一億元以上之公共工程,非受中央政府補助比率逾工程建造經費百分之五十且補助經費達新臺幣一億元以上之個案公共工程 "]
["270","高雄市政府 ","高雄市立鼓山高級中學 ","內政部營建署 ","高雄市立鼓山高級中學鼓山三路及明德路通學道暨交通設施改善計畫-委託規劃、設計暨監造技術服務 ","勞務","工程服務 ","868900","868900","112/09/08","112/09/14","高雄市－鼓山區 ","否","","非中央政府辦理新臺幣一億元以上之公共工程 "]
["271","高雄市政府 ","高雄市立瑞豐國民中學 ","無 ","高雄市前鎮區瑞豐國民中學低碳通學步道改善工程委託規畫設計暨監造技術服務 ","勞務","建築服務 ","948547","937446","112/09/05","112/09/07","南部地區－全區 ","否","","非中央政府辦理新臺幣一億元以上之公共工程,非受中央政府補助比率逾工程建造經費百分之五十且補助經費達新臺幣一億元以上之個案公共工程 "]
["272","高雄市政府 ","高雄市立立德國民中學 ","無 ","112-113年度「設置學校社區共讀站」規劃設計監造技術服務採購案 ","勞務","建築服務 ","205435","205435","112/09/18","112/09/20","高雄市－全區 ","否","","整修工程、拆除工程、疏濬工程、結構補強工程 "]
["273","高雄市政府 ","高雄市立明義國民中學 ","教育部國民及學前教育署 ","112年度明義樓老舊廁所整修工程委託設計監造技術服務 ","勞務","工程服務 ","450102","450102","112/08/30","112/09/20","高雄市－全區 ","否","","非中央政府辦理新臺幣一億元以上之公共工程 "]
["274","高雄市政府 ","高雄市立明義國民中學 ","無 ","112年度高雄市立明義國民中學明義街通學步道既交通設施改善計畫委託設計監造技術服務 ","勞務","工程服務 ","332062","332062","112/08/31","112/09/20","高雄市－全區 ","否","","非中央政府辦理新臺幣一億元以上之公共工程 "]
["275","高雄市政府 ","高雄市立大寮國民中學 ","教育部國民及學前教育署 ","112年「活動中心繼舜堂老舊廁所整修工程」委託規劃設計及監造技術服務 ","勞務","工程服務 ","210423","205000","112/09/18","112/09/21","高雄市－大寮區 ","否","","非中央政府辦理新臺幣一億元以上之公共工程,非受中央政府補助比率逾工程建造經費百分之五十且補助經費達新臺幣一億元以上之個案公共工程 "]
["276","高雄市政府 ","高雄市立阿蓮國民中學 ","教育部國民及學前教育署 ","高雄市立阿蓮國民中學112年度老舊廁所整修工程委託規劃設計技術服務 ","勞務","建築服務 ","316048","316048","112/09/08","112/09/08","高雄市－阿蓮區 ","否","","整修工程、拆除工程、疏濬工程、結構補強工程 "]
["277","高雄市政府 ","高雄市立橋頭國民中學 ","無 ","橋頭國民中學設置學校社區共讀站委託設計監造採購案 ","勞務","工程服務 ","200000","200000","112/09/05","112/09/11","高雄市－橋頭區 ","否","","非中央政府辦理新臺幣一億元以上之公共工程 "]
["278","高雄市政府 ","高雄市立大社國民中學 ","教育部國民及學前教育署 ","112年度行政大樓東西側老舊廁所整修工程委託規劃設計監造技術服務 ","勞務","工程服務 ","386767","386767","112/09/18","112/09/19","高雄市－大社區 ","否","","整修工程、拆除工程、疏濬工程、結構補強工程 "]
["279","高雄市政府 ","高雄市立大社國民中學 ","教育部國民及學前教育署 ","112-113年度設置學校社區共讀站委託規劃設計監造技術服務 ","勞務","工程服務 ","175000","175000","112/09/18","112/09/19","高雄市－大社區 ","否","","整修工程、拆除工程、疏濬工程、結構補強工程 "]
["280","高雄市政府 ","高雄市立鳥松國民中學 ","教育部國民及學前教育署 ","112年鳥松國中A棟廁所整建規劃設計監造 ","勞務","工程服務 ","425102","420000","112/09/01","112/09/07","高雄市－全區 ","否","","整修工程、拆除工程、疏濬工程、結構補強工程 "]
["281","高雄市政府 ","高雄市立忠孝國民中學 ","高雄市政府教育局 ","校園周邊暨行車安全道路改善計畫委託設計暨監造技術服務 ","勞務","工程服務 ","530000","530000","112/09/07","112/09/11","高雄市－鳳山區 ","否","","非中央政府辦理新臺幣一億元以上之公共工程,非受中央政府補助比率逾工程建造經費百分之五十且補助經費達新臺幣一億元以上之個案公共工程 "]
["282","高雄市政府 ","高雄市立青年國民中學 ","教育部 ","青年國中南棟大樓西側老舊廁所整修工程委託規劃設計監造技術服務 ","勞務","建築服務 ","547181","545736","112/09/18","112/09/27","高雄市－鳳山區 ","否","","整修工程、拆除工程、疏濬工程、結構補強工程 "]
["283","高雄市政府 ","高雄市前鎮區愛群國民小學 ","高雄市政府教育局 ","愛群國小廣西路與無名巷(東側)通學步道改善工程-委託規劃設計監造技術服務 ","勞務","工程服務 ","696903","668465","112/08/31","112/09/05","高雄市－前鎮區 ","否","","非受中央政府補助比率逾工程建造經費百分之五十且補助經費達新臺幣一億元以上之個案公共工程,整修工程、拆除工程、疏濬工程、結構補強工程 "]
["284","高雄市政府 ","高雄市前鎮區瑞豐國民小學 ","教育部國民及學前教育署 ","112年度思源樓廁所整修工程委託規劃設計監造 ","勞務","工程服務 ","366604","366000","112/09/08","112/09/15","高雄市－前鎮區 ","否","","非中央政府辦理新臺幣一億元以上之公共工程 "]
["285","高雄市政府 ","高雄市苓雅區五權國民小學 ","教育部 ","112年度老舊廁所整修工程委託規劃設計暨監造技術服務 ","勞務","工程服務 ","649938","643439","112/08/31","112/09/01","高雄市－苓雅區 ","否","","整修工程、拆除工程、疏濬工程、結構補強工程 "]
["286","高雄市政府 ","高雄市苓雅區五權國民小學 ","教育部國民及學前教育署 ","113年度校園社區化改造計畫─學校社區共讀站工程委託規劃設計暨監造技術服務 ","勞務","工程服務 ","205433","205433","112/08/30","112/09/01","高雄市－苓雅區 ","否","","整修工程、拆除工程、疏濬工程、結構補強工程 "]
["287","高雄市政府 ","高雄市前金區前金國民小學 ","教育部 ","前金國小112年度老舊廁所整修工程委託設計監造技術服務採購 ","勞務","工程服務 ","600000","600000","112/09/19","112/09/22","南部地區－全區 ","否","","整修工程、拆除工程、疏濬工程、結構補強工程 "]
["288","高雄市政府 ","高雄市鹽埕區鹽埕國民小學 ","無 ","忠孝樓廁所整建工程委託規劃設計監造技術服務 ","勞務","工程服務 ","229941","225000","112/09/06","112/09/28","高雄市－全區 ","否","","非中央政府辦理新臺幣一億元以上之公共工程,非受中央政府補助比率逾工程建造經費百分之五十且補助經費達新臺幣一億元以上之個案公共工程,整修工程、拆除工程、疏濬工程、結構補強工程 "]
["289","高雄市政府 ","高雄市鼓山區鼓山國民小學 ","教育部 ","向陽樓三四樓老舊廁所整修工程 ","勞務","建築服務 ","261693","261693","112/09/06","112/09/27","高雄市－鼓山區 ","否","","非中央政府辦理新臺幣一億元以上之公共工程 "]
["290","高雄市政府 ","高雄市鼓山區鼓岩國民小學 ","教育部國民及學前教育署、高雄市政府教育局 ","112年度元亨樓、行政樓老舊廁所整修工程委託規畫設計監造技術服務案 ","勞務","建築服務 ","689219","689219","112/09/07","112/09/08","南部地區－全區 ","否","","整修工程、拆除工程、疏濬工程、結構補強工程 "]
["291","高雄市政府 ","高雄市左營區左營國民小學 ","內政部、高雄市政府教育局 ","高雄市左營區左營國民小學通學道暨交通設施改善計畫-委託規劃、設計暨監造技術服務 ","勞務","工程服務 ","700395","700395","112/09/05","112/09/08","高雄市－左營區 ","否","","非中央政府辦理新臺幣一億元以上之公共工程 "]
["292","高雄市政府 ","高雄市楠梓區楠梓國民小學 ","高雄市政府教育局 ","楠梓國小創新樓無障礙電梯改善工程委託規劃設計監造技術服務 ","勞務","工程服務 ","175015","175000","112/09/14","112/09/25","高雄市－楠梓區 ","否","","非中央政府辦理新臺幣一億元以上之公共工程 "]
["293","高雄市政府 ","高雄市小港區小港國民小學 ","教育部國民及學前教育署 ","「高雄市小港區小港國民小學和平樓東側老舊廁所整修工程」委託規劃設計監造技術服務 ","勞務","工程服務 ","424466","424466","112/09/20","112/09/20","高雄市－全區 ","已依規定納入辦理節能減碳檢核 ","規劃設計階段納入辦理節能減碳檢核 ",""]
["294","高雄市政府 ","高雄市左營區新民國民小學 ","無 ","新民國小通學道改善工程委託規劃設計監造技術服務 ","勞務","工程服務 ","1091294","1091294","112/08/18","112/09/08","高雄市－全區 ","否","","整修工程、拆除工程、疏濬工程、結構補強工程 "]
["295","高雄市政府 ","高雄市鳥松區鳥松國民小學 ","教育部國民及學前教育署 ","北棟廁所整建工程委託規劃設計監造技術服務 ","勞務","工程服務 ","217321","217321","112/09/07","112/09/11","高雄市－鳥松區 ","否","","整修工程、拆除工程、疏濬工程、結構補強工程 "]
["296","高雄市政府 ","高雄市鳥松區大華國民小學 ","內政部營建署、高雄市政府教育局 ","高雄市鳥松區大華國民小學大華路文華路通學步道改善工程委託規劃設計監造技術服務 ","勞務","工程服務 ","807675","800000","112/08/24","112/09/01","高雄市－鳥松區 ","否","","整修工程、拆除工程、疏濬工程、結構補強工程 "]
["297","高雄市政府 ","高雄市岡山區嘉興國民小學 ","教育部 ","嘉興國小廁所整修工程委託規劃設計監造案技術服務 ","勞務","建築服務 ","190000","190000","112/09/01","112/09/06","高雄市－岡山區 ","否","","整修工程、拆除工程、疏濬工程、結構補強工程 "]
["298","高雄市政府 ","高雄市旗山區旗山國民小學 ","教育部國民及學前教育署 ","學校社區共讀站委託規劃設計監造技術服務 ","勞務","工程服務 ","209546","208000","112/09/05","112/09/05","高雄市－旗山區 ","否","","非中央政府辦理新臺幣一億元以上之公共工程 "]
["299","高雄市政府 ","高雄市仁武區烏林國民小學 ","教育部國民及學前教育署 ","112年度高雄市仁武區烏林國民小學老舊廁所整修工程委託規劃設計暨監造勞務採購 ","勞務","工程服務 ","302282","302282","112/09/08","112/09/11","高雄市－仁武區 ","否","","整修工程、拆除工程、疏濬工程、結構補強工程 "]
["300","高雄市政府 ","高雄市鳳山區文德國民小學 ","高雄市政府教育局(99年12月25日改制)、內政部營建署 ","高雄市文德國小八德路及文中街通學步道改善工程-委託規劃、設計暨監造技術服務 ","勞務","建築服務 ","721328","721328","112/08/28","112/09/01","高雄市－全區 ","否","","非中央政府辦理新臺幣一億元以上之公共工程 "]
["301","高雄市政府 ","高雄市路竹區蔡文國民小學 ","內政部營建署、高雄市政府教育局 ","蔡文國民小學國昌路通學道暨交通設施改善計畫-委託規劃、設計暨監造技術服務 ","勞務","工程服務 ","366993","366993","112/09/01","112/09/14","高雄市－路竹區 ","否","","非中央政府辦理新臺幣一億元以上之公共工程 "]
["302","高雄市政府 ","高雄市鳳山區文華國民小學 ","無 ","高雄市鳳山區文華國民小學校園周邊暨行車安全道路改善計畫--委託規劃、設計暨監造技術服務 ","勞務","工程服務 ","759525","750000","112/08/30","112/09/07","高雄市－鳳山區 ","否","","非中央政府辦理新臺幣一億元以上之公共工程 "]
["303","高雄市政府 ","高雄市政府工務局 ","內政部營建署 ","「高雄市區濱海聯外道路開闢工程（南段工程-德民路至中海路）」委託規劃設計及監造技術服務(第一次變更服務) ","勞務","工程服務 ","12609267","12474168","112/09/01","112/09/08","高雄市－楠梓區,高雄市－左營區 ","已依規定納入辦理節能減碳檢核 ","規劃設計階段納入辦理節能減碳檢核 ",""]
["304","高雄市政府 ","高雄市政府工務局新建工程處 ","無 ","鳳山日照社福多功能中心興建工程」委託規劃設計暨監造技術服務（第一次變更服務） ","勞務","建築服務 ","1551698","1538205","112/09/15","112/09/19","高雄市－鳳山區 ","否","","規劃取得綠建築標章之建築工程 "]
["305","高雄市政府 ","高雄市政府工務局新建工程處 ","無 ","高雄市楠梓區楠陽國民小學公共化幼兒園新建工程 ","工程","教育用建築工程 ","113122031","113122031","112/09/15","112/09/21","高雄市－楠梓區 ","否","","規劃取得綠建築標章之建築工程 "]
["306","高雄市政府 ","高雄市政府工務局新建工程處 ","無 ","「大林蒲遷村協力造屋作業(第一階段) 」委託技術服務 ","勞務","建築服務 ","12000000","11880000","112/09/08","112/09/14","高雄市－小港區 ","否","","非受中央政府補助比率逾工程建造經費百分之五十且補助經費達新臺幣一億元以上之個案公共工程 "]
["307","高雄市政府 ","高雄市政府工務局公園處 ","無 ","110年度全市鄰里公園及遊戲場新闢及改造工程委託規劃設計及監造技術服務案(開口契約)(第三標)-第1次後續擴充 ","勞務","工程服務 ","1360000","1360000","112/08/28","112/09/01","高雄市－全區 ","已依規定納入辦理節能減碳檢核 ","計畫提報核定階段納入辦理節能減碳檢核;規劃設計階段納入辦理節能減碳檢核 ",""]
["308","高雄市政府 ","高雄市政府工務局公園處 ","無 ","111年度高雄市公園土木等改善工程委託設計及監造服務案（開口契約）-第1次後續擴充契約變更 ","勞務","工程服務 ","2000000","2000000","112/08/15","112/09/28","高雄市－新興區,高雄市－前金區,高雄市－苓雅區,高雄市－鹽埕區,高雄市－鼓山區,高雄市－旗津區,高雄市－前鎮區,高雄市－三民區,高雄市－楠梓區,高雄市－小港區,高雄市－左營區 ","已依規定納入辦理節能減碳檢核 ","計畫提報核定階段納入辦理節能減碳檢核 ",""]
["309","高雄市政府 ","高雄市政府水利局 ","內政部營建署 ","鳳山溪污水區第五期第一標工程(I) ","工程","水道、海港、水壩及其他水利工程 ","155100000","155080000","112/09/27","112/09/28","高雄市－鳳山區 ","已依規定納入辦理節能減碳檢核 ","規劃設計階段納入辦理節能減碳檢核 ",""]
["310","高雄市政府 ","高雄市政府水利局 ","無 ","北屋排水系統上游整治工程設計監造技術服務案(開口契約)第3次變更 ","勞務","工程服務 ","3903368","3610615","112/09/12","112/09/13","高雄市－仁武區 ","否","","非受中央政府補助比率逾工程建造經費百分之五十且補助經費達新臺幣一億元以上之個案公共工程 "]
["311","高雄市政府 ","高雄市政府交通局 ","無 ","「111年度候車亭及集中式站牌等相關候車設施設置工程」委託規劃設計及監造技術服務(後續擴充) ","勞務","綜合工程服務 ","215871","215871","112/08/30","112/09/22","高雄市－全區 ","否","","非中央政府辦理新臺幣一億元以上之公共工程 "]
["312","高雄市政府 ","高雄市政府文化局 ","文化部 ","見城之道-南門廣場營造與東門銜接工程委託規劃設計案 ","勞務","工程服務 ","5527665","5527665","112/09/12","112/09/15","高雄市－左營區 ","已依規定納入辦理節能減碳檢核 ","規劃設計階段納入辦理節能減碳檢核 ",""]
["313","高雄市政府 ","高雄市政府文化局 ","無 ","「岡山運動中心興建工程」第一次契約變更 ","工程","健身用建築工程 ","224351294","223453889","112/09/05","112/09/08","高雄市－岡山區 ","否","","非中央政府辦理新臺幣一億元以上之公共工程,非受中央政府補助比率逾工程建造經費百分之五十且補助經費達新臺幣一億元以上之個案公共工程,規劃取得綠建築標章之建築工程 "]
["314","高雄市政府 ","高雄市政府文化局 ","無 ","112年駁二藝術特區場域設施改善工程委託規劃設計監造服務案 ","勞務","建築服務 ","313900","313900","112/09/21","112/09/23","高雄市－鹽埕區 ","否","","整修工程、拆除工程、疏濬工程、結構補強工程 "]
["315","高雄市政府 ","高雄市政府都市發展局 ","內政部 ","高雄市大樹區鄉村地區整體規劃案 ","勞務","都市計劃及景觀建築服務 ","4000000","3930000","112/09/20","112/09/21","高雄市－大樹區 ","否","","非受中央政府補助比率逾工程建造經費百分之五十且補助經費達新臺幣一億元以上之個案公共工程 "]
["316","高雄市政府 ","高雄市政府都市發展局 ","內政部營建署 ","112年度高雄市社區規劃師駐地輔導計畫 ","勞務","都市計劃及景觀建築服務 ","7500000","7430000","112/09/14","112/09/15","高雄市－全區 ","否","","非受中央政府補助比率逾工程建造經費百分之五十且補助經費達新臺幣一億元以上之個案公共工程 "]
["317","高雄市政府 ","高雄市政府都市發展局 ","無 ","「三民區新都段4、5地號土地」連續壁工程安全鑑定案 ","勞務","工程服務 ","1350000","1340000","112/09/19","112/09/20","高雄市－苓雅區,高雄市－三民區 ","否","","非中央政府辦理新臺幣一億元以上之公共工程 "]
["318","高雄市政府 ","高雄市政府捷運工程局 ","無 ","「高雄環狀輕軌捷運建設第二階段工程」第八次契約變更新增項目 ","工程","快速道路(不含高架快速道路), 街道, 馬路, 鐵路及機場跑道 ","389836194","388500000","112/08/16","112/09/13","高雄市－全區 ","否","","非中央政府辦理新臺幣一億元以上之公共工程 "]
["319","高雄市政府 ","高雄市政府觀光局 ","無 ","「高雄市內門觀光休閒園區新建工程」委託設計服務第二次變更契約 ","勞務","工程服務 ","2817306","2817306","112/09/01","112/09/08","高雄市－內門區 ","否","","規劃取得綠建築標章之建築工程 "]
["320","高雄市政府 ","高雄市政府海洋局 ","台灣電力股份有限公司興達發電廠 ","彌陀漁港海岸光廊照明設施更新工程委託設計及監造服務 ","勞務","工程服務 ","308700","300000","112/09/25","112/09/28","高雄市－彌陀區 ","否","","非中央政府辦理新臺幣一億元以上之公共工程,整修工程、拆除工程、疏濬工程、結構補強工程 "]
["321","高雄市政府 ","高雄市政府海洋局 ","農業部漁業署 ","112年興達漁港近海泊區浚深工程規劃設計工作 ","勞務","工程服務 ","2768000","2671120","112/09/05","112/09/20","高雄市－茄萣區 ","否","","整修工程、拆除工程、疏濬工程、結構補強工程 "]
["322","高雄市政府 ","高雄市政府海洋局 ","農業部漁業署 ","112年白砂崙漁港整體改建工程(第二期)規劃設計工作 ","勞務","工程服務 ","924000","907137","112/09/05","112/09/19","高雄市－茄萣區 ","否","","非受中央政府補助比率逾工程建造經費百分之五十且補助經費達新臺幣一億元以上之個案公共工程 "]
["323","高雄市政府 ","高雄市政府海洋局 ","農業部漁業署 ","112年興達漁港大發路南段安檢碼頭改善工程(第二期)委託監造服務 ","勞務","工程服務 ","1450000","1392000","112/09/18","112/09/19","高雄市－茄萣區 ","否","","非受中央政府補助比率逾工程建造經費百分之五十且補助經費達新臺幣一億元以上之個案公共工程 "]
["324","高雄市政府 ","高雄市政府海洋局 ","農業部漁業署 ","112年興達漁港近海泊區民權路南段碼頭改建工程規劃設計工作 ","勞務","工程服務 ","3400000","3281000","112/09/11","112/09/20","高雄市－茄萣區 ","否","","非受中央政府補助比率逾工程建造經費百分之五十且補助經費達新臺幣一億元以上之個案公共工程 "]
["325","高雄市政府 ","高雄市政府運動發展局 ","經濟部能源局 ","澄清湖棒球場整修工程 ","工程","健身用建築工程 ","120000000","118580000","112/09/22","112/09/27","高雄市－鳥松區 ","否","","非受中央政府補助比率逾工程建造經費百分之五十且補助經費達新臺幣一億元以上之個案公共工程 "]
["326","高雄市政府 ","高雄市甲仙區公所 ","文化部 ","112年度甲仙化石館漏水修繕工程委託設計監造案 ","勞務","工程服務 ","629000","629000","112/09/13","112/09/18","高雄市－甲仙區 ","否","","整修工程、拆除工程、疏濬工程、結構補強工程 "]
["327","高雄市政府 ","高雄市甲仙區公所 ","交通部觀光局 ","甲仙區阿凰臘森林步道營造計畫委託設計監造案-第二次擴充 ","勞務","工程服務 ","874300","874300","112/09/25","112/09/26","高雄市－甲仙區 ","否","","非中央政府辦理新臺幣一億元以上之公共工程 "]
["328","高雄市政府 ","高雄市茂林區公所 ","無 ","「111年度高雄市茂林區公所辦公廳舍及代表會拆除重建委託設計與監造案」(第一次)變更契約之議價會議 ","勞務","工程服務 ","280280","260000","112/08/31","112/09/06","高雄市－茂林區 ","否","","非中央政府辦理新臺幣一億元以上之公共工程,非受中央政府補助比率逾工程建造經費百分之五十且補助經費達新臺幣一億元以上之個案公共工程,整修工程、拆除工程、疏濬工程、結構補強工程 "]
["329","高雄市政府 ","高雄市那瑪夏區公所 ","原住民族委員會 ","那瑪夏區瑪雅部落巷道改善工程(第二期)-彩繪牆彩繪勞務案 ","勞務","建築服務 ","1470083","1450000","112/08/31","112/09/22","高雄市－那瑪夏區 ","否","","整修工程、拆除工程、疏濬工程、結構補強工程 "]
["330","國立故宮博物院 ","國立故宮博物院 ","無 ","南部院區主館建築外部鋼構塗裝改善工程委託監造技術服務 ","勞務","綜合工程服務 ","300000","296000","112/09/12","112/09/15","嘉義縣－太保 ","否","","非中央政府辦理新臺幣一億元以上之公共工程 "]
["331","國立故宮博物院 ","國立故宮博物院 ","無 ","南部院區大門動線及景觀設施優化工程委託設計及監造服務案 ","勞務","工程服務 ","494000","484718","112/09/15","112/09/19","嘉義縣－太保 ","否","","非中央政府辦理新臺幣一億元以上之公共工程 "]
["332","國防部 ","國防部 ","教育部體育署 ","海軍興夏營區新建工程規劃設計委託技術服務 ","勞務","綜合工程服務 ","43792915","43025791","112/08/30","112/09/06","南部地區－全區 ","否","","整修工程、拆除工程、疏濬工程、結構補強工程 "]
["333","國防部 ","國防部 ","無 ","國防醫學院三軍總醫院「汀州院區介壽大樓及內湖院區男醫護宿舍耐震能力補強工程委託規劃設計及監造技術服務」 ","勞務","綜合工程服務 ","13376536","13376536","112/08/29","112/09/04","北部地區－全區 ","否","","整修工程、拆除工程、疏濬工程、結構補強工程 "]
["334","國防部 ","國防部 ","無 ","左營基地及旗津營區生活用水改善工程 ","工程","其他土木工程 ","618721000","614790000","112/09/12","112/09/14","高雄市－旗津區,高雄市－左營區 ","否","","整修工程、拆除工程、疏濬工程、結構補強工程 "]
["335","國防部 ","國防部 ","無 ","新北市三芝及淡水新建工程 ","工程","其他用途建築工程 ","552898000","552328000","112/09/20","112/09/23","北部地區－全區 ","否","","整修工程、拆除工程、疏濬工程、結構補強工程 "]
["336","國防部 ","國防部 ","無 ","新北市萬里新建工程 ","工程","其他用途建築工程 ","127454000","127453999","112/09/20","112/09/28","新北市－萬里區 ","否","","整修工程、拆除工程、疏濬工程、結構補強工程 "]
["337","國防部 ","國防部軍醫局 ","無 ","112年房屋及設施修繕工程委託規劃設計及監造技術服務開口契約 ","勞務","建築服務 ","9000000","9000000","112/09/21","112/09/23","東部地區－全區 ","否","","整修工程、拆除工程、疏濬工程、結構補強工程 "]
["338","國防部 ","國防部陸軍司令部 ","無 ","戰場抗壓館新建工程委託專案管理暨監造技術服務 ","勞務","綜合工程服務 ","6704440","6704440","112/08/31","112/09/08","宜蘭縣－宜蘭 ","否","","規劃取得綠建築標章之建築工程 "]
["339","國防部 ","國防部陸軍司令部 ","無 ","油池掩體內消防管線改善工程委託設計服務案 ","勞務","綜合工程服務 ","789200","789200","112/08/24","112/09/08","澎湖縣－馬公 ","否","","整修工程、拆除工程、疏濬工程、結構補強工程 "]
["340","國防部 ","國防部海軍司令部 ","無 ","施工架搭設委商 ","勞務","綜合工程服務 ","4636800","4186000","112/09/13","112/09/26","宜蘭縣－蘇澳 ","否","","整修工程、拆除工程、疏濬工程、結構補強工程 "]
["341","國防部 ","國防部空軍司令部 ","無 ","廠房設施更新委商設計暨監造案 ","勞務","工程服務 ","2771000","2330000","112/08/31","112/09/14","屏東縣－屏東 ","否","","非中央政府辦理新臺幣一億元以上之公共工程,整修工程、拆除工程、疏濬工程、結構補強工程 "]
["342","國防部 ","國防醫學院 ","國防部軍醫局 ","IGRT設備新建工程可行性研究委託技術服務案 ","勞務","工程服務 ","1499999","1471100","112/09/21","112/09/25","離島地區－全區 ","否","","規劃取得綠建築標章之建築工程 "]
["343","國防部 ","國防醫學院 ","無 ","麥範德建築物拆除工程委託規畫設計、監造及拆除執照技術服務案 ","勞務","綜合工程服務 ","1370000","1219300","112/08/31","112/09/18","北部地區－全區 ","否","","整修工程、拆除工程、疏濬工程、結構補強工程 "]
["344","國防部 ","國防醫學院 ","無 "," 112~114 年度建築物公共安全檢查簽證及申報委託服務 ","勞務","建築服務 ","1454100","1364200","112/08/11","112/09/11","北部地區－全區 ","否","","非中央政府辦理新臺幣一億元以上之公共工程,非受中央政府補助比率逾工程建造經費百分之五十且補助經費達新臺幣一億元以上之個案公共工程 "]
["345","國防部 ","國防醫學院 ","無 ","三軍總醫院汀州院區113年電力系統汰換委託規劃設計及監造技術服務 ","勞務","工程服務 ","2500000","2500000","112/08/30","112/09/08","北部地區－全區 ","否","","整修工程、拆除工程、疏濬工程、結構補強工程 "]
["346","國防部 ","國防部政治作戰局 ","無 ","青年日報社建築物耐震補強工程技術服務(含監造) ","勞務","工程服務 ","2091647","1000000","112/08/30","112/09/14","臺北市－全區 ","否","","整修工程、拆除工程、疏濬工程、結構補強工程 "]
["347","國軍退除役官兵輔導委員會 ","國軍退除役官兵輔導委員會板橋榮譽國民之家 ","無 ","板橋榮民之家失智專區新建統包工程 ","工程","其他用途建築工程 ","683341860","683341860","112/09/19","112/09/21","新北市－板橋區 ","否","","規劃取得綠建築標章之建築工程 "]
["348","國軍退除役官兵輔導委員會 ","臺北榮民總醫院 ","無 ","新建醫療宿舍大樓床櫃書桌設置委託技術服務 ","勞務","工程服務 ","7385000","7385000","112/09/22","112/09/23","臺北市－北投區 ","否","","整修工程、拆除工程、疏濬工程、結構補強工程 "]
["349","國家科學及技術委員會 ","國家科學及技術委員會新竹科學園區管理局 ","無 ","宜蘭科學園區興建第三期標準廠房中長程個案計畫委託專業服務案 ","勞務","建築服務 ","1496250","1466000","112/09/14","112/09/19","宜蘭縣－宜蘭 ","否","","規劃取得綠建築標章之建築工程 "]
["350","基隆市政府 ","基隆市政府 ","行政院環境保護署 ","基隆市政府公廁修繕工程【委託設計監造】案 ","勞務","工程服務 ","826209","826209","112/09/22","112/09/22","基隆市－中正區 ","否","","非中央政府辦理新臺幣一億元以上之公共工程 "]
["351","基隆市政府 ","基隆市政府 ","無 ","(112)基隆市仁愛區龍安街332巷31之4號旁大排護岸復建工程委託監造服務案 ","勞務","工程服務 ","470444","460000","112/08/31","112/09/05","北部地區－全區 ","否","","災後緊急處理、搶修、搶險,災後原地復建 "]
["352","基隆市政府 ","基隆市政府 ","無 ","基隆市都市計畫平台 ","勞務","都市計劃及景觀建築服務 ","2500000","2490000","112/08/24","112/09/11","基隆市－全區 ","否","","非受中央政府補助比率逾工程建造經費百分之五十且補助經費達新臺幣一億元以上之個案公共工程 "]
["353","基隆市政府 ","基隆市政府 ","無 ","基隆市112年度都市更新自主更新輔導團 ","勞務","都市計劃及景觀建築服務 ","1000000","1000000","112/09/08","112/09/12","基隆市－全區 ","否","","非中央政府辦理新臺幣一億元以上之公共工程,非受中央政府補助比率逾工程建造經費百分之五十且補助經費達新臺幣一億元以上之個案公共工程 "]
["354","基隆市政府 ","基隆市政府 ","無 ","基隆市安樂一期國宅地區實質再發展構想暨6號基地劃定更新地區及訂定都市更新計畫 ","勞務","都市計劃及景觀建築服務 ","1000000","1000000","112/09/13","112/09/15","基隆市－全區 ","否","","非中央政府辦理新臺幣一億元以上之公共工程,非受中央政府補助比率逾工程建造經費百分之五十且補助經費達新臺幣一億元以上之個案公共工程 "]
["355","教育部 ","國立自然科學博物館 ","無 ","三四期空調系統汰換更新委託規劃設計監造 ","勞務","工程服務 ","15275256","15275256","112/08/29","112/09/04","臺中市－北區 ","已依規定納入辦理節能減碳檢核 ","規劃設計階段納入辦理節能減碳檢核 ",""]
["356","教育部 ","國立臺灣大學 ","無 ","國立臺灣大學竹北分部校門與周邊環境及進修推廣教育大樓新建工程委託技術服務勞務採購案第一次契約變更 ","勞務","建築服務 ","650000","650000","112/09/05","112/09/11","新竹縣－竹北 ","否","","規劃取得綠建築標章之建築工程 "]
["357","教育部 ","國立臺灣大學 ","無 ","人文館新建大樓公共空間與室內裝修工程(續) ","工程","教育用建築工程 ","160969590","160969590","112/08/24","112/09/04","臺北市－大安區 ","否","","規劃取得綠建築標章之建築工程 "]
["358","教育部 ","國立臺灣大學 ","無 ","文學院北側建築物監測案委託技術服務 ","勞務","建築服務 ","264600","250000","112/09/05","112/09/12","臺北市－大安區 ","否","","整修工程、拆除工程、疏濬工程、結構補強工程 "]
["359","教育部 ","國立臺灣大學 ","無 ","雲林分部學府東路停車場及太陽能基座工程規劃設計監造委託技術服務 ","勞務","建築服務 ","1470000","1470000","112/09/12","112/09/19","臺北市－大安區 ","否","","非中央政府辦理新臺幣一億元以上之公共工程 "]
["360","教育部 ","國立臺灣大學 ","無 ","化學系模鑄式變壓器汰換工程委託技術服務 ","勞務","工程服務 ","210000","210000","112/08/29","112/09/05","臺北市－大安區 ","否","","非中央政府辦理新臺幣一億元以上之公共工程 "]
["361","教育部 ","國立臺灣大學 ","無 ","國立臺灣大學研一舍地下室設置學生多功能生活學習空間暨輕食茶水間委託技術服務 ","勞務","建築服務 ","700000","682300","112/08/31","112/09/07","臺北市－大安區 ","否","","整修工程、拆除工程、疏濬工程、結構補強工程 "]
["362","教育部 ","國立臺灣大學 ","無 ","農藝系地下室整修工程委託技術服務 ","勞務","建築服務 ","171780","168000","112/08/31","112/09/07","臺北市－大安區 ","否","","整修工程、拆除工程、疏濬工程、結構補強工程 "]
["363","教育部 ","國立臺灣大學 ","無 ","小福樓補強工程委託技術服務 ","勞務","工程服務 ","641173","628000","112/09/05","112/09/07","臺北市－大安區 ","否","","整修工程、拆除工程、疏濬工程、結構補強工程 "]
["364","教育部 ","國立臺灣大學 ","無 ","國立臺灣大學管院三號館預定地文資價值評估 ","勞務","建築服務 ","1499000","1490000","112/09/14","112/09/20","臺北市－大安區 ","否","","非受中央政府補助比率逾工程建造經費百分之五十且補助經費達新臺幣一億元以上之個案公共工程 "]
["365","教育部 ","國立臺灣大學生物資源暨農學院實驗林管理處 ","無 ","溪頭自然教育園區神木旁建物補請使用執照委託技術服務 ","勞務","建築服務 ","900000","787800","112/08/17","112/09/06","南投縣－鹿谷 ","否","","整修工程、拆除工程、疏濬工程、結構補強工程 "]
["366","教育部 ","國立政治大學 ","無 ","國際大樓空調更新工程設計及監造勞務委任技術服務 ","勞務","工程服務 ","979917","930000","112/08/16","112/09/05","臺北市－文山區 ","否","","非中央政府辦理新臺幣一億元以上之公共工程 "]
["367","教育部 ","國立清華大學 ","無 ","112年旺宏館空調主系統預約式單價維護工程 ","勞務","工程服務 ","772494","740000","112/09/08","112/09/21","新竹市－東區 ","否","","非中央政府辦理新臺幣一億元以上之公共工程 "]
["368","教育部 ","國立成功大學醫學院附設醫院 ","無 ","沙崙醫療服務與創新園區第一階段(F區第一期)沙崙醫院新建工程委託辦理基本設計技術服務 ","勞務","建築服務 ","50675000","50168250","112/08/24","112/09/08","臺南市－北區,臺南市－歸仁區 ","已依規定納入辦理節能減碳檢核 ","規劃設計階段納入辦理節能減碳檢核 ",""]
["369","教育部 ","國立成功大學醫學院附設醫院 ","無 ","112年度空調設備汰換工程委託規劃設計監造技術服務 ","勞務","工程服務 ","2456942","2300000","112/08/15","112/09/01","臺南市－北區 ","否","","整修工程、拆除工程、疏濬工程、結構補強工程 "]
["370","教育部 ","國立中興大學 ","行政院 ","永續綠色科技大樓新建統包工程委託專案管理(含監造)技術服務 ","勞務","建築服務 ","22092705","21650851","112/09/05","112/09/06","南投縣－南投 ","已依規定納入辦理節能減碳檢核 ","規劃設計階段納入辦理節能減碳檢核 ",""]
["371","教育部 ","國立中興大學 ","行政院 ","運動體育活動區整修統包工程委託專案管理(含監造)技術服務 ","勞務","建築服務 ","18857885","18480727","112/09/05","112/09/06","南投縣－南投 ","已依規定納入辦理節能減碳檢核 ","規劃設計階段納入辦理節能減碳檢核 ",""]
["372","教育部 ","國立中興大學 ","行政院 ","昆蟲博物館新建統包工程委託專案管理(含監造)技術服務 ","勞務","建築服務 ","18441318","17888078","112/09/05","112/09/06","南投縣－南投 ","已依規定納入辦理節能減碳檢核 ","規劃設計階段納入辦理節能減碳檢核 ",""]
["373","教育部 ","國立中興大學 ","教育部 ","仁義禮智信宿舍區改造工程 委託設計監造技術服務 ","勞務","建築服務 ","5253364","5148297","112/08/29","112/09/07","臺中市－全區 ","否","","整修工程、拆除工程、疏濬工程、結構補強工程 "]
["374","教育部 ","國立臺灣科技大學 ","無 ","「學生二舍15樓裝修工程」委託設計監造技術服務 ","勞務","工程服務 ","962403","962403","112/09/19","112/09/22","臺北市－大安區 ","否","","整修工程、拆除工程、疏濬工程、結構補強工程 "]
["375","教育部 ","國立臺灣科技大學 ","無 ","第二、第四教學大樓及學人二、三舍發電機設備汰舊更新工程委託設計監造技術服務 ","勞務","工程服務 ","900090","880000","112/09/01","112/09/11","臺北市－大安區 ","否","","非中央政府辦理新臺幣一億元以上之公共工程,非受中央政府補助比率逾工程建造經費百分之五十且補助經費達新臺幣一億元以上之個案公共工程 "]
["376","教育部 ","國立善化高級中學 ","教育部 ","校園排水改善工程委託技術服務案 ","勞務","工程服務 ","263091","249936","112/09/25","112/09/28","臺南市－善化區 ","否","","非中央政府辦理新臺幣一億元以上之公共工程,非受中央政府補助比率逾工程建造經費百分之五十且補助經費達新臺幣一億元以上之個案公共工程,整修工程、拆除工程、疏濬工程、結構補強工程 "]
["377","教育部 ","國立花蓮高級中學 ","無 ","室外球場地面修繕工程設計監造勞務案 ","勞務","工程服務 ","320000","320000","112/09/19","112/09/26","花蓮縣－花蓮 ","否","","整修工程、拆除工程、疏濬工程、結構補強工程 "]
["378","教育部 ","國立基隆女子高級中學 ","無 ","老舊建築物粉刷工程委託規劃設計監造技術服務 ","勞務","工程服務 ","544361","489925","112/09/19","112/09/19","北部地區－全區 ","否","","整修工程、拆除工程、疏濬工程、結構補強工程 "]
["379","教育部 ","國立新竹女子高級中學 ","無 ","籃排球場整建工程委託規劃設計監造服務案 ","勞務","工程服務 ","563766","507390","112/09/05","112/09/11","新竹市－東區 ","否","","非受中央政府補助比率逾工程建造經費百分之五十且補助經費達新臺幣一億元以上之個案公共工程,整修工程、拆除工程、疏濬工程、結構補強工程 "]
["380","教育部 ","國立屏東女子高級中學 ","教育部國民及學前教育署 ","科教大樓外牆（屏女新村側及公園路側）整修工程委託設計監造技術服務採購 ","勞務","工程服務 ","228385","226101","112/09/20","112/09/22","屏東縣－屏東 ","否","","整修工程、拆除工程、疏濬工程、結構補強工程 "]
["381","教育部 ","國立屏東高級工業職業學校 ","教育部國民及學前教育署 ","中興樓耐震補強工程委託設計監造技術服務採購案 ","勞務","建築服務 ","809650","809650","112/09/26","112/09/28","屏東縣－全區 ","否","","整修工程、拆除工程、疏濬工程、結構補強工程 "]
["382","教育部 ","國立花蓮高級工業職業學校 ","教育部體育署 ","室外5人制足球場整建委託規劃設計及監造案 ","勞務","建築服務 ","509403","456567","112/09/26","112/09/26","花蓮縣－花蓮 ","否","","非中央政府辦理新臺幣一億元以上之公共工程 "]
["383","教育部 ","國立新營高級工業職業學校 ","內政部營建署 ","臺南市新營高工人行步道工程委託設計監造技術服務 ","勞務","工程服務 ","852600","724710","112/09/11","112/09/19","臺南市－新營區 ","否","","非中央政府辦理新臺幣一億元以上之公共工程,非受中央政府補助比率逾工程建造經費百分之五十且補助經費達新臺幣一億元以上之個案公共工程,整修工程、拆除工程、疏濬工程、結構補強工程 "]
["384","教育部 ","國立仁愛高級農業職業學校 ","教育部國民及學前教育署 ","112年卡努颱風災害復建工程委託規畫設計及監造服務 ","勞務","工程服務 ","401674","400000","112/09/06","112/09/06","南投縣－仁愛 ","否","","非中央政府辦理新臺幣一億元以上之公共工程,災後原地復建,整修工程、拆除工程、疏濬工程、結構補強工程 "]
["385","教育部 ","國立羅東高級商業職業學校 ","教育部國民及學前教育署 ","校園排水系統工程委託設計監造技術服務 ","勞務","建築服務 ","361176","350341","112/09/27","112/09/28","宜蘭縣－羅東 ","否","","整修工程、拆除工程、疏濬工程、結構補強工程 "]
["386","教育部 ","國立內埔高級農工職業學校 ","教育部 ","112年度生科館外牆等整修工程委託設計監造技術服務勞務採購案 ","勞務","建築服務 ","417890","412660","112/09/05","112/09/05","南部地區－全區 ","否","","非中央政府辦理新臺幣一億元以上之公共工程 "]
["387","教育部 ","國立白河高級商工職業學校 ","教育部國民及學前教育署 ","學生宿舍新建工程委託規劃設計監造技術服務 ","勞務","工程服務 ","2267467","2199443","112/09/22","112/09/26","臺南市－全區 ","否","","非中央政府辦理新臺幣一億元以上之公共工程,規劃取得綠建築標章之建築工程 "]
["388","教育部 ","國立白河高級商工職業學校 ","教育部國民及學前教育署 ","汙水及排水系統建置暨改善工程委託規劃設計監造技術服務 ","勞務","工程服務 ","293000","282779","112/09/22","112/09/26","臺南市－全區 ","否","","整修工程、拆除工程、疏濬工程、結構補強工程 "]
["389","教育部 ","國立員林高級家事商業職業學校 ","教育部國民及學前教育署 ","112年度員林家商非營利幼兒園整建工程委託規劃設計監造案 ","勞務","工程服務 ","194446","192502","112/09/06","112/09/15","彰化縣－全區 ","否","","非受中央政府補助比率逾工程建造經費百分之五十且補助經費達新臺幣一億元以上之個案公共工程 "]
["390","教育部 ","國立臺南大學附屬高級中學 ","無 ","112年配合厚生樓拆除重建第一階段搬遷作業冷氣採購共約單號(D20230707000030)增額附加項安裝 ","勞務","工程服務 ","225200","223000","112/08/31","112/09/11","臺南市－永康區 ","否","","非中央政府辦理新臺幣一億元以上之公共工程 "]
["391","教育部 ","國立金門大學 ","無 ","112年度校園零星公共設施工程委託技術服務 ","勞務","工程服務 ","1403100","1403100","112/09/23","112/09/27","離島地區－全區 ","否","","非中央政府辦理新臺幣一億元以上之公共工程 "]
["392","教育部 ","國家教育研究院 ","無 ","112年三峽總院區大門口石英地磚改善工程委託設計及監造技術服務 ","勞務","工程服務 ","356167","334768","112/09/27","112/09/27","新北市－三峽區 ","否","","非中央政府辦理新臺幣一億元以上之公共工程,非受中央政府補助比率逾工程建造經費百分之五十且補助經費達新臺幣一億元以上之個案公共工程 "]
["393","教育部 ","國立高雄科技大學 ","無 ","第一校區行政大樓學務處場域整修工程委託規劃設計及監造技術服務(採購擴充契約變更) ","勞務","建築服務 ","95300","93394","112/09/06","112/09/19","高雄市－燕巢區 ","否","","整修工程、拆除工程、疏濬工程、結構補強工程 "]
["394","教育部 ","國立高雄科技大學 ","無 ","高雄市歷史建築「原高雄工專北棟教學大樓」修復工程 ","工程","教育用建築工程 ","115164233","114588000","112/08/09","112/09/07","高雄市－三民區 ","否","","整修工程、拆除工程、疏濬工程、結構補強工程 "]
["395","教育部 ","國立陽明交通大學 ","無 ","博愛校區公共設施系統整體規劃委託技術服務 ","勞務","工程服務 ","3000000","3000000","112/09/27","112/09/28","新竹市－東區 ","否","","非中央政府辦理新臺幣一億元以上之公共工程 "]
["396","教育部 ","國立陽明交通大學附設醫院 ","行政院 ","第二期醫療大樓興建工程 ","工程","其他用途建築工程 ","3770000000","3770000000","112/09/06","112/09/08","宜蘭縣－宜蘭 ","否","","規劃取得綠建築標章之建築工程 "]
["397","教育部 ","國立卓蘭高級中等學校 ","無 ","112至113年度補助校園周邊暨行車安全道路改善計畫委託設計監造案 ","勞務","工程服務 ","435161","426458","112/09/15","112/09/27","苗栗縣－卓蘭 ","否","","整修工程、拆除工程、疏濬工程、結構補強工程 "]
["398","教育部 ","國立南投特殊教育學校 ","教育部體育署 ","「國立南投特殊教育學校112年度運動操場及周邊設施整建工程案」規劃、設計及監造技術服務案 ","勞務","工程服務 ","315533","302912","112/09/25","112/09/27","南投縣－南投 ","否","","非受中央政府補助比率逾工程建造經費百分之五十且補助經費達新臺幣一億元以上之個案公共工程 "]
["399","連江縣政府 ","連江縣自來水廠 ","經濟部水利署 ","馬祖地區海水淡化廠委託代操作營運（113年至116年） ","勞務","綜合工程服務 ","282130254","276200000","112/08/23","112/09/06","連江縣－全區 ","否","","非中央政府辦理新臺幣一億元以上之公共工程 "]
["400","勞動部 ","勞動部 ","無 ","志清大樓屋頂防水、女兒牆新設及地下室油漆工程委託專案管理(含監造)技術服務案 ","勞務","建築服務 ","932830","923502","112/09/08","112/09/27","臺北市－全區 ","否","","整修工程、拆除工程、疏濬工程、結構補強工程 "]
["401","勞動部 ","勞動部勞動力發展署北基宜花金馬分署 ","無 ","北基宜花金馬區銀髮人才資源中心室內裝修工程委託規劃設計監造技術服務案 ","勞務","工程服務 ","512752","484551","112/09/04","112/09/18","新北市－中和區 ","否","","整修工程、拆除工程、疏濬工程、結構補強工程 "]
["402","雲林縣政府 ","雲林縣政府 ","交通部公路總局、經濟部水利署 ","縣道145甲線崙子大橋改建拓寬工程 ","工程","橋樑, 高架快速道路, 隧道及地鐵 ","920352664","920350000","112/09/13","112/09/18","雲林縣－元長 ","否","","為公共工程節能減碳檢核注意事項公布前核定案件"]
["403","雲林縣政府 ","雲林縣政府 ","無 ","112年度農地重劃區農水路改善工程委託設計及監造服務 ","勞務","工程服務 ","13491360","13491360","112/07/19","112/09/15","雲林縣－全區 ","否","","整修工程、拆除工程、疏濬工程、結構補強工程 "]
["404","雲林縣政府 ","雲林縣政府 ","無 ","工湖路道路拓寬工程委託規劃設計監造等工作 ","勞務","工程服務 ","6148624","6148624","112/09/19","112/09/20","雲林縣－斗六 ","否","","非中央政府辦理新臺幣一億元以上之公共工程 "]
["405","雲林縣政府 ","雲林縣政府 ","無 ","雲林縣海新橋等6座橋梁改建工程委託規劃設計監造等工作 ","勞務","工程服務 ","15189480","15189480","112/09/15","112/09/18","雲林縣－全區 ","已依規定納入辦理節能減碳檢核 ","規劃設計階段納入辦理節能減碳檢核 ",""]
["406","雲林縣政府 ","雲林縣政府 ","無 ","雲林縣斗六市龍潭段565地號等11筆地號評估案 ","勞務","都市計劃及景觀建築服務 ","2000000","2000000","112/09/19","112/09/20","雲林縣－斗六 ","否","","非中央政府辦理新臺幣一億元以上之公共工程,非受中央政府補助比率逾工程建造經費百分之五十且補助經費達新臺幣一億元以上之個案公共工程 "]
["407","雲林縣政府 ","雲林縣政府 ","經濟部水利署 ","雲林縣管區域排水羊稠厝大排系統(飛沙大排、外埔大排、內湖大排)治理計畫 ","勞務","工程服務 ","4500000","4445000","112/09/06","112/09/08","雲林縣－全區 ","否","","非中央政府辦理新臺幣一億元以上之公共工程,非受中央政府補助比率逾工程建造經費百分之五十且補助經費達新臺幣一億元以上之個案公共工程 "]
["408","雲林縣政府 ","雲林縣政府 ","農業部農田水利署 ","112年度農地重劃區緊急農水路改善工程委託設計監造及早期農地重劃區農水路更新改善工程監造服務 ","勞務","工程服務 ","9140106","9140106","112/08/30","112/09/15","雲林縣－全區 ","否","","整修工程、拆除工程、疏濬工程、結構補強工程 "]
["409","雲林縣政府 ","雲林縣消防局 ","內政部消防署 ","「雲林縣消防局消防廳舍內部設施改善2年中程計畫」之工程委託規劃設計監造服務案 ","勞務","建築服務 ","2205100","1756835","112/09/12","112/09/18","雲林縣－全區 ","否","","非中央政府辦理新臺幣一億元以上之公共工程,非受中央政府補助比率逾工程建造經費百分之五十且補助經費達新臺幣一億元以上之個案公共工程 "]
["410","雲林縣政府 ","雲林縣斗南鎮公所 ","內政部營建署 ","雲林縣斗南鎮文安國小校園通學暨周邊路口安全改善計畫委託設計監造技術服務 ","勞務","工程服務 ","5014452","4864018","112/08/31","112/09/12","雲林縣－斗南 ","否","","非受中央政府補助比率逾工程建造經費百分之五十且補助經費達新臺幣一億元以上之個案公共工程 "]
["411","雲林縣政府 ","雲林縣斗南鎮公所 ","內政部營建署 ","雲林縣斗南鎮斗南國小校園周邊暨行車安全道路改善計畫委託設計監造技術服務 ","勞務","工程服務 ","2574594","2471610","112/08/31","112/09/12","雲林縣－斗南 ","否","","非受中央政府補助比率逾工程建造經費百分之五十且補助經費達新臺幣一億元以上之個案公共工程 "]
["412","雲林縣政府 ","雲林縣斗南鎮公所 ","內政部營建署 ","雲林縣斗南鎮僑真國民小學校園周邊暨行車安全道路改善計畫委託設計監造技術服務 ","勞務","工程服務 ","1818784","1618718","112/08/31","112/09/12","雲林縣－斗南 ","否","","非受中央政府補助比率逾工程建造經費百分之五十且補助經費達新臺幣一億元以上之個案公共工程 "]
["413","雲林縣政府 ","雲林縣虎尾鎮公所 ","雲林縣政府 ","虎尾鎮和平路等鋪面改善工程委託技術服務 ","勞務","工程服務 ","245832","242000","112/07/25","112/09/12","雲林縣－虎尾 ","否","","整修工程、拆除工程、疏濬工程、結構補強工程 "]
["414","雲林縣政府 ","雲林縣虎尾鎮公所 ","雲林縣政府 ","虎尾鎮墾地里海墘厝段路面改善工程委託技術服務 ","勞務","工程服務 ","485100","482000","112/08/17","112/09/12","雲林縣－虎尾 ","否","","整修工程、拆除工程、疏濬工程、結構補強工程 "]
["415","雲林縣政府 ","雲林縣莿桐鄉公所 ","雲林縣政府 ","雲林縣莿桐鄉老人會日托中心環境改善工程委託規劃設計監造技術服務案 ","勞務","工程服務 ","311430","293337","112/09/01","112/09/04","雲林縣－莿桐 ","否","","整修工程、拆除工程、疏濬工程、結構補強工程 "]
["416","雲林縣政府 ","雲林縣麥寮鄉公所 ","無 ","麥寮鄉立社教圖書館室內裝修工程委託設計監造 ","勞務","工程服務 ","1650000","1526250","112/09/05","112/09/19","雲林縣－麥寮 ","否","","非中央政府辦理新臺幣一億元以上之公共工程,非受中央政府補助比率逾工程建造經費百分之五十且補助經費達新臺幣一億元以上之個案公共工程 "]
["417","雲林縣政府 ","雲林縣四湖鄉公所 ","雲林縣政府 ","四湖鄉三姓村廣播系統設置計畫等五件設置計畫案委託規劃設計監造服務 ","勞務","工程服務 ","239928","239928","112/08/28","112/09/15","雲林縣－四湖 ","否","","非受中央政府補助比率逾工程建造經費百分之五十且補助經費達新臺幣一億元以上之個案公共工程 "]
["418","雲林縣政府 ","雲林縣口湖鄉公所 ","雲林縣政府 ","口湖鄉海口故事園區改善工程委託設計監造 ","勞務","工程服務 ","455700","451143","112/09/27","112/09/27","雲林縣－口湖 ","否","","非中央政府辦理新臺幣一億元以上之公共工程 "]
["419","雲林縣政府 ","雲林縣水林鄉公所 ","無 ","水林鄉公所清潔隊資源回收貯存場暨細分類場興建計畫委託規劃設計技術服務【第一次契約變更】 ","勞務","建築服務 ","780000","772000","112/08/10","112/09/04","雲林縣－水林 ","否","","規劃取得綠建築標章之建築工程 "]
["420","雲林縣政府 ","雲林縣立建國國民中學 ","教育部國民及學前教育署、雲林縣政府 ","建國國中明道館辦理公立國民中小學老舊廁所整修工程計畫委託設計監造技術服務 ","勞務","建築服務 ","219374","219374","112/09/25","112/09/27","雲林縣－北港 ","否","","整修工程、拆除工程、疏濬工程、結構補強工程 "]
["421","雲林縣政府 ","雲林縣立臺西國民中學 ","教育部國民及學前教育署、雲林縣政府 ","台西國中活動中心及技藝大樓老舊廁所整修工程委託設計監造服務 ","勞務","建築服務 ","437751","437751","112/09/26","112/09/28","雲林縣－臺西 ","否","","整修工程、拆除工程、疏濬工程、結構補強工程 "]
["422","雲林縣政府 ","雲林縣立飛沙國民中學 ","教育部國民及學前教育署 ","111年度飛沙國中老舊校舍拆除重建工程 ","工程","教育用建築工程 ","165807828","165000000","112/09/21","112/09/25","雲林縣－四湖 ","否","","規劃取得綠建築標章之建築工程 "]
["423","雲林縣政府 ","雲林縣立宜梧國民中學 ","教育部 ","112年度宜梧國中老舊廁所整修工程委託設計監造技術服務 ","勞務","工程服務 ","189469","189469","112/09/15","112/09/18","中部地區－全區 ","否","","整修工程、拆除工程、疏濬工程、結構補強工程 "]
["424","雲林縣政府 ","雲林縣立馬光國民中學 ","教育部國民及學前教育署 ","112年教學大樓廁所整修工程設計監造 ","勞務","建築服務 ","410634","410634","112/09/20","112/09/26","雲林縣－土庫 ","否","","非中央政府辦理新臺幣一億元以上之公共工程,整修工程、拆除工程、疏濬工程、結構補強工程 "]
["425","雲林縣政府 ","雲林縣斗六市久安國民小學 ","雲林縣政府 ","「112-113年度校園社區化改造計畫- 設置學校社區共讀站」計畫委託規劃設計監造服務案 ","勞務","工程服務 ","206375","206375","112/09/01","112/09/01","雲林縣－全區 ","否","","非中央政府辦理新臺幣一億元以上之公共工程,非受中央政府補助比率逾工程建造經費百分之五十且補助經費達新臺幣一億元以上之個案公共工程 "]
["426","雲林縣政府 ","雲林縣虎尾鎮虎尾國民小學 ","雲林縣政府 ","雲林縣滑輪溜冰場新建計畫委託規劃設計監造技術服務 ","勞務","建築服務 ","5169253","5169253","112/08/30","112/09/01","雲林縣－虎尾 ","否","","規劃取得綠建築標章之建築工程 "]
["427","新北市政府 ","新北市立永平高級中學 ","新北市政府教育局 ","永平高中美術班特色招生甄選入學術科測驗闈場工程 委託技術服務 ","勞務","工程服務 ","291635","291635","112/09/01","112/09/11","新北市－永和區 ","否","","非受中央政府補助比率逾工程建造經費百分之五十且補助經費達新臺幣一億元以上之個案公共工程 "]
["428","新北市政府 ","新北市立海山高級中學 ","教育部體育署 ","新北市立海山高級中學112年度游泳池整建維修工程委託技術服務 ","勞務","工程服務 ","301698","301698","112/09/01","112/09/04","北部地區－全區 ","否","","整修工程、拆除工程、疏濬工程、結構補強工程 "]
["429","新北市政府 ","新北市立中和高級中學 ","新北市政府教育局 ","戶外籃排球場整修工程委託技術服務 ","勞務","建築服務 ","467589","467000","112/09/21","112/09/22","新北市－中和區 ","否","","整修工程、拆除工程、疏濬工程、結構補強工程 "]
["430","新北市政府 ","新北市立中和國民中學 ","新北市政府教育局 ","新北市立中和國民中學112學年度忠孝樓老舊廁所整修工程委託規劃設計監造技術服務案 ","勞務","建築服務 ","329696","313211","112/09/15","112/09/25","新北市－中和區 ","否","","非中央政府辦理新臺幣一億元以上之公共工程,整修工程、拆除工程、疏濬工程、結構補強工程 "]
["431","新北市政府 ","新北市立五峰國民中學 ","教育部國民及學前教育署 ","新北市立五峰國中信義樓廁所整修工程委託技術服務 ","勞務","建築服務 ","180692","180692","112/09/08","112/09/11","新北市－新店區 ","否","","非受中央政府補助比率逾工程建造經費百分之五十且補助經費達新臺幣一億元以上之個案公共工程,整修工程、拆除工程、疏濬工程、結構補強工程 "]
["432","新北市政府 ","新北市立土城國民中學 ","教育部國民及學前教育署 ","112年公立國民中小學老舊廁所整修工程委託技術服務 ","勞務","工程服務 ","422990","418760","112/09/13","112/09/15","北部地區－全區 ","否","","整修工程、拆除工程、疏濬工程、結構補強工程 "]
["433","新北市政府 ","新北市立土城國民中學 ","新北市政府教育局 ","113學年附設幼兒園增班工程委託技術服務 ","勞務","工程服務 ","558828","547651","112/09/12","112/09/13","北部地區－全區 ","否","","規劃取得綠建築標章之建築工程 "]
["434","新北市政府 ","新北市立萬里國民中學 ","教育部 ","112年度萬里國民中學運動操場及周邊設施整修工程委託設計暨監造技術服務案 ","勞務","工程服務 ","750861","750861","112/09/27","112/09/27","新北市－萬里區 ","否","","整修工程、拆除工程、疏濬工程、結構補強工程 "]
["435","新北市政府 ","新北市立積穗國民中學 ","教育部體育署、新北市政府教育局 ","綜合球場整修工程委託技術服務 ","勞務","工程服務 ","613199","613199","112/09/26","112/09/27","新北市－中和區 ","否","","非中央政府辦理新臺幣一億元以上之公共工程,非受中央政府補助比率逾工程建造經費百分之五十且補助經費達新臺幣一億元以上之個案公共工程 "]
["436","新北市政府 ","新北市立積穗國民中學 ","新北市政府教育局 ","113學年度積穗非營利幼兒園增班工程委託技術服務 ","勞務","建築服務 ","833965","833965","112/09/27","112/09/27","新北市－中和區 ","否","","非中央政府辦理新臺幣一億元以上之公共工程,非受中央政府補助比率逾工程建造經費百分之五十且補助經費達新臺幣一億元以上之個案公共工程 "]
["437","新北市政府 ","新北市立江翠國民中學 ","新北市政府教育局 ","112年度游泳池設施改善工程委託技術服務 ","勞務","工程服務 ","158237","158237","112/09/05","112/09/07","新北市－板橋區 ","否","","整修工程、拆除工程、疏濬工程、結構補強工程 "]
["438","新北市政府 ","新北市立中山國民中學 ","教育部國民及學前教育署 ","新北市立中山國民中學至美樓教室廁所整修工程委託技術服務 ","勞務","工程服務 ","600255","600255","112/09/18","112/09/19","新北市－板橋區 ","否","","非中央政府辦理新臺幣一億元以上之公共工程,整修工程、拆除工程、疏濬工程、結構補強工程 "]
["439","新北市政府 ","新北市立溪崑國民中學 ","教育部國民及學前教育署 ","迎曦樓西側暨活動中心廁所整修工程委託技術服務 ","勞務","工程服務 ","745492","745492","112/09/20","112/09/22","新北市－板橋區 ","否","","非中央政府辦理新臺幣一億元以上之公共工程,非受中央政府補助比率逾工程建造經費百分之五十且補助經費達新臺幣一億元以上之個案公共工程 "]
["440","新北市政府 ","新北市立自強國民中學 ","教育部國民及學前教育署 ","112年度晨曦樓廁所整修工程委託技術服務 ","勞務","工程服務 ","367103","367103","112/09/08","112/09/13","新北市－中和區 ","否","","整修工程、拆除工程、疏濬工程、結構補強工程 "]
["441","新北市政府 ","新北市立自強國民中學 ","新北市政府教育局、教育部國民及學前教育署 ","112年度萌學樓老舊烹飪教室暨電腦教室地板改善工程委託技術服務 ","勞務","工程服務 ","278489","278489","112/09/22","112/09/27","新北市－中和區 ","否","","整修工程、拆除工程、疏濬工程、結構補強工程 "]
["442","新北市政府 ","新北市板橋區後埔國民小學 ","新北市政府教育局 ","後埔國小光明樓老舊廁所整修工程委託技術服務 ","勞務","建築服務 ","643281","643281","112/08/30","112/09/01","新北市－板橋區 ","已依規定納入辦理節能減碳檢核 ","規劃設計階段納入辦理節能減碳檢核 ",""]
["443","新北市政府 ","新北市鶯歌區鶯歌國民小學 ","教育部體育署、新北市政府教育局 ","112年新北市鶯歌國小網球場地坪整修工程委託規畫設計監造服務 ","勞務","建築服務 ","282681","282681","112/09/22","112/09/23","北部地區－全區 ","否","","非中央政府辦理新臺幣一億元以上之公共工程,整修工程、拆除工程、疏濬工程、結構補強工程 "]
["444","新北市政府 ","新北市鶯歌區二橋國民小學 ","新北市政府教育局 ","112年度操場中央草皮整修工程委託技術服務 ","勞務","工程服務 ","191784","191784","112/08/29","112/09/08","新北市－鶯歌區 ","否","","非中央政府辦理新臺幣一億元以上之公共工程 "]
["445","新北市政府 ","新北市三峽區大成國民小學 ","新北市政府教育局 ","前棟大樓(一、二樓)補辦使用執照 ","勞務","建築服務 ","364140","364140","112/09/13","112/09/19","新北市－三峽區 ","否","","非中央政府辦理新臺幣一億元以上之公共工程,非受中央政府補助比率逾工程建造經費百分之五十且補助經費達新臺幣一億元以上之個案公共工程,整修工程、拆除工程、疏濬工程、結構補強工程 "]
["446","新北市政府 ","新北市新莊區新莊國民小學 ","教育部國民及學前教育署、新北市政府 ","迎曦樓、科學館廁所整修工程委託技術服務 ","勞務","建築服務 ","853023","853023","112/09/14","112/09/14","新北市－新莊區 ","否","","非中央政府辦理新臺幣一億元以上之公共工程,非受中央政府補助比率逾工程建造經費百分之五十且補助經費達新臺幣一億元以上之個案公共工程,整修工程、拆除工程、疏濬工程、結構補強工程 "]
["447","新北市政府 ","新北市新莊區頭前國民小學 ","新北市政府教育局 ","千禧樓廁所整修工程委託技術服務 ","勞務","工程服務 ","649697","649697","112/09/05","112/09/12","北部地區－全區 ","否","","非中央政府辦理新臺幣一億元以上之公共工程 "]
["448","新北市政府 ","新北市三重區二重國民小學 ","教育部 ","112年度跑道及綜合球場地坪整修工程委託技術服務 ","勞務","工程服務 ","1034155","1034155","112/09/15","112/09/15","新北市－三重區 ","否","","整修工程、拆除工程、疏濬工程、結構補強工程 "]
["449","新北市政府 ","新北市五股區五股國民小學 ","教育部國民及學前教育署 ","新北市五股區五股國民小學老舊廁所(晨光樓乙)整修工程委託技術服務 ","勞務","建築服務 ","375804","375804","112/09/15","112/09/15","新北市－五股區 ","否","","非中央政府辦理新臺幣一億元以上之公共工程 "]
["450","新北市政府 ","新北市林口區興福國民小學 ","新北市政府教育局 ","112年永續生態農場改造計畫 ","勞務","都市計劃及景觀建築服務 ","400000","400000","112/09/07","112/09/14","新北市－林口區 ","否","","非中央政府辦理新臺幣一億元以上之公共工程,整修工程、拆除工程、疏濬工程、結構補強工程 "]
["451","新北市政府 ","新北市板橋區國光國民小學 ","新北市政府教育局 ","「綜合運動場地坪改善計畫工程委託技術服務」採購案—後續擴充 ","勞務","工程服務 ","183373","183373","112/09/12","112/09/12","新北市－板橋區 ","否","","非中央政府辦理新臺幣一億元以上之公共工程 "]
["452","新北市政府 ","新北市板橋區莒光國民小學 ","教育部國民及學前教育署 ","莒光國小初晴樓廁所整修工程委託技術服務 ","勞務","建築服務 ","506455","506455","112/09/14","112/09/18","新北市－板橋區 ","否","","非中央政府辦理新臺幣一億元以上之公共工程,非受中央政府補助比率逾工程建造經費百分之五十且補助經費達新臺幣一億元以上之個案公共工程,整修工程、拆除工程、疏濬工程、結構補強工程 "]
["453","新北市政府 ","新北市中和區景新國民小學 ","新北市政府教育局 ","112年度新北市中和區景新國民小學學校運動操場及周邊設施整建工程委託規畫設計監造技術服務採購案 ","勞務","工程服務 ","613285","613285","112/09/06","112/09/06","北部地區－全區 ","否","","非中央政府辦理新臺幣一億元以上之公共工程,整修工程、拆除工程、疏濬工程、結構補強工程 "]
["454","新北市政府 ","新北市新莊區昌隆國民小學 ","新北市政府教育局 ","112年度問思樓廁所整修工程委託技術服務 ","勞務","工程服務 ","447005","447005","112/09/14","112/09/18","新北市－新莊區 ","否","","非中央政府辦理新臺幣一億元以上之公共工程,整修工程、拆除工程、疏濬工程、結構補強工程 "]
["455","新北市政府 ","新北市板橋區文德國民小學 ","新北市政府教育局 ","文德國小四維樓廁所整修工程委託技術服務 ","勞務","工程服務 ","587444","587444","112/09/20","112/09/21","新北市－板橋區 ","否","","整修工程、拆除工程、疏濬工程、結構補強工程 "]
["456","新北市政府 ","新北市林口區麗園國民小學 ","教育部 ","112年度新北市立麗園國民小學「學校運動操場整建工程」委託技術服務 ","勞務","綜合工程服務 ","695371","695371","112/08/31","112/09/13","新北市－林口區 ","否","","非中央政府辦理新臺幣一億元以上之公共工程,非受中央政府補助比率逾工程建造經費百分之五十且補助經費達新臺幣一億元以上之個案公共工程,整修工程、拆除工程、疏濬工程、結構補強工程 "]
["457","新北市政府 ","新北市汐止區汐止國民小學 ","新北市政府教育局 ","112年度汐止國小學校運動場跑道整建工程委託技術服務 ","勞務","工程服務 ","539879","539879","112/09/01","112/09/04","新北市－汐止區 ","否","","非中央政府辦理新臺幣一億元以上之公共工程,整修工程、拆除工程、疏濬工程、結構補強工程 "]
["458","新北市政府 ","新北市汐止區秀峰國民小學 ","新北市政府教育局 ","112年品秀樓老舊廁所整修工程委託技術服務 ","勞務","綜合工程服務 ","497561","497561","112/09/07","112/09/08","新北市－汐止區 ","否","","整修工程、拆除工程、疏濬工程、結構補強工程 "]
["459","新北市政府 ","新北市汐止區金龍國民小學 ","新北市政府教育局 ","112年勵志樓右側老舊廁所整修工程委託技術服務勞務採購 ","勞務","建築服務 ","274666","274666","112/08/30","112/09/04","新北市－汐止區 ","否","","非中央政府辦理新臺幣一億元以上之公共工程 "]
["460","新北市政府 ","新北市樹林區文林國民小學 ","新北市政府教育局 ","活動中心地坪改善工程委託技術服務 ","勞務","工程服務 ","227644","227644","112/09/06","112/09/11","北部地區－全區 ","否","","非中央政府辦理新臺幣一億元以上之公共工程 "]
["461","新北市政府 ","新北市鶯歌區昌福國民小學 ","教育部體育署 ","112年昌福國小太陽能光電球場地坪整建工程委託設計監造採購 ","勞務","工程服務 ","291905","291905","112/09/20","112/09/26","新北市－全區 ","否","","非中央政府辦理新臺幣一億元以上之公共工程 "]
["462","新北市政府 ","新北市蘆洲區忠義國民小學 ","新北市政府教育局 ","新北市蘆洲區忠義國民小學112學年度廁所改善工程委託技術服務 ","勞務","工程服務 ","528866","528866","112/09/13","112/09/18","北部地區－全區 ","否","","非中央政府辦理新臺幣一億元以上之公共工程 "]
["463","新北市政府 ","新北市政府採購處 ","無 ","永和區永平國小（操場）停車場新建統包工程 ","工程","其他用途建築工程 ","1464520859","1464520859","112/09/15","112/09/25","新北市－永和區 ","否","","規劃取得綠建築標章之建築工程 "]
["464","新北市政府 ","新北市政府採購處 ","無 ","112年新北市受理民間申請示範街道環境改善計畫委託規劃設計監造案 ","勞務","綜合工程服務 ","1469501","1444519","112/08/28","112/09/13","新北市－全區 ","否","","非中央政府辦理新臺幣一億元以上之公共工程 "]
["465","新北市政府 ","新北市政府採購處 ","新北市政府教育局、教育部國民及學前教育署 ","新北市立板橋國民中學校舍改建暨增設新月旗艦型幼兒園興建工程 ","工程","教育用建築工程 ","414787439","414700000","112/08/24","112/09/01","新北市－板橋區 ","否","","非受中央政府補助比率逾工程建造經費百分之五十且補助經費達新臺幣一億元以上之個案公共工程,規劃取得綠建築標章之建築工程 "]
["466","新北市政府 ","新北市政府養護工程處 ","無 ","112年度新北市轄內道路品質提升工程委託監造服務案(第B區) (第一次契約變更) ","勞務","工程服務 ","545892","545892","112/09/05","112/09/08","新北市－三重區,新北市－新莊區,新北市－泰山區,新北市－林口區,新北市－蘆洲區,新北市－五股區,新北市－八里區,新北市－淡水區,新北市－三芝區 ","否","","非中央政府辦理新臺幣一億元以上之公共工程,非受中央政府補助比率逾工程建造經費百分之五十且補助經費達新臺幣一億元以上之個案公共工程 "]
["467","新北市政府 ","新北市政府養護工程處 ","無 ","112年度新北市轄內道路品質提升工程委託監造服務案(第C區) (第一次契約變更) ","勞務","工程服務 ","228599","228599","112/09/06","112/09/08","新北市－萬里區,新北市－金山區,新北市－汐止區,新北市－石碇區,新北市－瑞芳區,新北市－平溪區,新北市－雙溪區,新北市－貢寮區,新北市－坪林區,新北市－石門區 ","否","","非中央政府辦理新臺幣一億元以上之公共工程,非受中央政府補助比率逾工程建造經費百分之五十且補助經費達新臺幣一億元以上之個案公共工程 "]
["468","新北市政府 ","新北市立仁愛之家 ","無 ","112年安養區院民院舍屋頂整修工程委託設計監造技術服務 ","勞務","建築服務 ","500423","500423","112/09/19","112/09/19","新北市－萬里區 ","否","","非中央政府辦理新臺幣一億元以上之公共工程,非受中央政府補助比率逾工程建造經費百分之五十且補助經費達新臺幣一億元以上之個案公共工程,整修工程、拆除工程、疏濬工程、結構補強工程 "]
["469","新北市政府 ","新北市政府衛生局 ","無 ","新北市八里區衛生所外牆防水暨室內修繕工程委託規劃設計暨監造技術服務 ","勞務","工程服務 ","319469","312121","112/08/25","112/09/07","新北市－全區 ","否","","整修工程、拆除工程、疏濬工程、結構補強工程 "]
["470","新北市政府 ","新北市政府地政局 ","無 ","新北市新、泰塭仔圳地區第2區市地重劃開發工程第1次契約變更 ","工程","其他土木工程 ","133296127","132200000","112/08/18","112/09/12","新北市－新莊區,新北市－泰山區 ","否","","非中央政府辦理新臺幣一億元以上之公共工程 "]
["471","新北市政府 ","新北市政府地政局 ","無 ","新北市新、泰塭仔圳地區第2區市地重劃開發工程第1次契約變更 ","工程","其他土木工程 ","141936022","141936022","112/08/18","112/09/12","新北市－新莊區,新北市－泰山區 ","否","","非中央政府辦理新臺幣一億元以上之公共工程 "]
["472","新北市政府 ","新北市政府市場處 ","無 ","111年度新北市公有零售市場建築物公共安全檢查簽證及申報-第3次契約變更 ","勞務","建築服務 ","279000","279000","112/09/20","112/09/26","新北市－全區 ","否","","非中央政府辦理新臺幣一億元以上之公共工程 "]
["473","新北市政府 ","新北市政府市場處 ","無 ","111年度新北市市場整修工程委託設計監造技術服務(開口契約)-第一次契約變更(後續擴充) ","勞務","建築服務 ","2380000","2380000","112/09/07","112/09/08","新北市－全區 ","否","","非中央政府辦理新臺幣一億元以上之公共工程 "]
["474","新北市政府 ","新北市政府水利局 ","經濟部水利署 ","「東門溪排水改善暨鳳鳴滯洪池工程委託規劃設計監造技術服務」第2次契約變更 ","勞務","工程服務 ","140000","132000","112/08/24","112/09/13","新北市－鶯歌區 ","已依規定納入辦理節能減碳檢核 ","規劃設計階段納入辦理節能減碳檢核 ",""]
["475","新北市政府 ","新北市政府高灘地工程管理處 ","無 ","五股區觀音坑溪橋重建統包工程監造委託技術服務 ","勞務","工程服務 ","3000000","3000000","112/09/13","112/09/25","新北市－五股區 ","否","","災後緊急處理、搶修、搶險,災後原地復建 "]
["476","新北市政府 ","新北市政府農業局 ","無 ","111~112年度新北市天然災害緊急搶修復建工程及農業工程委託設計監造工作(第一區)後續擴充 ","勞務","工程服務 ","1000000","1000000","112/08/02","112/09/28","新北市－全區 ","否","","非受中央政府補助比率逾工程建造經費百分之五十且補助經費達新臺幣一億元以上之個案公共工程,災後緊急處理、搶修、搶險 "]
["477","新北市政府 ","新北市政府農業局 ","無 ","111~112年度新北市天然災害緊急搶修復建工程及農業工程委託設計監造工作(第二區)後續擴充 ","勞務","工程服務 ","1000000","1000000","112/08/02","112/09/28","新北市－全區 ","否","","非受中央政府補助比率逾工程建造經費百分之五十且補助經費達新臺幣一億元以上之個案公共工程,災後緊急處理、搶修、搶險 "]
["478","新北市政府 ","新北巿政府漁業及漁港事業管理處 ","農業部漁業署 ","112年萬里漁港東外堤延伸工程委託監造工作 ","勞務","工程服務 ","4822778","4750436","112/08/30","112/09/21","新北市－萬里區 ","否","","為公共工程節能減碳檢核注意事項公布前核定案件"]
["479","新北市政府 ","新北市政府動物保護防疫處 ","無 ","毛寶貝醫療中心暨辦公廳舍整修統包工程委託專案管理及監造技術服務 ","勞務","綜合工程服務 ","2372402","2372402","112/09/08","112/09/19","新北市－板橋區 ","否","","整修工程、拆除工程、疏濬工程、結構補強工程 "]
["480","新北市政府 ","新北市政府文化局 ","無 ","「林口傳統戲曲園區基地選址前置規劃及可行性評估」委託技術服務案 ","勞務","都市計劃及景觀建築服務 ","1450000","1440000","112/09/01","112/09/14","新北市－林口區 ","否","","非中央政府辦理新臺幣一億元以上之公共工程 "]
["481","新北市政府 ","新北市三重區公所 ","無 ","110年度三重區人行道及路面側溝前瞻計畫委託技術服務（開口契約） ","勞務","工程服務 ","2641382","2641382","112/09/07","112/09/13","新北市－三重區 ","否","","非中央政府辦理新臺幣一億元以上之公共工程,非受中央政府補助比率逾工程建造經費百分之五十且補助經費達新臺幣一億元以上之個案公共工程 "]
["482","新北市政府 ","新北市淡水區公所 ","無 ","新北市淡水112年度道路養護道路橋梁及其附屬設施災害搶修交通設施補助型案件工程開口（A區）委託設計監造技術服務第三次契約變更 ","勞務","工程服務 ","161101","161101","112/09/11","112/09/12","新北市－淡水區 ","否","","災後緊急處理、搶修、搶險 "]
["483","新北市政府 ","新北市淡水區公所 ","無 ","新北市淡水區樹興市民活動中心防水工程設計監造技術服務案 ","勞務","工程服務 ","315553","305014","112/09/21","112/09/22","新北市－淡水區 ","否","","整修工程、拆除工程、疏濬工程、結構補強工程 "]
["484","新北市政府 ","新北市瑞芳區公所 ","無 ","112年度新北市瑞芳區全區公共建設委託設計監造技術服務第2區(開口合約)第1次變更 ","勞務","工程服務 ","174651","174651","112/08/31","112/09/14","新北市－全區 ","否","","非受中央政府補助比率逾工程建造經費百分之五十且補助經費達新臺幣一億元以上之個案公共工程 "]
["485","新北市政府 ","新北市深坑區公所 ","無 ","112年度深坑區道路路面養護及改善工程(開口合約)委託設計監造技術服務 ","勞務","工程服務 ","111300","111300","112/08/25","112/09/05","新北市－深坑區 ","否","","非中央政府辦理新臺幣一億元以上之公共工程,非受中央政府補助比率逾工程建造經費百分之五十且補助經費達新臺幣一億元以上之個案公共工程 "]
["486","新北市政府 ","新北市石門區公所 ","無 ","「新北市石門區112年度工程委託設計監造」第1次契約變更(後續擴充) ","勞務","工程服務 ","4450000","4450000","112/09/27","112/09/28","新北市－石門區 ","否","","非中央政府辦理新臺幣一億元以上之公共工程,非受中央政府補助比率逾工程建造經費百分之五十且補助經費達新臺幣一億元以上之個案公共工程,整修工程、拆除工程、疏濬工程、結構補強工程 "]
["487","新北市政府 ","新北市貢寮區公所 ","無 "," 112年貢寮區天然災害復建工程委託設計監造案 ","勞務","綜合工程服務 ","500932","500932","112/09/04","112/09/05","新北市－貢寮區 ","否","","災後原地復建 "]
["488","新北市政府 ","新北市金山區公所 ","無 ","112年度金山區土木、水利及災害相關工程委託設計監造技術服務第1次後續擴充 ","勞務","工程服務 ","4319153","4319153","112/09/26","112/09/27","新北市－金山區 ","否","","非中央政府辦理新臺幣一億元以上之公共工程 "]
["489","新北市政府 ","新北市金山區公所 ","新北市政府 ","金山區福緣納骨堂內部各樓層油漆粉刷施作 ","勞務","工程服務 ","1000000","700000","112/09/11","112/09/12","新北市－金山區 ","否","","非中央政府辦理新臺幣一億元以上之公共工程,非受中央政府補助比率逾工程建造經費百分之五十且補助經費達新臺幣一億元以上之個案公共工程 "]
["490","新北市政府 ","新北市烏來區公所 ","無 ","「設置南墓二示範公墓納骨牆先期規劃」委託專業服務採購案 ","勞務","綜合工程服務 ","1372000","1372000","112/09/11","112/09/12","北部地區－全區 ","已依規定納入辦理節能減碳檢核 ","計畫提報核定階段納入辦理節能減碳檢核 ",""]
["491","新北市政府 ","新北市土城區公所 ","無 ","新北市土城區112年度公園廣場老舊設施改善工程設計、監造委託技術服務 ","勞務","工程服務 ","625000","619958","112/09/26","112/09/27","新北市－土城區 ","否","","非中央政府辦理新臺幣一億元以上之公共工程,非受中央政府補助比率逾工程建造經費百分之五十且補助經費達新臺幣一億元以上之個案公共工程,整修工程、拆除工程、疏濬工程、結構補強工程 "]
["492","新北市政府 ","新北市土城區公所 ","無 ","土城區綜合體育場音樂舞台整修工程委託設計監造技術服務 ","勞務","工程服務 ","257250","251626","112/09/26","112/09/26","新北市－土城區 ","否","","非中央政府辦理新臺幣一億元以上之公共工程,非受中央政府補助比率逾工程建造經費百分之五十且補助經費達新臺幣一億元以上之個案公共工程,整修工程、拆除工程、疏濬工程、結構補強工程 "]
["493","新北市政府 ","新北市樹林區公所 ","無 ","112年度樹林區公園暨山坡地範圍設施改善工程委託設計監造技術服務(開口合約) ","勞務","工程服務 ","350000","350000","112/09/11","112/09/26","新北市－樹林區 ","否","","整修工程、拆除工程、疏濬工程、結構補強工程 "]
["494","新竹市政府 ","新竹市政府 ","內政部營建署 ","新竹市建功綠帶暨周邊環境改善工程委託監造服務 ","勞務","綜合工程服務 ","3016479","2982091","112/09/26","112/09/28","新竹市－東區 ","否","","整修工程、拆除工程、疏濬工程、結構補強工程 "]
["495","新竹市政府 ","新竹市政府 ","無 ","「高峰路段(高翠路至研新四路)道路拓寬委託規劃設計監造技術服務」第一次契約變更(後續擴充) ","勞務","綜合工程服務 ","876455","876454","112/09/08","112/09/20","新竹市－東區 ","否","","非中央政府辦理新臺幣一億元以上之公共工程 "]
["496","新竹市政府 ","新竹市政府 ","無 ","112年度新竹市東區公園綠地零星工程委託設計暨監造服務(開口契約)第一次契約變更(第一次追加擴充) ","勞務","綜合工程服務 ","1117547","1117547","112/08/14","112/09/08","新竹市－東區 ","否","","非受中央政府補助比率逾工程建造經費百分之五十且補助經費達新臺幣一億元以上之個案公共工程 "]
["497","新竹市政府 ","新竹市立動物園 ","無 ","112年度新竹市立動物園食物森林維護管理 ","勞務","都市計劃及景觀建築服務 ","600000","600000","112/09/21","112/09/23","新竹市－東區 ","否","","非中央政府辦理新臺幣一億元以上之公共工程 "]
["498","新竹市政府 ","新竹市東區區公所 ","無 ","112年東區一般零星修復暨土建工程委託設計監造（第二期） ","勞務","工程服務 ","245000","234500","112/08/29","112/09/01","北部地區－全區 ","否","","災後緊急處理、搶修、搶險,整修工程、拆除工程、疏濬工程、結構補強工程 "]
["499","新竹市政府 ","新竹市立成德高級中學 ","新竹市政府 ","運動操場及周邊設施整建計畫委託規劃設計監造採購案 ","勞務","工程服務 ","1303611","1303611","112/08/30","112/09/05","新竹市－北區 ","否","","非中央政府辦理新臺幣一億元以上之公共工程 "]
["500","新竹市政府 ","新竹市立建華國民中學 ","新竹市政府、內政部營建署 ","校園周邊暨行車安全道路改善委託規畫設計技術服務 ","勞務","都市計劃及景觀建築服務 ","1100000","1090000","112/09/27","112/09/28","新竹市－全區 ","否","","非中央政府辦理新臺幣一億元以上之公共工程 "]
["501","新竹市政府 ","新竹市立三民國民中學 ","教育部國民及學前教育署 ","112年度老舊廁所整修工程計畫委託規劃設計監造服務 ","勞務","建築服務 ","887000","885000","112/09/07","112/09/07","新竹市－全區 ","否","","非中央政府辦理新臺幣一億元以上之公共工程,非受中央政府補助比率逾工程建造經費百分之五十且補助經費達新臺幣一億元以上之個案公共工程 "]
["502","新竹市政府 ","新竹市北區北門國民小學 ","新竹市政府 ","新竹市北門國小附設幼兒園增設兩歲專班整建工程委託規劃設計監造技術服務 ","勞務","工程服務 ","361131","360000","112/09/19","112/09/20","北部地區－全區 ","否","","整修工程、拆除工程、疏濬工程、結構補強工程 "]
["503","新竹市政府 ","新竹市東區龍山國民小學 ","教育部國民及學前教育署、新竹市政府 ","籃球場鋪面整建工程委託規劃設計監造技術服務案 ","勞務","工程服務 ","171610","170612","112/09/18","112/09/21","新竹市－全區 ","否","","整修工程、拆除工程、疏濬工程、結構補強工程 "]
["504","新竹市政府 ","新竹市香山區南隘國民小學 ","無 ","校園地坪及通路改善工程委託規劃設計監造技術服務 ","勞務","工程服務 ","183000","183000","112/09/12","112/09/12","新竹市－香山區 ","否","","整修工程、拆除工程、疏濬工程、結構補強工程 "]
["505","新竹縣政府 ","新竹縣政府 ","內政部營建署 ","112年新竹縣委託環境景觀總顧問計畫 ","勞務","都市計劃及景觀建築服務 ","3000000","2932000","112/07/31","112/09/28","新竹縣－全區 ","否","","非中央政府辦理新臺幣一億元以上之公共工程 "]
["506","新竹縣政府 ","新竹縣政府 ","科技部新竹科學園區管理局 ","竹東鎮明星一路等、寶山鄉寶山路等道路改善工程(開口契約)委託設計監造技術服務 ","勞務","工程服務 ","679101","663840","112/09/05","112/09/05","新竹縣－竹東 ","否","","非中央政府辦理新臺幣一億元以上之公共工程 "]
["507","新竹縣政府 ","新竹縣政府 ","無 ","新竹縣都市更新整體規劃暨自治規則檢討委託技術服務案 ","勞務","都市計劃及景觀建築服務 ","3300000","3170000","112/09/13","112/09/20","新竹縣－全區 ","否","","非受中央政府補助比率逾工程建造經費百分之五十且補助經費達新臺幣一億元以上之個案公共工程 "]
["508","新竹縣政府 ","新竹縣政府 ","無 ","112年度新竹縣政府轄管竹北及芎林地區公園遊具及設施維護、修繕工程（開口契約）委託監造技術服務案 ","勞務","工程服務 ","297177","288262","112/09/08","112/09/12","新竹縣－竹北,新竹縣－芎林 ","否","","非中央政府辦理新臺幣一億元以上之公共工程,非受中央政府補助比率逾工程建造經費百分之五十且補助經費達新臺幣一億元以上之個案公共工程 "]
["509","新竹縣政府 ","新竹縣政府環境保護局 ","行政院環境保護署 ","新竹縣政府環境保護局辦公廳舍耐震補強規劃設計技術服務 ","勞務","建築服務 ","703369","693215","112/08/31","112/09/01","新竹縣－全區 ","否","","非中央政府辦理新臺幣一億元以上之公共工程,非受中央政府補助比率逾工程建造經費百分之五十且補助經費達新臺幣一億元以上之個案公共工程,整修工程、拆除工程、疏濬工程、結構補強工程 "]
["510","新竹縣政府 ","新竹縣新埔鎮公所 ","行政院環境保護署 ","公⼆及公兒四新建公廁⼯程委託設計及監造技術服務 ","勞務","建築服務 ","1200000","1200000","112/09/04","112/09/07","新竹縣－新埔 ","否","","非中央政府辦理新臺幣一億元以上之公共工程 "]
["511","新竹縣政府 ","新竹縣竹東鎮公所 ","經濟部 ","「112年度新竹縣竹東鎮中央公有零售市場(A、H棟)及商華公有零售市場(C棟)建築物耐震能力補強工程」委託設計監造案 ","勞務","建築服務 ","650000","650000","112/09/12","112/09/12","新竹縣－竹東 ","否","","整修工程、拆除工程、疏濬工程、結構補強工程 "]
["512","新竹縣政府 ","新竹縣新豐鄉公所 ","內政部營建署 ","112年新竹縣新豐鄉新豐公園鄰里空間與綠色基盤營造計畫委託設計監造技術服務案 ","勞務","工程服務 ","343938","340000","112/09/06","112/09/08","新竹縣－新豐 ","否","","非中央政府辦理新臺幣一億元以上之公共工程,非受中央政府補助比率逾工程建造經費百分之五十且補助經費達新臺幣一億元以上之個案公共工程 "]
["513","新竹縣政府 ","新竹縣新豐鄉公所 ","無 ","新豐鄉村里聯絡道路改善工程(開口契約)委託設計監造技術服務案 ","勞務","工程服務 ","333000","319601","112/08/30","112/09/01","新竹縣－新豐 ","否","","非中央政府辦理新臺幣一億元以上之公共工程,非受中央政府補助比率逾工程建造經費百分之五十且補助經費達新臺幣一億元以上之個案公共工程 "]
["514","新竹縣政府 ","新竹縣新豐鄉公所 ","新竹縣政府 ","新豐鄉茄苳溪護岸災害復建工程 ","勞務","工程服務 ","1377000","1358557","112/09/14","112/09/15","新竹縣－新豐 ","否","","災後原地復建 "]
["515","新竹縣政府 ","新竹縣五峰鄉公所 ","無 ","新竹縣五峰鄉白蘭部落增設灌溉系統工程委託設計及監造技術服務案 ","勞務","工程服務 ","3228418","3023903","112/08/04","112/09/12","新竹縣－五峰 ","否","","非中央政府辦理新臺幣一億元以上之公共工程 "]
["516","新竹縣政府 ","新竹縣竹北市公所 ","內政部營建署 ","竹北市竹仁國小暨周邊校園養護整建工程委託設計監造技術服務 ","勞務","工程服務 ","1416600","1331604","112/09/05","112/09/06","新竹縣－竹北 ","否","","非中央政府辦理新臺幣一億元以上之公共工程 "]
["517","新竹縣政府 ","新竹縣立關西國民中學 ","無 ","112年度關西國中籃球場地坪整建委託設計監造服務 ","勞務","工程服務 ","344521","279913","112/09/19","112/09/22","新竹縣－關西 ","否","","整修工程、拆除工程、疏濬工程、結構補強工程 "]
["518","新竹縣政府 ","新竹縣立寶山國民中學 ","新竹縣政府教育局 ","寶山國中社區共讀站委託設計監造技術服務 ","勞務","建築服務 ","205636","203419","112/09/06","112/09/06","新竹縣－寶山 ","否","","整修工程、拆除工程、疏濬工程、結構補強工程 "]
["519","新竹縣政府 ","新竹縣竹東鎮中山國民小學 ","新竹縣政府 ","新竹縣竹東鎮中山國小通學步道暨行車安全道路改善工程委託設計監造技術服務勞務採購案 ","勞務","工程服務 ","1034806","1034806","112/08/28","112/09/07","新竹縣－全區 ","否","","非中央政府辦理新臺幣一億元以上之公共工程,非受中央政府補助比率逾工程建造經費百分之五十且補助經費達新臺幣一億元以上之個案公共工程 "]
["520","新竹縣政府 ","新竹縣新豐鄉福興國民小學 ","教育部國民及學前教育署 ","新竹縣福興國小校園社區化改造計畫-設置學校社區共讀站委託設計監造技術服務 ","勞務","工程服務 ","190700","190700","112/09/06","112/09/06","新竹縣－新豐 ","否","","非中央政府辦理新臺幣一億元以上之公共工程,非受中央政府補助比率逾工程建造經費百分之五十且補助經費達新臺幣一億元以上之個案公共工程 "]
["521","新竹縣政府 ","新竹縣新豐鄉福興國民小學 ","教育部體育署 ","112年修整建五人制天然草皮足球場委託設計監造技術服務 ","勞務","工程服務 ","276000","273308","112/09/01","112/09/01","新竹縣－新豐 ","否","","非中央政府辦理新臺幣一億元以上之公共工程,非受中央政府補助比率逾工程建造經費百分之五十且補助經費達新臺幣一億元以上之個案公共工程 "]
["522","新竹縣政府 ","新竹縣竹北市博愛國民小學 ","新竹縣政府教育局 ","新竹縣竹北市博愛國民小學公私立國民中小學老舊廁所整修工程(教學大樓西側廁所改善工程)委託規劃設計及監造技術服務採購 ","勞務","工程服務 ","416106","411945","112/09/25","112/09/26","新竹縣－竹北 ","否","","非中央政府辦理新臺幣一億元以上之公共工程 "]
["523","經濟部 ","經濟部國際貿易局 ","無 ","建物屋頂及水塔等相關防水工程委託規劃設計監造服務 ","勞務","工程服務 ","552000","542340","112/09/01","112/09/12","北部地區－全區 ","否","","非中央政府辦理新臺幣一億元以上之公共工程 "]
["524","經濟部 ","經濟部國營事業委員會 ","無 ","經濟部組改後國營事業管理司辦公廳舍申請室內裝修許可委託技術服務採購案 ","勞務","建築服務 ","760000","550000","112/08/30","112/09/05","北部地區－全區 ","否","","整修工程、拆除工程、疏濬工程、結構補強工程 "]
["525","經濟部 ","經濟部水利署北區水資源局 ","無 ","112年北水局轄管水庫壩堰設施改善維護工程監造 ","勞務","工程服務 ","4708000","4680000","112/08/17","112/09/06","桃園市－龍潭區,桃園市－大溪區 ","否","","非中央政府辦理新臺幣一億元以上之公共工程,整修工程、拆除工程、疏濬工程、結構補強工程 "]
["526","經濟部 ","經濟部水利署南區水資源局 ","無 ","荖濃溪(里嶺)伏流水統包工程─水管橋工程 ","工程","水道、海港、水壩及其他水利工程 ","745000000","745000000","112/09/25","112/09/26","高雄市－旗山區,屏東縣－里港 ","已依規定納入辦理節能減碳檢核 ","規劃設計階段納入辦理節能減碳檢核 ",""]
["527","經濟部 ","經濟部水利署第一河川局 ","無 ","蘇澳溪分洪道工程委託基本設計及施工諮詢服務 ","勞務","工程服務 ","54000000","51480000","112/09/13","112/09/20","北部地區－全區 ","已依規定納入辦理節能減碳檢核 ","規劃設計階段納入辦理節能減碳檢核 ",""]
["528","經濟部 ","台灣糖業股份有限公司中彰區處 ","無 ","歷史建築月眉糖廠製糖工場第1期修復工程委託規劃設計 ","勞務","建築服務 ","6000000","5700000","112/09/08","112/09/11","臺中市－后里區 ","否","","非受中央政府補助比率逾工程建造經費百分之五十且補助經費達新臺幣一億元以上之個案公共工程 "]
["529","經濟部 ","台灣電力股份有限公司 ","無 ","大潭電廠新建345kV開關場及設備增設工程技術服務工作 ","勞務","工程服務 ","124840800","121065000","112/09/04","112/09/14","臺北市－全區,桃園市－全區 ","已依規定納入辦理節能減碳檢核 ","規劃設計階段納入辦理節能減碳檢核 ",""]
["530","經濟部 ","台灣電力股份有限公司桃園區營業處 ","無 ","桃園區營業處112年甲工區配電外線工程 ","工程","電力工程 ","193000000","184000000","112/09/13","112/09/21","新北市－鶯歌區,桃園市－桃園區,桃園市－龜山區,桃園市－蘆竹區 ","否","","非受中央政府補助比率逾工程建造經費百分之五十且補助經費達新臺幣一億元以上之個案公共工程,整修工程、拆除工程、疏濬工程、結構補強工程 "]
["531","經濟部 ","台灣電力股份有限公司彰化區營業處 ","無 ","彰化區營業處112年甲工區配電外線工程 ","工程","電力工程 ","199900000","195000000","112/09/26","112/09/27","彰化縣－全區 ","否","","非中央政府辦理新臺幣一億元以上之公共工程 "]
["532","經濟部 ","台灣電力股份有限公司嘉義區營業處 ","無 ","嘉義區營業處112年乙工區配電管路工程 ","工程","地區性管線及電纜; 輔助性工程 ","150000000","123370000","112/09/06","112/09/19","嘉義市－全區,嘉義縣－全區 ","否","","非中央政府辦理新臺幣一億元以上之公共工程 "]
["533","經濟部 ","台灣電力股份有限公司鳳山區營業處 ","無 ","鳳山區營業處112年甲工區配電外線工程 ","工程","電力工程 ","128000000","123884313","112/09/05","112/09/19","高雄市－仁武區,高雄市－鳳山區 ","否","","非中央政府辦理新臺幣一億元以上之公共工程 "]
["534","經濟部 ","台灣電力股份有限公司台北供電區營運處 ","無 ","青年變電所建築物耐震補強設計及監造技術服務工作 ","勞務","建築服務 ","1300000","787500","112/09/20","112/09/23","臺北市－萬華區 ","否","","整修工程、拆除工程、疏濬工程、結構補強工程 "]
["535","經濟部 ","台灣電力股份有限公司核能火力發電工程處南部施工處 ","無 ","大林電廠燃氣機組更新改建計畫冷卻循環水系統工程 ","工程","電力工程 ","3178000000","3178000000","112/09/20","112/09/22","高雄市－小港區 ","已依規定納入辦理節能減碳檢核 ","規劃設計階段納入辦理節能減碳檢核 ",""]
["536","經濟部 ","台灣電力股份有限公司輸變電工程處中區施工處 ","無 ","345kV峨眉~中寮線一進一出義和#108A、#109A改建暨#1A、#1B連接站、電纜洞道新建統包工程 ","工程","電力工程 ","420000000","420000000","112/07/17","112/09/08","苗栗縣－大湖,南投縣－集集 ","已依規定納入辦理節能減碳檢核 ","規劃設計階段納入辦理節能減碳檢核 ",""]
["537","經濟部 ","台灣電力股份有限公司輸變電工程處中區施工處 ","無 ","寶山E/S暨所內連接站新建土建統包工程 ","工程","電力工程 ","3800000000","3800000000","112/09/07","112/09/27","新竹縣－寶山 ","否","","規劃取得綠建築標章之建築工程 "]
["538","經濟部 ","台灣電力股份有限公司輸變電工程處南區施工處 ","無 ","南北三路延伸至瀰力線路土建統包工程 ","工程","電力工程 ","1450000000","1448000000","112/08/21","112/09/11","臺南市－龍崎區,高雄市－旗山區,屏東縣－里港 ","已依規定納入辦理節能減碳檢核 ","計畫提報核定階段納入辦理節能減碳檢核;規劃設計階段納入辦理節能減碳檢核 ",""]
["539","經濟部 ","台灣電力股份有限公司輸變電工程處南區施工處 ","無 ","麻工D/S新建土建統包工程 ","工程","電力工程 ","885230000","885230000","112/09/19","112/09/28","臺南市－麻豆區 ","否","","規劃取得綠建築標章之建築工程 "]
["540","經濟部 ","台灣電力股份有限公司輸變電工程處南區施工處 ","無 ","大鵬E/S通風倉庫、161kV GIS增設及高樹開閉所(第二階段)新建工程 ","工程","電力工程 ","736990000","735980000","112/08/09","112/09/06","屏東縣－里港,屏東縣－枋寮 ","否","","規劃取得綠建築標章之建築工程 "]
["541","經濟部 ","台灣電力股份有限公司輸變電工程處南區施工處 ","無 ","加一~林園分歧二進二出和春土建工程 ","工程","電力工程 ","300000000","297250000","112/09/07","112/09/25","南部地區－全區 ","否","","非受中央政府補助比率逾工程建造經費百分之五十且補助經費達新臺幣一億元以上之個案公共工程 "]
["542","經濟部 ","台灣電力股份有限公司輸變電工程處北區施工處 ","無 ","玉成D/S暨社會住宅共構新建工程策略性地方溝通活動暨前期規劃委託技術服務案 ","勞務","工程服務 ","10899000","10899000","112/08/31","112/09/04","臺北市－全區 ","否","","規劃取得綠建築標章之建築工程 "]
["543","經濟部 ","台灣電力股份有限公司輸變電工程處北區施工處 ","無 ","345kV核一~汐止一進一出松湖線#29A連接站及銜接洞道土木統包工程 ","工程","電力工程 ","478800000","476800000","112/08/10","112/09/07","臺北市－內湖區 ","否","","非中央政府辦理新臺幣一億元以上之公共工程 "]
["544","經濟部 ","台灣電力股份有限公司輸變電工程處北區施工處 ","無 ","松湖超高壓變電所暨多目標大樓統包新建工程 ","工程","電力工程 ","4500000000","4500000000","112/09/08","112/09/22","臺北市－內湖區 ","否","","規劃取得綠建築標章之建築工程 "]
["545","經濟部 ","台灣電力股份有限公司輸變電工程處北區施工處 ","無 ","「電力修護處廠房遷建工程暨訓練所林口訓練中心廠舍與活動中心新建工程」規劃設計技術服務工作擬辦理第8次契約變更協議 ","勞務","建築服務 ","353104","350000","112/09/21","112/09/26","新北市－林口區 ","否","","規劃取得綠建築標章之建築工程 "]
["546","經濟部 ","台灣電力股份有限公司輸變電工程處北區施工處 ","無 ","福和D/S暨多目標綜合大樓新建工程委託規劃設計技術服務新增項目第5次變更協議 ","勞務","建築服務 ","670000","645000","112/09/18","112/09/23","臺北市－大安區 ","否","","規劃取得綠建築標章之建築工程 "]
["547","經濟部 ","台灣電力股份有限公司綜合施工處 ","無 ","「111年度工安環保勞務性技術外包工作」第2次契約變更 ","勞務","工程服務 ","5038790","5038790","112/08/18","112/09/19","臺北市－文山區 ","否","","非中央政府辦理新臺幣一億元以上之公共工程 "]
["548","經濟部 ","台灣中油股份有限公司 ","無 ","112-113年澎湖處儲槽、管線修護零星工作 ","勞務","綜合工程服務 ","16954523","16272143","112/09/06","112/09/07","澎湖縣－全區 ","否","","非中央政府辦理新臺幣一億元以上之公共工程 "]
["549","經濟部 ","台灣中油股份有限公司 ","無 ","洲際液化天然氣接收站投資計畫出流管制計畫工作 ","勞務","綜合工程服務 ","3482811","2088888","112/09/20","112/09/21","高雄市－小港區 ","已依規定納入辦理節能減碳檢核 ","規劃設計階段納入辦理節能減碳檢核 ",""]
["550","經濟部 ","台灣中油股份有限公司 ","無 ","永安廠112年鐵件雜項工作 ","勞務","工程服務 ","9078090","8950000","112/09/20","112/09/21","高雄市－永安區 ","否","","整修工程、拆除工程、疏濬工程、結構補強工程 "]
["551","經濟部 ","台灣中油股份有限公司 ","無 ","大林廠第三重油加氫脫硫工場復建工程 ","工程","礦業及製造業工程 ","3604657609","3568000000","112/09/05","112/09/06","高雄市－小港區 ","否","","災後原地復建 "]
["552","經濟部 ","台灣中油股份有限公司 ","無 ","移動式液氮儲槽及蒸發器等設備租用與操作工作 ","勞務","工程服務 ","9442493","9000000","112/09/26","112/09/27","高雄市－前鎮區,高雄市－楠梓區,高雄市－小港區,高雄市－仁武區,高雄市－燕巢區,高雄市－林園區,其他－其他 ","否","","整修工程、拆除工程、疏濬工程、結構補強工程 "]
["553","經濟部 ","台灣中油股份有限公司 ","無 ","林園石化廠供水工場冷卻水塔檢修工作 ","勞務","綜合工程服務 ","662896","630000","112/09/22","112/09/27","高雄市－全區,其他－其他 ","否","","非中央政府辦理新臺幣一億元以上之公共工程 "]
["554","經濟部 ","台灣中油股份有限公司 ","無 ","林園石化廠四輕等工場大修及定檢工作 ","勞務","綜合工程服務 ","496841587","370856715","112/09/07","112/09/26","高雄市－全區 ","否","","非中央政府辦理新臺幣一億元以上之公共工程 "]
["555","經濟部 ","台灣中油股份有限公司探採研究所 ","無 ","碳封存展廳規劃設計製作 ","勞務","都市計劃及景觀建築服務 ","4975000","4950000","112/09/05","112/09/07","苗栗縣－苗栗 ","否","","非中央政府辦理新臺幣一億元以上之公共工程 "]
["556","經濟部 ","台灣中油股份有限公司天然氣事業部 ","無 ","永安至通霄第二條海底輸氣管線可行性研究與環境影響評估工作(第五次契約變更) ","勞務","工程服務 ","4500000","4050000","112/08/31","112/09/18","其他－其他 ","否","","非中央政府辦理新臺幣一億元以上之公共工程 "]
["557","經濟部 ","台灣中油股份有限公司天然氣事業部北區營業處 ","無 ","112年度天然氣事業部北區營業處案件設計工作 ","勞務","工程服務 ","4994136","2975616","112/08/18","112/09/05","其他－其他 ","否","","非中央政府辦理新臺幣一億元以上之公共工程,非受中央政府補助比率逾工程建造經費百分之五十且補助經費達新臺幣一億元以上之個案公共工程 "]
["558","經濟部 ","台灣中油股份有限公司探採事業部 ","無 ","宜蘭土場地熱電廠新建工程水土保持施工監造委託技術服務 ","勞務","工程服務 ","449568","428000","112/09/01","112/09/08","宜蘭縣－大同,其他－其他 ","否","","非中央政府辦理新臺幣一億元以上之公共工程 "]
["559","經濟部 ","台灣自來水股份有限公司 ","無 ","臺中雲林水源調度-烏日至大里送水管(一) ","工程","水管及排水設施鋪設工程 ","132350885","122800000","112/09/12","112/09/20","臺中市－烏日區 ","已依規定納入辦理節能減碳檢核 ","規劃設計階段納入辦理節能減碳檢核 ",""]
["560","經濟部 ","台灣自來水股份有限公司 ","無 ","「自來水設備項目安全評估計畫」委託技術服務 ","勞務","工程服務 ","5200000","5120000","112/09/07","112/09/11","全部地區－全區 ","否","","非中央政府辦理新臺幣一億元以上之公共工程,非受中央政府補助比率逾工程建造經費百分之五十且補助經費達新臺幣一億元以上之個案公共工程 "]
["561","經濟部 ","台灣自來水股份有限公司 ","無 ","石門淨水場廢水處理設備工程 ","工程","其他土木工程 ","394813650","351000000","112/08/17","112/09/04","桃園市－平鎮區 ","否","","整修工程、拆除工程、疏濬工程、結構補強工程 "]
["562","經濟部 ","台灣自來水股份有限公司 ","無 ","屏東區管理處暨營運所辦公廳興建工程」(設計及監造)委託技術服務 ","勞務","建築服務 ","18849868","18200000","112/09/05","112/09/18","屏東縣－潮州 ","否","","規劃取得綠建築標章之建築工程 "]
["563","經濟部 ","台灣自來水股份有限公司 ","無 ","竹科四期-竹南基地送水管(造橋段)工程 ","工程","水管及排水設施鋪設工程 ","308034615","303380000","112/09/12","112/09/13","苗栗縣－造橋 ","已依規定納入辦理節能減碳檢核 ","規劃設計階段納入辦理節能減碳檢核 ",""]
["564","經濟部 ","台灣自來水股份有限公司 ","無 ","竹科四期-竹南基地送水管(後龍至造橋段)工程 ","工程","水管及排水設施鋪設工程 ","282856035","254500000","112/09/21","112/09/23","苗栗縣－後龍,苗栗縣－造橋 ","已依規定納入辦理節能減碳檢核 ","規劃設計階段納入辦理節能減碳檢核 ",""]
["565","經濟部 ","台灣自來水股份有限公司第五區管理處 ","無 ","仁義潭水庫第四次及蘭潭水庫第五次定期安全評估委託技術服務 ","勞務","工程服務 ","8003100","7872000","112/09/07","112/09/14","嘉義市－全區,嘉義縣－番路 ","否","","整修工程、拆除工程、疏濬工程、結構補強工程 "]
["566","經濟部 ","台灣自來水股份有限公司北區工程處 ","無 ","暖暖淨水場改建工程規劃 ","勞務","工程服務 ","9200000","9086000","112/09/26","112/09/28","基隆市－暖暖區 ","已依規定納入辦理節能減碳檢核 ","規劃設計階段納入辦理節能減碳檢核 ",""]
["567","農業部 ","農業部漁業署 ","無 ","「109年度梧棲漁港魚市場興建工程設計工作」第1次契約變更 ","勞務","建築服務 ","2625663","2498772","112/09/12","112/09/19","臺中市－梧棲區 ","否","","規劃取得綠建築標章之建築工程 "]
["568","農業部 ","農業部林業及自然保育署臺中分署 ","無 ","八仙山森林遊樂區區內步道及遊憩設施改善工程等案委託規劃設計及監造技術服務 ","勞務","工程服務 ","1934438","1934438","112/08/25","112/09/20","中部地區－全區 ","否","","非中央政府辦理新臺幣一億元以上之公共工程,整修工程、拆除工程、疏濬工程、結構補強工程 "]
["569","農業部 ","農業部林業及自然保育署臺中分署 ","無 ","東勢林業文化園區五棟建物耐震補強工程委託監造技術服務 ","勞務","工程服務 ","2167485","2167485","112/08/30","112/09/06","臺中市－東勢區 ","已依規定納入辦理節能減碳檢核 ","規劃設計階段納入辦理節能減碳檢核 ",""]
["570","農業部 ","農業部林業及自然保育署南投分署 ","無 ","112-113年度南投處治山工程文案設計企劃案 ","勞務","工程服務 ","1500000","1500000","112/09/14","112/09/21","南投縣－全區 ","否","","非中央政府辦理新臺幣一億元以上之公共工程 "]
["571","農業部 ","農業部林業及自然保育署南投分署 ","無 ","113年度林業及自然保育署南投分署轄內林道災修工程委託規劃設計及監造技術服務 ","勞務","工程服務 ","3847600","3847600","112/09/21","112/09/26","南投縣－仁愛 ","否","","非中央政府辦理新臺幣一億元以上之公共工程,災後緊急處理、搶修、搶險 "]
["572","農業部 ","農業部林業及自然保育署南投分署 ","無 ","113~114年度奧萬大森林遊樂區育樂工程委託規劃設計及監造技術服務 ","勞務","工程服務 ","1837050","1837050","112/09/07","112/09/12","南投縣－仁愛 ","否","","非中央政府辦理新臺幣一億元以上之公共工程 "]
["573","農業部 ","農業部林業及自然保育署臺東分署 ","無 ","知本國家森林遊樂區遊客中心賣店空間改造工程委託規劃設計及監造技術服務 ","勞務","建築服務 ","431200","431200","112/08/24","112/09/04","臺東縣－全區 ","否","","非中央政府辦理新臺幣一億元以上之公共工程 "]
["574","農業部 ","農業部農村發展及水土保持署臺北分署 ","無 ","112年度臺北分局防災道路路網調查與編號農路構造物體檢 ","勞務","工程服務 ","3800000","3680000","112/09/01","112/09/05","其他－其他 ","否","","整修工程、拆除工程、疏濬工程、結構補強工程 "]
["575","農業部 ","農業部農村發展及水土保持署臺中分署 ","無 ","112年度臺中分局防災道路路網調查與編號農路構造物體檢 ","勞務","工程服務 ","2400000","2350000","112/07/07","112/09/11","苗栗縣－全區,臺中市－全區 ","否","","非中央政府辦理新臺幣一億元以上之公共工程 "]
["576","農業部 ","農業部農田水利署 ","無 ","太平渠幹線等強化工程委託規劃設計監造技術服務 ","勞務","工程服務 ","4400000","4400000","112/09/22","112/09/23","花蓮縣－玉里 ","否","","非中央政府辦理新臺幣一億元以上之公共工程 "]
["577","農業部 ","農業部農田水利署 ","無 ","義和圳幹線強化工程等3件工程委託設計監造技術服務 ","勞務","工程服務 ","12728720","12092284","112/08/31","112/09/14","彰化縣－員林 ","否","","非中央政府辦理新臺幣一億元以上之公共工程 "]
["578","農業部 ","農業部農田水利署 ","無 ","內三排水支線引灌區韌性工程委託設計監造技術服務(第二工區) ","勞務","工程服務 ","14601322","14017269","112/09/19","112/09/28","彰化縣－員林 ","否","","非中央政府辦理新臺幣一億元以上之公共工程,非受中央政府補助比率逾工程建造經費百分之五十且補助經費達新臺幣一億元以上之個案公共工程 "]
["579","農業部 ","農業部農田水利署 ","無 ","委託農田水利建造物調查及檢查等工作 ","勞務","工程服務 ","1450000","1450000","112/09/19","112/09/26","彰化縣－全區,南投縣－南投,南投縣－名間 ","否","","非中央政府辦理新臺幣一億元以上之公共工程,非受中央政府補助比率逾工程建造經費百分之五十且補助經費達新臺幣一億元以上之個案公共工程 "]
["580","農業部 ","農業部農田水利署 ","無 ","112～113年度嘉南管理處灌排設施改善委託設計及監造技術服務開口契約(新化分處) ","勞務","工程服務 ","5500000","5500000","112/09/15","112/09/21","臺南市－新化區 ","已依規定納入辦理節能減碳檢核 ","規劃設計階段納入辦理節能減碳檢核 ",""]
["581","農業部 ","農業部農田水利署 ","無 ","西口導水路抽淤-固定輸泥管線工程 ","工程","水道、海港、水壩及其他水利工程 ","122843000","121000000","112/09/13","112/09/14","臺南市－楠西區,臺南市－東山區 ","否","","整修工程、拆除工程、疏濬工程、結構補強工程 "]
["582","農業部 ","農業部農田水利署 ","無 ","113年度白河水庫清淤及去化工程委託設計監造技術服務開口契約 ","勞務","工程服務 ","8971200","8971200","112/09/21","112/09/22","臺南市－白河區 ","否","","整修工程、拆除工程、疏濬工程、結構補強工程 "]
["583","農業部 ","農業部農田水利署 ","無 ","長良圳2幹線灌溉系統強化工程委託規劃設計監造技術服務 ","勞務","工程服務 ","2700000","2700000","112/09/22","112/09/23","花蓮縣－玉里 ","否","","非中央政府辦理新臺幣一億元以上之公共工程 "]
["584","農業部 ","農業部農田水利署 ","無 ","112～113年度苗栗縣三灣鄉、獅潭鄉、大湖鄉及通霄鎮等擴大灌溉服務水利設施改善工程委託設計監造等技術服務工作（開口契約） ","勞務","工程服務 ","7213000","7203000","112/09/08","112/09/20","苗栗縣－三灣,苗栗縣－獅潭,苗栗縣－通霄,苗栗縣－大湖 ","已依規定納入辦理節能減碳檢核 ","規劃設計階段納入辦理節能減碳檢核 ",""]
["585","農業部 ","農業部農田水利署 ","無 ","阿罩霧各圳穩定取水工程委託規劃技術服務 ","勞務","工程服務 ","4800000","4615000","112/08/24","112/09/15","中部地區－全區 ","否","","非中央政府辦理新臺幣一億元以上之公共工程,非受中央政府補助比率逾工程建造經費百分之五十且補助經費達新臺幣一億元以上之個案公共工程 "]
["586","農業部 ","農業部農田水利署 ","無 ","鹿野武陵地區灌溉系統強化工程委外設計監造 ","勞務","工程服務 ","3580000","3293600","112/07/24","112/09/04","臺東縣－延平 ","否","","非中央政府辦理新臺幣一億元以上之公共工程 "]
["587","農業部 ","農業部農田水利署 ","無 ","轄管房屋消防設備系統更新統包工程(第一工區)委託專案管理(含監造) ","勞務","建築服務 ","604800","595200","112/09/05","112/09/13","桃園市－桃園區 ","否","","非中央政府辦理新臺幣一億元以上之公共工程,非受中央政府補助比率逾工程建造經費百分之五十且補助經費達新臺幣一億元以上之個案公共工程 "]
["588","農業部 ","農業部農業科技園區管理中心 ","無 ","農科擴充園區新設清水池工程委託設計及監造技術服務 ","勞務","綜合工程服務 ","3600000","3492000","112/09/21","112/09/26","屏東縣－長治 ","否","","非中央政府辦理新臺幣一億元以上之公共工程,非受中央政府補助比率逾工程建造經費百分之五十且補助經費達新臺幣一億元以上之個案公共工程 "]
["589","農業部 ","農業部農業藥物試驗所 ","無 ","農糧產品安全品質檢測與情資分析中心新建工程專案管理(不含監造)委託技術服務 ","勞務","建築服務 ","17100000","16587000","112/08/31","112/09/01","臺中市－霧峰區 ","否","","規劃取得綠建築標章之建築工程 "]
["590","嘉義市政府 ","嘉義市政府 ","內政部營建署 ","嘉義市雨水下水道即時水情監測系統建置計畫 ","勞務","工程服務 ","29000000","29000000","112/09/15","112/09/26","嘉義市－全區 ","否","","非受中央政府補助比率逾工程建造經費百分之五十且補助經費達新臺幣一億元以上之個案公共工程 "]
["591","嘉義市政府 ","嘉義市政府 ","內政部營建署 ","嘉義市北園國小及嘉義市立北園國中通學步道工程委託技術服務案 ","勞務","工程服務 ","2225000","2225000","112/09/15","112/09/27","嘉義市－全區 ","否","","非受中央政府補助比率逾工程建造經費百分之五十且補助經費達新臺幣一億元以上之個案公共工程 "]
["592","嘉義市政府 ","嘉義市立民生國民中學 ","嘉義市政府 ","112年度老舊廁所整修工程委託設計及監造技術服務 ","勞務","建築服務 ","311148","311148","112/09/23","112/09/28","嘉義市－全區 ","否","","非中央政府辦理新臺幣一億元以上之公共工程 "]
["593","嘉義市政府 ","嘉義市崇文國民小學 ","教育部國民及學前教育署、嘉義市政府 ","嘉義市崇文國民小學「112年度老舊廁所整修工程」委託規劃、設計及監造勞務採購 ","勞務","建築服務 ","770000","770000","112/09/21","112/09/22","南部地區－全區 ","否","","整修工程、拆除工程、疏濬工程、結構補強工程 "]
["594","嘉義市政府 ","嘉義市文雅國民小學 ","嘉義市政府 ","風雨球場新建工程規劃設計監造服務案 ","勞務","工程服務 ","697868","683911","112/09/11","112/09/13","嘉義市－全區 ","否","","非中央政府辦理新臺幣一億元以上之公共工程 "]
["595","嘉義縣政府 ","嘉義縣政府 ","交通部公路總局 ","生活圈道路交通系統建設計畫-嘉134線1K+200-2K+100拓寬工程委託勘測設計監造服務-第1次契約變更 ","勞務","工程服務 ","757500","750000","112/09/19","112/09/23","嘉義縣－中埔 ","否","","非受中央政府補助比率逾工程建造經費百分之五十且補助經費達新臺幣一億元以上之個案公共工程 "]
["596","嘉義縣政府 ","嘉義縣政府 ","行政院環境保護署 ","「112年度嘉義縣社會局公廁改善工程」委託規劃、設計及監造 ","勞務","建築服務 ","186607","184437","112/09/06","112/09/19","嘉義縣－太保 ","否","","非受中央政府補助比率逾工程建造經費百分之五十且補助經費達新臺幣一億元以上之個案公共工程 "]
["597","嘉義縣政府 ","嘉義縣政府 ","教育部 ","「嘉義縣太保市嘉新國民中學新建活動中心工程」委託勘測規劃、設計及監造 ","勞務","建築服務 ","4979121","4655180","112/09/26","112/09/28","嘉義縣－太保 ","否","","非受中央政府補助比率逾工程建造經費百分之五十且補助經費達新臺幣一億元以上之個案公共工程 "]
["598","嘉義縣政府 ","嘉義縣政府 ","教育部 ","「嘉義縣大林鎮平林國民小學新建活動中心工程」委託勘測規劃、設計及監造 ","勞務","建築服務 ","4979121","4979121","112/09/08","112/09/18","嘉義縣－大林 ","否","","非受中央政府補助比率逾工程建造經費百分之五十且補助經費達新臺幣一億元以上之個案公共工程 "]
["599","嘉義縣政府 ","嘉義縣文化觀光局 ","無 ","「東石漁人碼頭既有公廁改善及碼頭公廁新建工程委託設計及監造服務」勞務採購案 ","勞務","工程服務 ","1035719","1027862","112/09/26","112/09/27","嘉義縣－東石 ","否","","非中央政府辦理新臺幣一億元以上之公共工程,非受中央政府補助比率逾工程建造經費百分之五十且補助經費達新臺幣一億元以上之個案公共工程,整修工程、拆除工程、疏濬工程、結構補強工程 "]
["600","嘉義縣政府 ","嘉義縣民雄鄉公所 ","行政院環境保護署 ","「112年度優質公廁及美質環境推動計畫-民雄鄉左岸公園公廁新建工程」委託規劃、設計及監造技術服務 ","勞務","工程服務 ","331714","327857","112/09/20","112/09/21","嘉義縣－民雄 ","否","","規劃取得綠建築標章之建築工程 "]
["601","嘉義縣政府 ","嘉義縣民雄鄉公所 ","行政院環境保護署 ","「112年度優質公廁及美質環境推動計畫-民雄鄉森林公園公廁新建工程」委託規劃、設計及監造技術服務 ","勞務","工程服務 ","331714","327857","112/09/20","112/09/21","嘉義縣－民雄 ","否","","規劃取得綠建築標章之建築工程 "]
["602","嘉義縣政府 ","嘉義縣東石鄉公所 ","無 ","112年第四公墓園區圍牆環境改善工程委託勘測設計及監造技術服務案 ","勞務","工程服務 ","198531","181217","112/09/19","112/09/20","嘉義縣－東石 ","否","","非中央政府辦理新臺幣一億元以上之公共工程,非受中央政府補助比率逾工程建造經費百分之五十且補助經費達新臺幣一億元以上之個案公共工程,災後緊急處理、搶修、搶險,災後原地復建,規劃取得綠建築標章之建築工程 "]
["603","嘉義縣政府 ","嘉義縣東石鄉公所 ","嘉義縣政府 ","嘉義縣東石鄉立圖書館申請公共圖書館閱讀環境與設備升級計畫委託勘測設計及監造案 ","勞務","工程服務 ","243410","225474","112/09/05","112/09/05","嘉義縣－東石 ","否","","非中央政府辦理新臺幣一億元以上之公共工程,非受中央政府補助比率逾工程建造經費百分之五十且補助經費達新臺幣一億元以上之個案公共工程,災後緊急處理、搶修、搶險,災後原地復建,規劃取得綠建築標章之建築工程 "]
["604","嘉義縣政府 ","嘉義縣鹿草鄉公所 ","無 ","112年下半年度至113年度鹿草鄉基礎工程暨各項公共建設委託規劃測設監造開口契約 ","勞務","工程服務 ","1460800","1426013","112/09/06","112/09/07","嘉義縣－鹿草 ","否","","非中央政府辦理新臺幣一億元以上之公共工程,非受中央政府補助比率逾工程建造經費百分之五十且補助經費達新臺幣一億元以上之個案公共工程 "]
["605","嘉義縣政府 ","嘉義縣水上鄉公所 ","無 ","「水上鄉生命紀念館二樓C區納骨櫃增設等設備裝修工程」委託設計及監造技術服務 ","勞務","工程服務 ","702318","692367","112/09/15","112/09/20","嘉義縣－水上 ","否","","非中央政府辦理新臺幣一億元以上之公共工程 "]
["606","嘉義縣政府 ","嘉義縣水上鄉公所 ","無 ","112年度水上鄉各項補助型計畫委託製作計畫書開口契約 ","勞務","工程服務 ","390000","390000","112/09/12","112/09/14","嘉義縣－水上 ","否","","非受中央政府補助比率逾工程建造經費百分之五十且補助經費達新臺幣一億元以上之個案公共工程 "]
["607","嘉義縣政府 ","嘉義縣水上鄉公所 ","無 ","水上(北回地區)都市計畫道路編號六北段及十三等道路拓寬工程個案變更委託技術服務案 ","勞務","都市計劃及景觀建築服務 ","600000","574000","112/09/12","112/09/14","嘉義縣－水上 ","否","","非中央政府辦理新臺幣一億元以上之公共工程 "]
["608","嘉義縣政府 ","嘉義縣竹崎鄉公所 ","無 ","竹崎鄉慈善堂紀念園區納骨櫃增設工程規劃設計及監造服務 ","勞務","工程服務 ","243248","238017","112/08/31","112/09/08","嘉義縣－竹崎 ","否","","非受中央政府補助比率逾工程建造經費百分之五十且補助經費達新臺幣一億元以上之個案公共工程 "]
["609","嘉義縣政府 ","嘉義縣大埔鄉公所 ","無 ","嘉義縣大埔鄉公所辦公廳舍拆除工程委託勘測設計及監造服務 ","勞務","工程服務 ","308646","308646","112/09/22","112/09/23","嘉義縣－大埔 ","否","","整修工程、拆除工程、疏濬工程、結構補強工程 "]
["610","嘉義縣政府 ","嘉義縣立新港國民中學 ","教育部體育署 ","112年度期中修整建運動場地壓克力工程委託規劃設計監造服務案 ","勞務","工程服務 ","323334","323334","112/09/12","112/09/12","嘉義縣－新港 ","否","","整修工程、拆除工程、疏濬工程、結構補強工程 "]
["611","嘉義縣政府 ","嘉義縣立東榮國民中學 ","嘉義縣政府、教育部國民及學前教育署 ","嘉義縣東榮國中設置學校社區共讀站工程委託規劃、設計及監造技術服務勞務採購 ","勞務","建築服務 ","172000","172000","112/09/18","112/09/25","嘉義縣－全區 ","否","","非中央政府辦理新臺幣一億元以上之公共工程,非受中央政府補助比率逾工程建造經費百分之五十且補助經費達新臺幣一億元以上之個案公共工程 "]
["612","嘉義縣政府 ","嘉義縣立忠和國民中學 ","教育部 ","嘉義縣立忠和國民中學112學年度忠孝樓廁所改善工程規劃設計監造委託技術服務案 ","勞務","工程服務 ","223826","209284","112/09/13","112/09/13","嘉義縣－水上 ","否","","非中央政府辦理新臺幣一億元以上之公共工程,非受中央政府補助比率逾工程建造經費百分之五十且補助經費達新臺幣一億元以上之個案公共工程,整修工程、拆除工程、疏濬工程、結構補強工程 "]
["613","嘉義縣政府 ","嘉義縣立大埔國民中小學 ","內政部營建署 ","112年度大埔國中小校園周邊暨行車安全道路改善工程委託設計監造技術服務 ","勞務","建築服務 ","402735","402735","112/09/12","112/09/12","嘉義縣－大埔 ","否","","非中央政府辦理新臺幣一億元以上之公共工程,非受中央政府補助比率逾工程建造經費百分之五十且補助經費達新臺幣一億元以上之個案公共工程 "]
["614","嘉義縣政府 ","嘉義縣民雄鄉民雄國民小學 ","教育部 ","嘉義縣民雄鄉民雄國民小學112年度教育部補助公立國民中小學老舊廁所整修工程規劃設計監造服務案 ","勞務","建築服務 ","320256","316532","112/09/13","112/09/19","嘉義縣－全區 ","否","","整修工程、拆除工程、疏濬工程、結構補強工程 "]
["615","嘉義縣政府 ","嘉義縣溪口鄉溪口國民小學 ","嘉義縣政府 ","嘉義縣溪口國民小學青雲樓及藝耀圖書館老舊廁所整修工程委託規劃設計監造技術服務案 ","勞務","建築服務 ","288064","288064","112/09/21","112/09/22","嘉義縣－全區 ","否","","非中央政府辦理新臺幣一億元以上之公共工程 "]
["616","嘉義縣政府 ","嘉義縣六腳鄉六美國民小學 ","嘉義縣政府 ","六美國小「教育部補助公立國民中小學老舊廁所整修工 程經費」委託設計規劃監造服務勞務採購案 ","勞務","工程服務 ","156363","156363","112/09/06","112/09/08","嘉義縣－全區 ","否","","整修工程、拆除工程、疏濬工程、結構補強工程 "]
["617","嘉義縣政府 ","嘉義縣義竹鄉過路國民小學 ","嘉義縣政府 ","過路國小112年老舊廁所整修工程設計監造採購案 ","勞務","建築服務 ","236720","231986","112/09/08","112/09/12","嘉義縣－義竹 ","否","","整修工程、拆除工程、疏濬工程、結構補強工程 "]
["618","嘉義縣政府 ","嘉義縣竹崎鄉內埔國民小學 ","教育部國民及學前教育署 ","嘉義縣竹崎鄉內埔國民小學112學年度公立國民中小學老舊廁所整修工程委託設計規劃監造服務 ","勞務","建築服務 ","201201","201200","112/09/05","112/09/05","嘉義縣－竹崎 ","否","","整修工程、拆除工程、疏濬工程、結構補強工程 "]
["619","嘉義縣政府 ","嘉義縣朴子市朴子國民小學 ","嘉義縣政府 ","嘉義縣朴子市朴子國民小學辦理教育部補助公立國民中小學老舊廁所整修工程規劃設計監造勞務採購 ","勞務","建築服務 ","390000","337895","112/09/22","112/09/23","南部地區－全區 ","否","","整修工程、拆除工程、疏濬工程、結構補強工程 "]
["620","嘉義縣政府 ","嘉義縣朴子市大同國民小學 ","嘉義縣政府 ","大同國小慎思樓廁所改善工程委託設計監造技術服務 ","勞務","工程服務 ","322000","322000","112/09/15","112/09/18","嘉義縣－朴子 ","否","","整修工程、拆除工程、疏濬工程、結構補強工程 "]
["621","嘉義縣政府 ","嘉義縣朴子市大同國民小學 ","嘉義縣政府 ","大同國小力行A棟廁所改善工程委託設計監造技術服務 ","勞務","工程服務 ","337000","337000","112/09/15","112/09/18","嘉義縣－朴子 ","否","","整修工程、拆除工程、疏濬工程、結構補強工程 "]
["622","嘉義縣政府 ","嘉義縣朴子市大同國民小學 ","嘉義縣政府 ","大同國小勤學樓廁所改善工程委託設計監造技術服務 ","勞務","工程服務 ","372000","372000","112/09/15","112/09/18","嘉義縣－朴子 ","否","","整修工程、拆除工程、疏濬工程、結構補強工程 "]
["623","嘉義縣政府 ","嘉義縣中埔鄉和興國民小學 ","教育部國民及學前教育署 ","和興國小老舊廁所整修工程委託規劃設計監造技術服務案 ","勞務","工程服務 ","1400000","1400000","112/09/08","112/09/08","嘉義縣－中埔 ","否","","整修工程、拆除工程、疏濬工程、結構補強工程 "]
["624","彰化縣政府 ","彰化縣政府 ","內政部 ","彰化縣和美鎮鄉村地區整體規劃作業 ","勞務","都市計劃及景觀建築服務 ","5500000","5500000","112/09/26","112/09/27","彰化縣－和美 ","否","","非中央政府辦理新臺幣一億元以上之公共工程 "]
["625","彰化縣政府 ","彰化縣政府 ","內政部營建署 ","112年度「綠建築設計查核業務及推動綠建築宣導計畫」委託專業服務案 ","勞務","建築服務 ","1892000","1892000","112/09/26","112/09/27","彰化縣－全區 ","否","","規劃取得綠建築標章之建築工程 "]
["626","彰化縣政府 ","彰化縣政府 ","交通部公路總局 ","彰化縣大村鄉學府路校園周邊暨行車安全道路改善計畫委託設計監造案 ","勞務","工程服務 ","2145736","2027721","112/09/26","112/09/27","彰化縣－大村 ","否","","非中央政府辦理新臺幣一億元以上之公共工程,整修工程、拆除工程、疏濬工程、結構補強工程 "]
["627","彰化縣政府 ","彰化縣政府 ","行政院環境保護署 ","彰化縣溪州公園公廁修繕工程委託設計監造案 ","勞務","工程服務 ","1226960","1159477","112/09/19","112/09/22","彰化縣－溪州 ","否","","整修工程、拆除工程、疏濬工程、結構補強工程 "]
["628","彰化縣政府 ","彰化縣政府 ","教育部 ","彰化縣竹塘鄉竹塘國民中學曉陽館重建工程委託規劃設計監造技術服務案 ","勞務","建築服務 ","4968510","4720085","112/09/07","112/09/12","彰化縣－竹塘 ","否","","規劃取得綠建築標章之建築工程 "]
["629","彰化縣政府 ","彰化縣政府 ","無 ","洋仔厝溪堤岸道路第二標南北岸工程委託規劃設計暨監造技術服務工作-第一次變更設計 ","勞務","工程服務 ","35741724","35741724","112/08/31","112/09/01","彰化縣－鹿港 ","已依規定納入辦理節能減碳檢核 ","計畫提報核定階段納入辦理節能減碳檢核 ",""]
["630","彰化縣政府 ","彰化縣政府 ","無 ","「彰化縣伸港鄉青年住宅(第一期)新建統包工程」委託專案管理（含監造）技術服務案 ","勞務","建築服務 ","22623844","21040175","112/09/14","112/09/15","彰化縣－伸港 ","否","","規劃取得綠建築標章之建築工程 "]
["631","彰化縣政府 ","彰化縣政府 ","無 ","彰化縣112年度縣鄉道橋樑維修工程委託設計監造開口契約 ","勞務","工程服務 ","786078","742844","112/09/21","112/09/22","彰化縣－全區 ","否","","整修工程、拆除工程、疏濬工程、結構補強工程 "]
["632","彰化縣政府 ","彰化縣警察局 ","無 ","彰化縣警察局芳苑分局原斗派出所辦公廳舍新建工程委託建築師規劃、設計、監造技術服務採購案 ","勞務","建築服務 ","2850093","2753190","112/09/19","112/09/23","彰化縣－全區 ","否","","非中央政府辦理新臺幣一億元以上之公共工程 "]
["633","彰化縣政府 ","彰化縣文化局 ","無 ","聚落建築群彰化中興莊周邊建物及附屬設施再利用工程委託規劃設計監造(含工作紀錄製作)案 ","勞務","工程服務 ","1855000","1854000","112/09/26","112/09/27","彰化縣－彰化 ","否","","非中央政府辦理新臺幣一億元以上之公共工程 "]
["634","彰化縣政府 ","彰化縣彰化市公所 ","行政院環境保護署 ","彰化市112~113年度「優質公廁及美質環境推動計畫」泰和公園及華陽市場1樓北側公廁改善工程委託設計及監造技術服務 ","勞務","工程服務 ","264044","237640","112/08/25","112/09/04","彰化縣－彰化 ","否","","非受中央政府補助比率逾工程建造經費百分之五十且補助經費達新臺幣一億元以上之個案公共工程 "]
["635","彰化縣政府 ","彰化縣二林鎮公所 ","內政部營建署 ","「彰化縣二林工商周邊道路暨節點安全改善計畫」委託設計監造 ","勞務","工程服務 ","5292950","5187091","112/09/15","112/09/19","彰化縣－二林 ","否","","非中央政府辦理新臺幣一億元以上之公共工程,整修工程、拆除工程、疏濬工程、結構補強工程 "]
["636","彰化縣政府 ","彰化縣花壇鄉公所 ","無 ","變更花壇都市計畫（第四次通盤檢討）暨未來發展規劃委託技術服務案 ","勞務","都市計劃及景觀建築服務 ","5300000","5180000","112/08/29","112/09/08","彰化縣－花壇 ","否","","非中央政府辦理新臺幣一億元以上之公共工程,非受中央政府補助比率逾工程建造經費百分之五十且補助經費達新臺幣一億元以上之個案公共工程 "]
["637","彰化縣政府 ","彰化縣大村鄉公所 ","無 ","「大村鄉大村社區活動中心興建工程委託規劃設計監造等技術服務案」變更設計議價案 ","勞務","工程服務 ","1203063","1179002","112/09/27","112/09/28","彰化縣－大村 ","否","","非中央政府辦理新臺幣一億元以上之公共工程 "]
["638","彰化縣政府 ","彰化縣永靖鄉公所 ","無 ","永靖鄉立幼兒園幼幼班室內裝修工程委託規劃設計及監造技術服務案 ","勞務","建築服務 ","213322","212255","112/09/07","112/09/08","彰化縣－永靖 ","否","","非中央政府辦理新臺幣一億元以上之公共工程,整修工程、拆除工程、疏濬工程、結構補強工程 "]
["639","彰化縣政府 ","彰化縣溪州鄉公所 ","內政部營建署 ","彰化縣溪州國小及溪州國中週邊人行環境改善計畫工程設計案 ","勞務","工程服務 ","1000000","960000","112/09/12","112/09/25","彰化縣－溪州 ","否","","非中央政府辦理新臺幣一億元以上之公共工程 "]
["640","彰化縣政府 ","彰化縣員林市公所 ","無 ","員林市立圖書館1、2館建築物耐震補強工程委託規劃設計及監造技術服務案 ","勞務","工程服務 ","1026441","985383","112/09/19","112/09/20","彰化縣－員林 ","否","","非中央政府辦理新臺幣一億元以上之公共工程,非受中央政府補助比率逾工程建造經費百分之五十且補助經費達新臺幣一億元以上之個案公共工程,整修工程、拆除工程、疏濬工程、結構補強工程 "]
["641","彰化縣政府 ","彰化縣立大村國民中學 ","教育部國民及學前教育署 ","大村國中112年北二棟老舊廁所整修工程委託規畫設計監造技術服務 ","勞務","工程服務 ","420658","416451","112/09/12","112/09/13","彰化縣－大村 ","否","","整修工程、拆除工程、疏濬工程、結構補強工程 "]
["642","彰化縣政府 ","彰化縣立彰興國民中學 ","教育部國民及學前教育署 ","彰化縣立彰興國民中學112年度老舊廁所整修工程委託規劃設計監造服務採購案 ","勞務","建築服務 ","367314","359968","112/09/14","112/09/15","中部地區－全區 ","否","","整修工程、拆除工程、疏濬工程、結構補強工程 "]
["643","彰化縣政府 ","彰化縣彰化市中山國民小學 ","彰化縣政府 ","112年度老舊廁所整修工程(行政大樓1F-3F)委託規劃設計監造案 ","勞務","工程服務 ","276458","276358","112/09/07","112/09/15","彰化縣－彰化 ","否","","非受中央政府補助比率逾工程建造經費百分之五十且補助經費達新臺幣一億元以上之個案公共工程 "]
["644","彰化縣政府 ","彰化縣彰化市南郭國民小學 ","教育部 ","112年度南郭國小博學樓西側1-4樓老舊廁所整修工程委託規劃設計監造技術服務採購案 ","勞務","工程服務 ","359888","359888","112/09/15","112/09/22","彰化縣－彰化 ","否","","整修工程、拆除工程、疏濬工程、結構補強工程 "]
["645","彰化縣政府 ","彰化縣彰化市南郭國民小學 ","彰化縣政府 ","南郭國小111年度校舍防水隔熱工程委託規劃設計服務案」之後續監造技術服務(慎思樓、定靜樓) ","勞務","工程服務 ","135554","135000","112/08/31","112/09/07","彰化縣－彰化 ","否","","非中央政府辦理新臺幣一億元以上之公共工程,非受中央政府補助比率逾工程建造經費百分之五十且補助經費達新臺幣一億元以上之個案公共工程,整修工程、拆除工程、疏濬工程、結構補強工程 "]
["646","彰化縣政府 ","彰化縣彰化市平和國民小學 ","彰化縣政府 ","彰化縣彰化市文小七用地（建和分校）第三階段拆除工程規劃設計監造委託技術服務 ","勞務","工程服務 ","350000","348000","112/09/19","112/09/20","彰化縣－全區 ","否","","非中央政府辦理新臺幣一億元以上之公共工程,整修工程、拆除工程、疏濬工程、結構補強工程 "]
["647","彰化縣政府 ","彰化縣鹿港鎮新興國民小學 ","教育部國民及學前教育署 ","112年度新興國小廁所整修工程設計監造技術服務案 ","勞務","工程服務 ","205218","205000","112/09/12","112/09/12","彰化縣－鹿港 ","否","","非中央政府辦理新臺幣一億元以上之公共工程 "]
["648","彰化縣政府 ","彰化縣秀水鄉秀水國民小學 ","教育部國民及學前教育署 ","112年彰化縣秀水國小廁所整建計畫之委託規劃設計監造勞務採購案 ","勞務","工程服務 ","504532","502000","112/09/13","112/09/18","彰化縣－全區 ","否","","整修工程、拆除工程、疏濬工程、結構補強工程 "]
["649","彰化縣政府 ","彰化縣線西鄉線西國民小學 ","教育部國民及學前教育署、彰化縣政府 ","112年度彰化縣線西國小B、C棟大樓老舊廁所整修工程委託規劃設計監造技術服務採購案 ","勞務","工程服務 ","342415","336442","112/09/15","112/09/15","彰化縣－線西 ","否","","整修工程、拆除工程、疏濬工程、結構補強工程 "]
["650","彰化縣政府 ","彰化縣埔心鄉埔心國民小學 ","教育部國民及學前教育署 ","112年埔心國小全校排水系統改善工程委託規劃設計監造技術服務案 ","勞務","建築服務 ","452744","448217","112/08/30","112/09/01","彰化縣－埔心 ","否","","整修工程、拆除工程、疏濬工程、結構補強工程 "]
["651","彰化縣政府 ","彰化縣埔心鄉太平國民小學 ","教育部國民及學前教育署 ","彰化縣太平國小教學及行政大樓老舊廁所整修工程規劃設計監造服務勞務採購案 ","勞務","工程服務 ","246504","246504","112/09/14","112/09/18","彰化縣－埔心 ","否","","非中央政府辦理新臺幣一億元以上之公共工程,整修工程、拆除工程、疏濬工程、結構補強工程 "]
["652","彰化縣政府 ","彰化縣埔心鄉梧鳳國民小學 ","教育部國民及學前教育署 ","南棟教學大樓老舊廁所整修工程委託規劃設計監造技術服務 ","勞務","工程服務 ","214316","214316","112/09/27","112/09/27","彰化縣－全區 ","否","","非中央政府辦理新臺幣一億元以上之公共工程 "]
["653","彰化縣政府 ","彰化縣田中鎮明禮國民小學 ","教育部國民及學前教育署 ","112年度公立國民中小學老舊廁所整修工程採購案委託設計監造採購案 ","勞務","建築服務 ","244012","235500","112/09/20","112/09/26","彰化縣－全區 ","否","","整修工程、拆除工程、疏濬工程、結構補強工程 "]
["654","彰化縣政府 ","彰化縣永靖鄉永興國民小學 ","彰化縣政府 ","永興國小老舊廁所整修工程委託規劃設計暨監造技術服務 ","勞務","工程服務 ","291496","270000","112/09/07","112/09/12","彰化縣－永靖 ","否","","整修工程、拆除工程、疏濬工程、結構補強工程 "]
["655","彰化縣政府 ","彰化縣田尾鄉田尾國民小學 ","教育部國民及學前教育署、彰化縣政府 ","彰化縣田尾國小B棟教室老舊廁所改善工程 委託設計監造技術服務案 ","勞務","工程服務 ","225547","225000","112/09/25","112/09/25","彰化縣－田尾 ","否","","整修工程、拆除工程、疏濬工程、結構補強工程 "]
["656","彰化縣政府 ","彰化縣員林市僑信國民小學 ","教育部國民及學前教育署 ","僑信國小112年度A棟廁所整建委託規劃設計監造技術服務勞務採購 ","勞務","建築服務 ","321113","305000","112/09/18","112/09/20","中部地區－全區 ","否","","非受中央政府補助比率逾工程建造經費百分之五十且補助經費達新臺幣一億元以上之個案公共工程 "]
["657","臺中市政府 ","臺中市立西苑高級中學 ","臺中市政府教育局 ","112-113年度「設置學校社區共讀站」規劃設計監造技術服務採購案 ","勞務","建築服務 ","162323","162323","112/08/28","112/09/07","臺中市－西屯區 ","否","","非中央政府辦理新臺幣一億元以上之公共工程 "]
["658","臺中市政府 ","臺中市立臺中第一高級中等學校 ","無 ","臺中一中校舍耐震能力詳細評估技術服務 ","勞務","建築服務 ","3108603","1378000","112/09/21","112/09/26","臺中市－北區 ","否","","非中央政府辦理新臺幣一億元以上之公共工程,非受中央政府補助比率逾工程建造經費百分之五十且補助經費達新臺幣一億元以上之個案公共工程 "]
["659","臺中市政府 ","臺中市立臺中第二高級中等學校 ","無 ","112年高三教室冷氣設備安裝額外項勞務採購案 ","勞務","工程服務 ","393000","351000","112/09/07","112/09/15","臺中市－北區 ","否","","非受中央政府補助比率逾工程建造經費百分之五十且補助經費達新臺幣一億元以上之個案公共工程 "]
["660","臺中市政府 ","臺中市立雙十國民中學 ","臺中市政府教育局 ","臺中市立雙十國民中學112-113年度學校社區共讀站委託設計監造勞務採購案 ","勞務","工程服務 ","205136","205136","112/09/20","112/09/28","臺中市－北區 ","否","","非受中央政府補助比率逾工程建造經費百分之五十且補助經費達新臺幣一億元以上之個案公共工程 "]
["661","臺中市政府 ","臺中市立崇倫國民中學 ","臺中市政府教育局 ","汙水下水道接管工程技術服務 ","勞務","工程服務 ","1066887","1013543","112/09/11","112/09/21","臺中市－南區 ","否","","整修工程、拆除工程、疏濬工程、結構補強工程 "]
["662","臺中市政府 ","臺中市立向上國民中學 ","教育部國民及學前教育署 ","「112-113年度校園社區化改造計畫-設置學校社區共讀站」委託規劃監造採購案 ","勞務","建築服務 ","240000","233520","112/09/26","112/09/26","臺中市－西區 ","否","","整修工程、拆除工程、疏濬工程、結構補強工程 "]
["663","臺中市政府 ","臺中市立福科國民中學 ","臺中市政府教育局 ","112年度學校校區共讀站委託設計服務監造採購案 ","勞務","建築服務 ","238000","230000","112/09/19","112/09/23","臺中市－全區 ","否","","整修工程、拆除工程、疏濬工程、結構補強工程 "]
["664","臺中市政府 ","臺中市立后里國民中學 ","臺中市政府教育局 ","臺中市立后里國民中學舊校舍BC棟拆除工程委託技術服務採購 ","勞務","工程服務 ","496019","491059","112/09/01","112/09/01","臺中市－后里區 ","否","","非中央政府辦理新臺幣一億元以上之公共工程 "]
["665","臺中市政府 ","臺中市立潭子國民中學 ","內政部營建署、臺中市政府建設局 ","潭子國中校園周邊暨行車安全道路改善工程委託設計監造技術服務 ","勞務","工程服務 ","1600038","1583577","112/08/30","112/09/01","臺中市－潭子區 ","否","","非中央政府辦理新臺幣一億元以上之公共工程,非受中央政府補助比率逾工程建造經費百分之五十且補助經費達新臺幣一億元以上之個案公共工程 "]
["666","臺中市政府 ","臺中市立潭子國民中學 ","教育部國民及學前教育署、臺中市政府教育局 ","英才樓老舊廁所整修工程委託設計監造技術服務 ","勞務","建築服務 ","286399","286399","112/09/26","112/09/27","臺中市－潭子區 ","否","","非中央政府辦理新臺幣一億元以上之公共工程,非受中央政府補助比率逾工程建造經費百分之五十且補助經費達新臺幣一億元以上之個案公共工程,整修工程、拆除工程、疏濬工程、結構補強工程 "]
["667","臺中市政府 ","臺中市立烏日國民中學 ","臺中市政府教育局 ","臺中市立烏日國民中學「112-113年度校園社區化改造計畫-設置學校社區共讀站」委託設計監造技術服務 ","勞務","建築服務 ","231438","231438","112/09/13","112/09/15","臺中市－烏日區 ","否","","非中央政府辦理新臺幣一億元以上之公共工程 "]
["668","臺中市政府 ","臺中市立石岡國民中學 ","臺中市政府教育局 ","112學年度臺中市區域職業試探與體驗示範中心整建工程委託規劃設計監造案 ","勞務","建築服務 ","480795","480000","112/09/08","112/09/27","中部地區－全區 ","否","","非中央政府辦理新臺幣一億元以上之公共工程,非受中央政府補助比率逾工程建造經費百分之五十且補助經費達新臺幣一億元以上之個案公共工程 "]
["669","臺中市政府 ","臺中市立潭秀國民中學 ","教育部體育署、臺中市政府教育局 ","113年潭秀國中足球場整修工程委託技術服務採購案 ","勞務","綜合工程服務 ","773126","772971","112/09/11","112/09/13","臺中市－潭子區 ","否","","非中央政府辦理新臺幣一億元以上之公共工程,整修工程、拆除工程、疏濬工程、結構補強工程 "]
["670","臺中市政府 ","臺中市立新光國民中學 ","教育部國民及學前教育署 ","薈文樓東側廁所整修工程委託規劃、設計、監造技術服務(第一次契約變更) ","勞務","工程服務 ","73741","73741","112/08/30","112/09/01","臺中市－太平區 ","否","","非中央政府辦理新臺幣一億元以上之公共工程 "]
["671","臺中市政府 ","臺中市南屯區春安國民小學 ","教育部國民及學前教育署、臺中市政府教育局 ","臺中市南屯區春安國小「112年度春安館設施設備修繕工程」委託規劃設計監造技術服務採購 ","勞務","工程服務 ","570241","545000","112/09/12","112/09/23","臺中市－南屯區 ","否","","非中央政府辦理新臺幣一億元以上之公共工程,非受中央政府補助比率逾工程建造經費百分之五十且補助經費達新臺幣一億元以上之個案公共工程,整修工程、拆除工程、疏濬工程、結構補強工程 "]
["672","臺中市政府 ","臺中市北屯區建功國民小學 ","臺中市政府教育局 ","東棟校舍南側老舊廁所整修工程委託規劃設計監造技術服務 ","勞務","建築服務 ","439677","439677","112/09/08","112/09/08","臺中市－全區 ","否","","非中央政府辦理新臺幣一億元以上之公共工程 "]
["673","臺中市政府 ","臺中市北屯區軍功國民小學 ","教育部國民及學前教育署 ","112年度充實設施設備-辦理御風樓外牆磁磚整建及頂樓鋁板脫落改善工程委託設計監造技術服務 ","勞務","建築服務 ","294801","294000","112/09/15","112/09/18","臺中市－全區 ","否","","非中央政府辦理新臺幣一億元以上之公共工程,非受中央政府補助比率逾工程建造經費百分之五十且補助經費達新臺幣一億元以上之個案公共工程 "]
["674","臺中市政府 ","臺中市北屯區文昌國民小學 ","臺中市政府 ","臺中市北屯區文昌國民小學社區共讀站委託規劃設計監造技術服務 ","勞務","建築服務 ","205468","205000","112/09/07","112/09/12","中部地區－全區 ","否","","非受中央政府補助比率逾工程建造經費百分之五十且補助經費達新臺幣一億元以上之個案公共工程,整修工程、拆除工程、疏濬工程、結構補強工程 "]
["675","臺中市政府 ","臺中市北屯區文昌國民小學 ","臺中市政府教育局 ","臺中市北屯區文昌國民小學A、D棟與弘文堂老舊廁所整修工程委託規劃設計監造技術服務 ","勞務","建築服務 ","345130","343000","112/09/26","112/09/28","中部地區－全區 ","否","","整修工程、拆除工程、疏濬工程、結構補強工程 "]
["676","臺中市政府 ","臺中市北屯區文心國民小學 ","教育部國民及學前教育署 ","老舊廁所(B棟、C-1棟)整修工程委託監造技術服務案 ","勞務","建築服務 ","256013","253453","112/09/13","112/09/14","中部地區－全區 ","否","","整修工程、拆除工程、疏濬工程、結構補強工程 "]
["677","臺中市政府 ","臺中市西屯區國安國民小學 ","臺中市政府教育局 ","立體金屬遮陽板整修工程-委託設計監造技術服務採購案 ","勞務","工程服務 ","263668","263668","112/09/27","112/09/27","臺中市－西屯區 ","否","","整修工程、拆除工程、疏濬工程、結構補強工程 "]
["678","臺中市政府 ","臺中市北屯區四張犁國民小學 ","臺中市政府教育局 ","臺中市北屯區四張犁國民小學社區共讀站委託規劃設計監造技術服務採購案 ","勞務","工程服務 ","240000","240000","112/09/08","112/09/08","臺中市－北屯區 ","否","","非中央政府辦理新臺幣一億元以上之公共工程 "]
["679","臺中市政府 ","臺中市龍井區龍峰國民小學 ","臺中市政府教育局 ","臺中市龍井區龍峰國民小學112年設置學校社區共讀站工程委託設計監造技術服務 ","勞務","工程服務 ","201084","198746","112/08/28","112/09/07","臺中市－龍井區 ","否","","整修工程、拆除工程、疏濬工程、結構補強工程 "]
["680","臺中市政府 ","臺中市后里區育英國民小學 ","無 ","臺中市后里區育英國民小學109年度老舊廁所整修工程技術服務委託採購案 ","勞務","建築服務 ","53805","30000","112/09/12","112/09/12","臺中市－后里區 ","否","","整修工程、拆除工程、疏濬工程、結構補強工程 "]
["681","臺中市政府 ","臺中市大安區大安國民小學 ","教育部國民及學前教育署、臺中市政府教育局 ","「112年度體育館老舊廁所整修工程」委託規劃設計監造技術服務採購案 ","勞務","建築服務 ","185019","185019","112/09/28","112/09/28","臺中市－大安區 ","否","","非中央政府辦理新臺幣一億元以上之公共工程,整修工程、拆除工程、疏濬工程、結構補強工程 "]
["682","臺中市政府 ","臺中市龍井區龍津國民小學 ","臺中市政府教育局 ","臺中市龍井區龍津國民小學社區共讀站工程委託規劃設計監造採購案 ","勞務","工程服務 ","205435","205435","112/09/14","112/09/14","臺中市－龍井區 ","否","","非中央政府辦理新臺幣一億元以上之公共工程 "]
["683","臺中市政府 ","臺中市大雅區大明國民小學 ","教育部國民及學前教育署 ","大明國小明仁樓B棟老舊廁所整修工程委託規劃設計監造技術服務採購 ","勞務","建築服務 ","237023","236976","112/09/21","112/09/23","臺中市－大雅區 ","否","","非受中央政府補助比率逾工程建造經費百分之五十且補助經費達新臺幣一億元以上之個案公共工程 "]
["684","臺中市政府 ","臺中市神岡區圳堵國民小學 ","臺中市政府教育局 ","圳堵國小學校社區共讀站委託設計監造採購案 ","勞務","工程服務 ","204000","204000","112/09/21","112/09/23","中部地區－全區 ","否","","整修工程、拆除工程、疏濬工程、結構補強工程 "]
["685","臺中市政府 ","臺中市豐原區豐田國民小學 ","無 ","臺中市豐原區豐田國小「112-113年老舊廁所整修工程委託設計監造技術服務」 ","勞務","建築服務 ","170392","170392","112/09/21","112/09/21","臺中市－豐原區 ","否","","非中央政府辦理新臺幣一億元以上之公共工程,非受中央政府補助比率逾工程建造經費百分之五十且補助經費達新臺幣一億元以上之個案公共工程,整修工程、拆除工程、疏濬工程、結構補強工程 "]
["686","臺中市政府 ","臺中市豐原區瑞穗國民小學 ","臺中市政府教育局 ","「112年度公立國民中小學老舊廁所整修工程-信義樓及體育館」委託規劃設計監造技術服務採購 ","勞務","建築服務 ","232874","230167","112/09/22","112/09/23","臺中市－豐原區 ","否","","非中央政府辦理新臺幣一億元以上之公共工程,非受中央政府補助比率逾工程建造經費百分之五十且補助經費達新臺幣一億元以上之個案公共工程,整修工程、拆除工程、疏濬工程、結構補強工程 "]
["687","臺中市政府 ","臺中市清水區建國國民小學 ","內政部營建署、臺中市政府教育局 ","臺中市清水區建國國民小學校門口通學步道改善工程委託設計監造技術服務採購案 ","勞務","工程服務 ","1234716","1219982","112/09/07","112/09/08","臺中市－清水區 ","否","","非中央政府辦理新臺幣一億元以上之公共工程 "]
["688","臺中市政府 ","臺中市清水區清水國民小學 ","臺中市政府教育局 ","「公立國民中小學老舊廁所整修工程經費(含規劃設計費)」案委託規劃設計監造技術服務 ","勞務","工程服務 ","303896","303896","112/09/19","112/09/19","臺中市－清水區 ","否","","整修工程、拆除工程、疏濬工程、結構補強工程 "]
["689","臺中市政府 ","臺中市梧棲區梧棲國民小學 ","教育部國民及學前教育署 ","臺中市梧棲區梧棲國民小學112年度公立國民中小學 老舊廁所整修工程委託規劃設計監造案 ","勞務","建築服務 ","249253","236790","112/09/23","112/09/26","臺中市－梧棲區 ","否","","整修工程、拆除工程、疏濬工程、結構補強工程 "]
["690","臺中市政府 ","臺中市清水區槺榔國民小學 ","教育部國民及學前教育署 ","臺中市清水區槺榔國民小學老舊廁所整修工程委託設計監造技術服務 ","勞務","建築服務 ","283444","282593","112/09/26","112/09/28","臺中市－清水區 ","否","","整修工程、拆除工程、疏濬工程、結構補強工程 "]
["691","臺中市政府 ","臺中市大里區大元國民小學 ","臺中市政府教育局 ","112年度老舊廁所整修工程委託規劃設計監造技術服務勞務採購案 ","勞務","工程服務 ","375611","375611","112/09/20","112/09/21","臺中市－大里區 ","否","","整修工程、拆除工程、疏濬工程、結構補強工程 "]
["692","臺中市政府 ","臺中市太平區車籠埔國民小學 ","教育部國民及學前教育署 ","老舊廁所整修工程委託設計監造服務 ","勞務","建築服務 ","200178","200178","112/09/22","112/09/22","臺中市－太平區 ","否","","非中央政府辦理新臺幣一億元以上之公共工程 "]
["693","臺中市政府 ","臺中市大里區竹仔坑國民小學 ","臺中市政府教育局 ","老舊廁所整修工程委託技術服務 ","勞務","建築服務 ","224456","224456","112/09/22","112/09/25","臺中市－大里區 ","否","","整修工程、拆除工程、疏濬工程、結構補強工程 "]
["694","臺中市政府 ","臺中市政府建設局 ","無 ","臺中國際會展中心二期工程-第二次變更設計 ","工程","商用建築工程 ","112266517","110919316","112/09/19","112/09/20","臺中市－西屯區 ","否","","非受中央政府補助比率逾工程建造經費百分之五十且補助經費達新臺幣一億元以上之個案公共工程 "]
["695","臺中市政府 ","臺中市政府建設局 ","無 ","烏日區成功西路(中75-1)道路拓寬工程委託設計檢討暨監造技術服務案 ","勞務","工程服務 ","40321644","38851535","112/09/15","112/09/18","臺中市－烏日區 ","否","","非受中央政府補助比率逾工程建造經費百分之五十且補助經費達新臺幣一億元以上之個案公共工程 "]
["696","臺中市政府 ","臺中市政府建設局 ","無 ","臺中市14期重劃區等公園滯洪空間優化改善規劃 ","勞務","綜合工程服務 ","800000","770000","112/09/15","112/09/19","臺中市－北屯區,臺中市－南屯區 ","否","","非受中央政府補助比率逾工程建造經費百分之五十且補助經費達新臺幣一億元以上之個案公共工程"]
["697","臺中市政府 ","臺中市新建工程處 ","無 ","臺中生活圈4號線大肚段綜合規劃檢討委託技術服務案 ","勞務","綜合工程服務 ","12000000","12000000","112/09/01","112/09/04","臺中市－烏日區,臺中市－大肚區,臺中市－龍井區 ","否","","非中央政府辦理新臺幣一億元以上之公共工程 "]
["698","臺中市政府 ","臺中市新建工程處 ","無 ","112年花之道統包工程委託監造技術服務 ","勞務","綜合工程服務 ","757871","727556","112/08/31","112/09/01","臺中市－北區,臺中市－大里區 ","否","","非受中央政府補助比率逾工程建造經費百分之五十且補助經費達新臺幣一億元以上之個案公共工程 "]
["699","臺中市政府 ","臺中市新建工程處 ","無 ","臺中市北區公115公園新闢工程(第二期)委託監造技術服務 ","勞務","工程服務 ","2268046","2177324","112/09/27","112/09/28","臺中市－北區 ","否","","非中央政府辦理新臺幣一億元以上之公共工程 "]
["700","臺中市政府 ","臺中市政府環境保護局 ","無 ","112年清水掩埋場道路大雨掏空搶修復建工程-委託設計監造技術服務 ","勞務","工程服務 ","614347","577486","112/08/31","112/09/01","臺中市－全區 ","否","","災後原地復建 "]
["701","臺中市政府 ","臺中市政府地政局 ","內政部土地重劃工程處 ","臺中市大安區頂安農村社區土地重劃先期規劃專業服務委託案 ","勞務","都市計劃及景觀建築服務 ","1260000","1242000","112/08/31","112/09/04","臺中市－全區 ","已依規定納入辦理節能減碳檢核 ","規劃設計階段納入辦理節能減碳檢核 ",""]
["702","臺中市政府 ","臺中市政府經濟發展局 ","無 ","自來水延管路面復平計畫112年第三期工程委託設計監造技術服務 ","勞務","工程服務 ","3528303","3281322","112/09/21","112/09/22","臺中市－全區 ","否","","非中央政府辦理新臺幣一億元以上之公共工程,非受中央政府補助比率逾工程建造經費百分之五十且補助經費達新臺幣一億元以上之個案公共工程 "]
["703","臺中市政府 ","臺中市政府水利局 ","內政部營建署 ","臺中市潭子區雨水下水道系統檢討規劃委託技術服務 ","勞務","工程服務 ","9500000","9200000","112/09/05","112/09/06","臺中市－潭子區,臺中市－全區 ","否","","非中央政府辦理新臺幣一億元以上之公共工程,非受中央政府補助比率逾工程建造經費百分之五十且補助經費達新臺幣一億元以上之個案公共工程 "]
["704","臺中市政府 ","臺中市政府交通局 ","無 ","112年度臺中市交通號誌新設及改善工程暨纜線地下化工程委託設計監造(後續擴充) ","勞務","綜合工程服務 ","403947","403947","112/09/18","112/09/19","臺中市－全區 ","否","","非中央政府辦理新臺幣一億元以上之公共工程,非受中央政府補助比率逾工程建造經費百分之五十且補助經費達新臺幣一億元以上之個案公共工程 "]
["705","臺中市政府 ","臺中市政府交通局 ","無 ","112年度臺中市易肇事路段改善工程及綠斑馬學童安全改善工程委託監造(第三次後續擴充) ","勞務","綜合工程服務 ","289156","289156","112/09/26","112/09/27","臺中市－全區 ","否","","非中央政府辦理新臺幣一億元以上之公共工程,非受中央政府補助比率逾工程建造經費百分之五十且補助經費達新臺幣一億元以上之個案公共工程 "]
["706","臺中市政府 ","臺中市政府觀光旅遊局 ","無 ","臺中市旱溪西路自行車道(金母橋至新光橋)建置工程委託監造技術服務 ","勞務","工程服務 ","594232","594232","112/09/26","112/09/26","臺中市－北區,臺中市－北屯區,臺中市－太平區 ","否","","非中央政府辦理新臺幣一億元以上之公共工程,非受中央政府補助比率逾工程建造經費百分之五十且補助經費達新臺幣一億元以上之個案公共工程 "]
["707","臺中市政府 ","臺中市政府觀光旅遊局 ","無 ","旱溪自行車道建置暨水環境改善工程委託設計監造技術服務—第一次契約變更 ","勞務","工程服務 ","1381938","1381938","112/09/12","112/09/13","臺中市－潭子區 ","否","","非中央政府辦理新臺幣一億元以上之公共工程,非受中央政府補助比率逾工程建造經費百分之五十且補助經費達新臺幣一億元以上之個案公共工程 "]
["708","臺中市政府 ","臺中市文化資產處 ","無 ","考古遺址出土遺物典存庫房修復再利用工程及空間建置委託監造技術案-第1次變更設計案 ","勞務","建築服務 ","850000","850000","112/09/08","112/09/12","臺中市－大里區 ","否","","非中央政府辦理新臺幣一億元以上之公共工程,非受中央政府補助比率逾工程建造經費百分之五十且補助經費達新臺幣一億元以上之個案公共工程 "]
["709","臺中市政府 ","臺中市文化資產處 ","無 ","歷史建築原金源吉宅第修復暨再利用工程規劃設計檢討委託技術服務案 ","勞務","建築服務 ","1250000","1250000","112/09/22","112/09/25","臺中市－北屯區 ","否","","非中央政府辦理新臺幣一億元以上之公共工程,非受中央政府補助比率逾工程建造經費百分之五十且補助經費達新臺幣一億元以上之個案公共工程 "]
["710","臺中市政府 ","臺中市政府都市發展局 ","內政部 ","「臺中市轉運產創策略區-霧峰區鄉村地區整體規劃委託技術服務案」 ","勞務","都市計劃及景觀建築服務 ","5000000","5000000","112/09/08","112/09/11","臺中市－霧峰區 ","否","","非受中央政府補助比率逾工程建造經費百分之五十且補助經費達新臺幣一億元以上之個案公共工程 "]
["711","臺中市政府 ","臺中市政府都市發展局 ","內政部營建署 ","112年度臺中市社區規劃師駐地輔導計畫 ","勞務","都市計劃及景觀建築服務 ","15000000","15000000","112/09/01","112/09/04","臺中市－全區 ","否","","非中央政府辦理新臺幣一億元以上之公共工程,非受中央政府補助比率逾工程建造經費百分之五十且補助經費達新臺幣一億元以上之個案公共工程 "]
["712","臺中市政府 ","臺中市政府都市發展局 ","無 ","關連工業區第三期細部計畫通盤檢討案 ","勞務","都市計劃及景觀建築服務 ","7703000","7703000","112/09/20","112/09/21","臺中市－龍井區 ","否","","非中央政府辦理新臺幣一億元以上之公共工程,非受中央政府補助比率逾工程建造經費百分之五十且補助經費達新臺幣一億元以上之個案公共工程 "]
["713","臺中市政府 ","臺中市政府住宅發展工程處 ","無 ","臺中市西屯區國安段二期暨三期社會住宅統包工程 ","工程","多棟式住宅建築工程 ","3796448000","3796448000","112/09/15","112/09/21","臺中市－西屯區 ","否","","規劃取得綠建築標章之建築工程 "]
["714","臺中市政府 ","臺中市西屯區公所 ","無 ","112年度台電及回饋金補助各里小型工程(開口契約)委託設計監造後續擴充 ","勞務","工程服務 ","154286","154286","112/09/05","112/09/19","臺中市－全區 ","否","","非中央政府辦理新臺幣一億元以上之公共工程 "]
["715","臺中市政府 ","臺中市南屯區公所 ","無 ","「112年度臺中市南屯區基礎公共建設工程委託設計監造(開口契約)」第三次後續擴充增購 ","勞務","工程服務 ","28951","28951","112/08/31","112/09/13","臺中市－南屯區 ","否","","非受中央政府補助比率逾工程建造經費百分之五十且補助經費達新臺幣一億元以上之個案公共工程 "]
["716","臺中市政府 ","臺中市清水區公所 ","無 ","臺中市清水區清水國中校園周邊人行環境品質提升改善工程委託設計監造技術服務 ","勞務","工程服務 ","5519134","5243177","112/09/21","112/09/23","臺中市－清水區 ","否","","非受中央政府補助比率逾工程建造經費百分之五十且補助經費達新臺幣一億元以上之個案公共工程 "]
["717","臺中市政府 ","臺中市沙鹿區公所 ","無 ","112年台電補助沙鹿區公共設施維護改善小型工程(開口契約)委託設計監造技術服務 ","勞務","工程服務 ","175084","162828","112/09/14","112/09/15","臺中市－沙鹿區 ","否","","非中央政府辦理新臺幣一億元以上之公共工程 "]
["718","臺中市政府 ","臺中市東勢區公所 ","經濟部水利署第三河川局 ","「大甲溪斷面55-57河段疏濬工程兼供土石採售分離作業環境綠美化及維護」委託設計監造技術性服務 ","勞務","工程服務 ","246795","246795","112/09/14","112/09/18","臺中市－東勢區 ","否","","非中央政府辦理新臺幣一億元以上之公共工程 "]
["719","臺中市政府 ","臺中市梧棲區公所 ","無 ","梧棲區大村、大庄二里聯合活動中心興建工程委託設計服務暨擴充監造案-監造服務後續擴充（112年9月至114年12月） ","勞務","建築服務 ","1786608","1780228","112/09/08","112/09/11","臺中市－梧棲區 ","否","","非受中央政府補助比率逾工程建造經費百分之五十且補助經費達新臺幣一億元以上之個案公共工程 "]
["720","臺中市政府 ","臺中市大肚區公所 ","臺中市政府地政局 ","112年度臺中市大肚區農地重劃區緊急農路改善工程(第二期)委託測量規劃設計監造服務 ","勞務","工程服務 ","275000","232670","112/08/29","112/09/01","臺中市－大肚區 ","否","","整修工程、拆除工程、疏濬工程、結構補強工程 "]
["721","臺中市政府 ","臺中市霧峰區公所 ","無 ","112年度臺中市霧峰區小型工程計畫(開口契約)－第一次後續擴充委託設計監造技術服務 ","勞務","綜合工程服務 ","70378","70378","112/09/27","112/09/28","臺中市－霧峰區 ","否","","非中央政府辦理新臺幣一億元以上之公共工程 "]
["722","臺中市政府 ","臺中市龍井區公所 ","無 ","臺中市龍井區登山步道遊憩區附屬設施新建改建工程委託設計監造技術服務-第一次變更設計 ","勞務","工程服務 ","126348","126348","112/09/08","112/09/08","臺中市－龍井區 ","否","","非中央政府辦理新臺幣一億元以上之公共工程,非受中央政府補助比率逾工程建造經費百分之五十且補助經費達新臺幣一億元以上之個案公共工程 "]
["723","臺中市政府 ","臺中市龍井區公所 ","無 ","臺中市龍井區戀之道周邊環境改善三期工程委託設計監造技術服務 ","勞務","工程服務 ","770531","770531","112/09/08","112/09/08","臺中市－龍井區 ","否","","非中央政府辦理新臺幣一億元以上之公共工程,非受中央政府補助比率逾工程建造經費百分之五十且補助經費達新臺幣一億元以上之個案公共工程 "]
["724","臺中市政府 ","臺中市石岡區公所 ","經濟部水利署第三河川局 ","112年度三河局疏濬清淤路線(臺三線)周邊人行道等改善工程(開口契約)委託設計監造採購案 ","勞務","工程服務 ","228156","206426","112/09/05","112/09/05","臺中市－石岡區 ","否","","非中央政府辦理新臺幣一億元以上之公共工程 "]
["725","臺北市政府 ","臺北市市政大樓公共事務管理中心 ","無 ","112年度改造市政大樓為節能減碳智慧大樓初步需求盤查 ","勞務","工程服務 ","1491000","1460000","112/08/22","112/09/06","臺北市－信義區 ","否","","非中央政府辦理新臺幣一億元以上之公共工程 "]
["726","臺北市政府 ","臺北市殯葬管理處 ","無 ","蔣渭水先生紀念廣場與政治受難者紀念公園(含墓區)整體規劃等工程委託技術服務第2次契約變更 ","勞務","工程服務 ","147150","145500","112/09/18","112/09/21","臺北市－大同區,臺北市－信義區 ","否","","非中央政府辦理新臺幣一億元以上之公共工程,非受中央政府補助比率逾工程建造經費百分之五十且補助經費達新臺幣一億元以上之個案公共工程 "]
["727","臺北市政府 ","臺北市殯葬管理處 ","無 ","第一殯儀館拆除整地綠化工程委託設計技術服務第1次契約變更 ","勞務","建築服務 ","2830000","2800000","112/09/06","112/09/11","臺北市－中山區 ","否","","非中央政府辦理新臺幣一億元以上之公共工程,非受中央政府補助比率逾工程建造經費百分之五十且補助經費達新臺幣一億元以上之個案公共工程 "]
["728","臺北市政府 ","臺北市立動物園 ","無 ","112年以強化玻璃纖維(GRC和FRP)製作動物展場豐富化設施案 ","勞務","都市計劃及景觀建築服務 ","1011450","996300","112/09/04","112/09/05","臺北市－文山區 ","否","","非中央政府辦理新臺幣一億元以上之公共工程 "]
["729","臺北市政府 ","臺北市立景美女子高級中學 ","無 ","本校和平樓行政辦公室電源及網路插座移位勞務採購案 ","勞務","工程服務 ","785360","780000","112/09/14","112/09/14","北部地區－全區 ","否","","非中央政府辦理新臺幣一億元以上之公共工程 "]
["730","臺北市政府 ","臺北市立南港高級中學 ","教育部 ","本校112年度一般性補助款施政項目改善校園環境之冷氣相關設備裝設超額附加勞務項採購全部事項 ","勞務","工程服務 ","238128","232128","112/07/27","112/09/13","臺北市－南港區 ","否","","非中央政府辦理新臺幣一億元以上之公共工程 "]
["731","臺北市政府 ","臺北市立桃源國民中學 ","教育部國民及學前教育署 ","教育部國民及學前教育署112年度公立國民中小學老舊廁所整修工程委託規劃設計及監造技術服務 ","勞務","工程服務 ","194221","194221","112/09/07","112/09/18","臺北市－北投區 ","否","","非中央政府辦理新臺幣一億元以上之公共工程,非受中央政府補助比率逾工程建造經費百分之五十且補助經費達新臺幣一億元以上之個案公共工程 "]
["732","臺北市政府 ","臺北市內湖區內湖國民小學 ","無 ","112年度操場及平靜樓前木棧板整修工程委託設計監造技術服務案 ","勞務","工程服務 ","808230","808230","112/07/04","112/09/06","北部地區－全區 ","否","","非受中央政府補助比率逾工程建造經費百分之五十且補助經費達新臺幣一億元以上之個案公共工程 "]
["733","臺北市政府 ","臺北市內湖區內湖國民小學 ","臺北市政府教育局 ","112年度改善無障礙校園環境（新建無障礙電梯）委託設計監造技術服務案 ","勞務","工程服務 ","535886","535886","112/08/25","112/09/11","北部地區－全區 ","否","","非受中央政府補助比率逾工程建造經費百分之五十且補助經費達新臺幣一億元以上之個案公共工程 "]
["734","臺北市政府 ","臺北市北投區關渡國民小學 ","無 ","112年度摘星樓老舊廁所整修工程委託設計及監造技術服務 ","勞務","工程服務 ","252595","252595","112/09/08","112/09/15","臺北市－北投區 ","否","","非受中央政府補助比率逾工程建造經費百分之五十且補助經費達新臺幣一億元以上之個案公共工程 "]
["735","臺北市政府 ","臺北市士林區雨農國民小學 ","教育部 ","112年度「公立國民中小學老舊廁所整修工程」(自強樓)委託技術服務案 ","勞務","工程服務 ","205041","205000","112/09/21","112/09/22","臺北市－士林區 ","否","","非中央政府辦理新臺幣一億元以上之公共工程,非受中央政府補助比率逾工程建造經費百分之五十且補助經費達新臺幣一億元以上之個案公共工程 "]
["736","臺北市政府 ","臺北市士林區蘭雅國民小學 ","無 ","112年度教育部補助公立國民中小學老舊廁所整修工程--蘭雅國小勤學樓廁所整修工程委託設計監造技術服務勞務採購 ","勞務","工程服務 ","308964","308964","112/09/27","112/09/28","臺北市－士林區 ","否","","非中央政府辦理新臺幣一億元以上之公共工程,非受中央政府補助比率逾工程建造經費百分之五十且補助經費達新臺幣一億元以上之個案公共工程,整修工程、拆除工程、疏濬工程、結構補強工程 "]
["737","臺北市政府 ","臺北市內湖區新湖國民小學 ","教育部國民及學前教育署 ","112年度仁愛樓、信義樓老舊廁所整修工程委託設計監造技術服務採購案 ","勞務","工程服務 ","484564","484564","112/09/19","112/09/23","臺北市－內湖區 ","否","","非受中央政府補助比率逾工程建造經費百分之五十且補助經費達新臺幣一億元以上之個案公共工程 "]
["738","臺北市政府 ","臺北市大安區銘傳國民小學 ","臺北市政府教育局 ","113年校園共融式遊戲場工程委託技術服務 ","勞務","工程服務 ","172379","172379","112/09/21","112/09/26","臺北市－大安區 ","否","","非中央政府辦理新臺幣一億元以上之公共工程,非受中央政府補助比率逾工程建造經費百分之五十且補助經費達新臺幣一億元以上之個案公共工程 "]
["739","臺北市政府 ","臺北市士林區三玉國民小學 ","無 ","112年度運動操場及周邊設施整建工程委託技術服務採購案 ","勞務","工程服務 ","742651","742000","112/09/13","112/09/13","臺北市－士林區 ","否","","非中央政府辦理新臺幣一億元以上之公共工程 "]
["740","臺北市政府 ","臺北市士林區三玉國民小學 ","無 ","112年度A、B棟老舊廁所整修工程委託技術服務採購案 ","勞務","建築服務 ","542858","542858","112/09/19","112/09/19","臺北市－士林區 ","否","","非中央政府辦理新臺幣一億元以上之公共工程 "]
["741","臺北市政府 ","臺北市政府工務局 ","無 ","舊環南高架(河濱一商場)及辛亥高架耐震補強改善工程 ","工程","橋樑, 高架快速道路, 隧道及地鐵 ","103701262","102970000","112/08/31","112/09/14","臺北市－大安區,臺北市－萬華區 ","否","","非中央政府辦理新臺幣一億元以上之公共工程 "]
["742","臺北市政府 ","臺北市政府工務局 ","無 ","新公館淨水場加壓站外管線工程 ","工程","水管及排水設施鋪設工程 ","164570000","164570000","112/09/15","112/09/19","臺北市－中正區 ","否","","非中央政府辦理新臺幣一億元以上之公共工程 "]
["743","臺北市政府 ","臺北市政府工務局 ","無 ","臺北市南港區南港機廠分構棟社會住宅統包工程委託專案管理（含監造）技術服務案 ","勞務","建築服務 ","266789088","266789088","112/09/01","112/09/06","臺北市－南港區 ","否","","規劃取得綠建築標章之建築工程 "]
["744","臺北市政府 ","臺北市政府工務局 ","無 ","臺北市士林社子島地區區段徵收工程第一階段專案管理及專案住宅工程規劃委託技術服務案 ","勞務","工程服務 ","212840000","212840000","112/09/19","112/09/21","臺北市－士林區 ","否","","非中央政府辦理新臺幣一億元以上之公共工程,非受中央政府補助比率逾工程建造經費百分之五十且補助經費達新臺幣一億元以上之個案公共工程 "]
["745","臺北市政府 ","臺北市政府工務局新建工程處 ","無 ","「112年度道路維護、緊急搶修、道路新（拓）建及騎樓整平等工程委託監造技術服務」A項（內湖區、南港區）-第1次契約變更 ","勞務","綜合工程服務 ","3328888","3328888","112/06/08","112/09/07","北部地區－全區 ","否","","非受中央政府補助比率逾工程建造經費百分之五十且補助經費達新臺幣一億元以上之個案公共工程 "]
["746","臺北市政府 ","臺北市政府工務局新建工程處 ","無 ","「111年度道路改善及維護工程規劃設計委託技術服務開口契約（北區）」-變更 ","勞務","工程服務 ","62","62","112/09/07","112/09/19","臺北市－全區 ","否","","非中央政府辦理新臺幣一億元以上之公共工程 "]
["747","臺北市政府 ","臺北市政府工務局新建工程處 ","無 ","「110年度道路維護、緊急搶修、道路新（拓）建及騎樓整平等工程委託監造技術服務」B項（士林區、北投區）-第4次契約變更 ","勞務","工程服務 ","5627672","5627672","112/08/29","112/09/01","北部地區－全區 ","否","","災後緊急處理、搶修、搶險,整修工程、拆除工程、疏濬工程、結構補強工程 "]
["748","臺北市政府 ","臺北市政府工務局公園路燈工程管理處 ","無 ","永昌(中正184號)公園擴建工程及大安414號(金華巷)公園整建工程委託設計及監造技術服務-第3次契約變更 ","勞務","工程服務 ","62614","62614","112/06/02","112/09/18","臺北市－中正區,臺北市－大安區 ","否","","非中央政府辦理新臺幣一億元以上之公共工程,整修工程、拆除工程、疏濬工程、結構補強工程 "]
["749","臺北市政府 ","臺北市政府工務局公園路燈工程管理處 ","無 ","112年度本市公園、綠地、廣場等設施整建、預約工程委託設計暨監造技術服務E項-第1次契約變更 ","勞務","工程服務 ","348021","330600","112/08/22","112/09/08","臺北市－士林區,臺北市－北投區,臺北市－內湖區 ","否","","非中央政府辦理新臺幣一億元以上之公共工程,非受中央政府補助比率逾工程建造經費百分之五十且補助經費達新臺幣一億元以上之個案公共工程 "]
["750","臺北市政府 ","臺北市政府工務局公園路燈工程管理處 ","無 ","榮星花園公園整體整建工程委託規劃技術服務 ","勞務","工程服務 ","2400000","2400000","112/09/05","112/09/08","臺北市－中山區 ","否","","非中央政府辦理新臺幣一億元以上之公共工程,非受中央政府補助比率逾工程建造經費百分之五十且補助經費達新臺幣一億元以上之個案公共工程 "]
["751","臺北市政府 ","臺北市政府工務局大地工程處 ","無 ","111年度臺北市風景區整體營造改善預約式工程委託設計監造技術服務案(112年續約) ","勞務","工程服務 ","292347","292347","112/08/31","112/09/08","臺北市－全區 ","否","","非中央政府辦理新臺幣一億元以上之公共工程 "]
["752","臺北市政府 ","臺北市政府工務局大地工程處 ","無 ","111年度內湖區白石湖周邊景觀綠美化委託專業服務案(112年續約)（第2次契約變更） ","勞務","工程服務 ","999826","990000","112/08/25","112/09/21","臺北市－全區 ","否","","非中央政府辦理新臺幣一億元以上之公共工程,非受中央政府補助比率逾工程建造經費百分之五十且補助經費達新臺幣一億元以上之個案公共工程 "]
["753","臺北市政府 ","臺北市政府工務局大地工程處 ","無 ","111年度山坡地住宅邊坡及老舊聚落緊急水土保持工程委託設計監造技術服務案(112年續約)第5次契約變更 ","勞務","工程服務 ","91980","91980","112/09/12","112/09/20","臺北市－全區 ","否","","非中央政府辦理新臺幣一億元以上之公共工程 "]
["754","臺北市政府 ","臺北市交通管制工程處 ","無 ","112年臺北市路段與路口改善委託規劃設計採購案 ","勞務","工程服務 ","1497000","1480000","112/09/11","112/09/15","臺北市－全區 ","否","","非中央政府辦理新臺幣一億元以上之公共工程,非受中央政府補助比率逾工程建造經費百分之五十且補助經費達新臺幣一億元以上之個案公共工程 "]
["755","臺北市政府 ","臺北市政府都市發展局 ","無 ","「臺北市萬華區莒光段公共住宅新建工程委託規劃設計暨監造技術服務案」第4次契約變更 ","勞務","建築服務 ","600000","590000","112/08/21","112/09/01","臺北市－萬華區 ","否","","非受中央政府補助比率逾工程建造經費百分之五十且補助經費達新臺幣一億元以上之個案公共工程 "]
["756","臺北市政府 ","臺北市政府都市發展局 ","無 ","臺北市萬華區福星社會住宅之第三方機構驗屋委託服務案 ","勞務","建築服務 ","5110000","4075778","112/08/28","112/09/01","臺北市－萬華區 ","否","","非受中央政府補助比率逾工程建造經費百分之五十且補助經費達新臺幣一億元以上之個案公共工程 "]
["757","臺北市政府 ","臺北市都市更新處 ","無 ","「112年度臺北市都市再生行動育成實驗」案-第2次契約變更 ","勞務","都市計劃及景觀建築服務 ","35280","35200","112/09/21","112/09/23","北部地區－全區 ","否","","非中央政府辦理新臺幣一億元以上之公共工程,非受中央政府補助比率逾工程建造經費百分之五十且補助經費達新臺幣一億元以上之個案公共工程 "]
["758","臺北市政府 ","臺北市政府文化局 ","國防部 ","北投中心新村聚落服務設施優化工程委託技術服務 ","勞務","建築服務 ","1484220","1450000","112/08/29","112/09/20","臺北市－北投區 ","否","","整修工程、拆除工程、疏濬工程、結構補強工程 "]
["759","臺北市政府 ","臺北大眾捷運股份有限公司 ","無 ","捷運劍潭站轉乘設施空間活化及多元服務建置案工程 ","工程","商用建築工程 ","3387370000","3387370000","112/08/28","112/09/05","臺北市－全區,新北市－全區 ","已依規定納入辦理節能減碳檢核 ","規劃設計階段納入辦理節能減碳檢核 ",""]
["760","臺北市政府 ","臺北大眾捷運股份有限公司 ","無 ","貓空纜車索輪組吊掛及更換工作 ","勞務","綜合工程服務 ","8431861","8010188","112/09/12","112/09/13","臺北市－全區,新北市－全區 ","否","","非中央政府辦理新臺幣一億元以上之公共工程,非受中央政府補助比率逾工程建造經費百分之五十且補助經費達新臺幣一億元以上之個案公共工程 "]
["761","臺北市政府 ","臺北市政府觀光傳播局 ","無 ","112年臺北市政府記者室空間優化服務案第3次變更契約 ","勞務","建築服務 ","543563","543563","112/09/12","112/09/14","臺北市－全區 ","否","","非中央政府辦理新臺幣一億元以上之公共工程,非受中央政府補助比率逾工程建造經費百分之五十且補助經費達新臺幣一億元以上之個案公共工程 "]
["762","臺北市政府 ","臺北市政府體育局 ","無 ","「113年度轄管運動場區整建工程」委託設計監造技術服務案 ","勞務","工程服務 ","2325000","2325000","112/09/20","112/09/25","臺北市－全區 ","否","","整修工程、拆除工程、疏濬工程、結構補強工程 "]
["763","臺北市政府 ","臺北市政府體育局 ","無 ","「112年臺北體育園區整體形象與台北田徑場改造案統包工程」委託監造技術服務採購案 ","勞務","工程服務 ","428225","428225","112/09/22","112/09/27","臺北市－全區 ","否","","整修工程、拆除工程、疏濬工程、結構補強工程 "]
["764","臺東縣政府 ","臺東縣金峰鄉公所 ","無 ","金峰鄉公所公有建築物合法化委託規劃設計及監造技術服務 ","勞務","建築服務 ","680000","668000","112/09/19","112/09/20","臺東縣－金峰 ","否","","非受中央政府補助比率逾工程建造經費百分之五十且補助經費達新臺幣一億元以上之個案公共工程 "]
["765","臺東縣政府 ","臺東縣金峰鄉公所 ","無 ","東64線7k+100~7k+700,6k+300~6k+600道路災修工程專案管理委託技術服務 ","勞務","工程服務 ","3100000","3000000","112/09/06","112/09/12","臺東縣－金峰 ","否","","災後原地復建 "]
["766","臺東縣政府 ","臺東縣蘭嶼鄉公所 ","原住民族委員會 ","紅頭部落聚會所興建工程整體規劃設計服務 ","勞務","建築服務 ","800000","750000","112/09/12","112/09/14","臺東縣－蘭嶼 ","否","","非中央政府辦理新臺幣一億元以上之公共工程,非受中央政府補助比率逾工程建造經費百分之五十且補助經費達新臺幣一億元以上之個案公共工程 "]
["767","臺南市政府 ","臺南市政府 ","無 ","永華市政中心大樓緊急發電機設備汰舊更新委託規劃設計及監造技術服務 ","勞務","工程服務 ","3500000","3400000","112/09/15","112/09/19","臺南市－安平區 ","否","","非受中央政府補助比率逾工程建造經費百分之五十且補助經費達新臺幣一億元以上之個案公共工程 "]
["768","臺南市政府 ","臺南市立大灣高級中學 ","臺南市政府體育局 ","操場跑道及周邊環境整建工程委託規劃設計監造技術服務 ","勞務","工程服務 ","1136405","1100000","112/09/13","112/09/13","臺南市－永康區 ","否","","整修工程、拆除工程、疏濬工程、結構補強工程 "]
["769","臺南市政府 ","臺南市立安南國民中學 ","內政部營建署 ","「校園周邊暨行車安全道路改善計畫」-安南國中校門口暨周邊通 學步道整體改善工程委託規劃設計監造勞務採購案 ","勞務","建築服務 ","1212000","1212000","112/09/20","112/09/23","臺南市－安南區 ","否","","整修工程、拆除工程、疏濬工程、結構補強工程 "]
["770","臺南市政府 ","臺南市立安南國民中學 ","教育部國民及學前教育署 ","安南國中112年度老舊廁所整修工程委託規劃設計監造技術服務勞務採購案 ","勞務","工程服務 ","201000","201000","112/09/21","112/09/23","臺南市－安南區 ","否","","整修工程、拆除工程、疏濬工程、結構補強工程 "]
["771","臺南市政府 ","臺南市立後甲國民中學 ","教育部 ","後甲國中藝能大樓廁所整修工程委託規劃設計監造勞務採購 ","勞務","建築服務 ","208000","208000","112/09/12","112/09/14","臺南市－東區 ","否","","整修工程、拆除工程、疏濬工程、結構補強工程 "]
["772","臺南市政府 ","臺南市立海佃國民中學 ","教育部國民及學前教育署 ","海佃國中第一、三期大樓廁所整修美化工程委託規劃設計與監造採購案 ","勞務","工程服務 ","285000","285000","112/09/13","112/09/13","臺南市－安南區 ","否","","非中央政府辦理新臺幣一億元以上之公共工程,整修工程、拆除工程、疏濬工程、結構補強工程 "]
["773","臺南市政府 ","臺南市立永康國民中學 ","教育部國民及學前教育署 ","113年度新南棟廁所整修工程委託規劃設計監造技術服務勞務採購 ","勞務","工程服務 ","217000","217000","112/08/31","112/09/01","臺南市－永康區 ","否","","整修工程、拆除工程、疏濬工程、結構補強工程 "]
["774","臺南市政府 ","臺南市立新化國民中學 ","教育部國民及學前教育署 ","112年度新化國中老舊廁所整修工程委託規劃設計監造技術服務 ","勞務","工程服務 ","336000","336000","112/09/13","112/09/13","臺南市－新化區 ","否","","非受中央政府補助比率逾工程建造經費百分之五十且補助經費達新臺幣一億元以上之個案公共工程,整修工程、拆除工程、疏濬工程、結構補強工程 "]
["775","臺南市政府 ","臺南市立善化國民中學 ","臺南市政府教育局 ","善化國中112年度老舊廁所整修工程委託規劃設計監造技術服務 ","勞務","建築服務 ","435319","435000","112/09/06","112/09/06","臺南市－全區 ","否","","非中央政府辦理新臺幣一億元以上之公共工程 "]
["776","臺南市政府 ","臺南市立下營國民中學 ","教育部國民及學前教育署 ","行政專科大樓老舊廁所整修工程規劃設計監造勞務採購案 ","勞務","建築服務 ","438000","438000","112/09/15","112/09/15","臺南市－全區 ","否","","整修工程、拆除工程、疏濬工程、結構補強工程 "]
["777","臺南市政府 ","臺南市東區復興國民小學 ","教育部國民及學前教育署 ","臺南市東區復興國小全校走廊圍欄設備改善工程委託規劃設計監造技術服務採購案 ","勞務","建築服務 ","413846","300000","112/09/28","112/09/28","臺南市－東區 ","否","","非中央政府辦理新臺幣一億元以上之公共工程,整修工程、拆除工程、疏濬工程、結構補強工程 "]
["778","臺南市政府 ","臺南市北區文元國民小學 ","教育部國民及學前教育署 ","文元國小112年北棟西廁所委託規畫設計監造服務採購 ","勞務","建築服務 ","320000","320000","112/09/15","112/09/20","臺南市－全區 ","否","","整修工程、拆除工程、疏濬工程、結構補強工程 "]
["779","臺南市政府 ","臺南市安平區億載國民小學 ","教育部國民及學前教育署、臺南市政府教育局 ","億載國小教學大樓Ｄ棟老舊廁所整修委託技術服務(規劃設計監造)勞務採購案 ","勞務","建築服務 ","213000","213000","112/09/15","112/09/18","臺南市－安平區 ","否","","非中央政府辦理新臺幣一億元以上之公共工程,非受中央政府補助比率逾工程建造經費百分之五十且補助經費達新臺幣一億元以上之個案公共工程 "]
["780","臺南市政府 ","臺南市北區賢北國民小學 ","教育部國民及學前教育署 ","臺南市賢北國小B棟大樓廁所整修工程委託規劃設計監造技術服務勞務採購 ","勞務","工程服務 ","418000","418000","112/09/13","112/09/14","臺南市－北區 ","否","","整修工程、拆除工程、疏濬工程、結構補強工程 "]
["781","臺南市政府 ","臺南市關廟區崇和國民小學 ","教育部國民及學前教育署 ","臺南市崇和國小學校運動操場及周邊設施整建工程之規劃設計監造採購案 ","勞務","建築服務 ","651235","651235","112/08/31","112/09/01","臺南市－關廟區 ","否","","非中央政府辦理新臺幣一億元以上之公共工程 "]
["782","臺南市政府 ","臺南市關廟區深坑國民小學 ","教育部 ","學校運動操場及周邊設施整建工程之規劃設計監造 ","勞務","工程服務 ","477563","476999","112/08/30","112/09/01","臺南市－關廟區 ","否","","非中央政府辦理新臺幣一億元以上之公共工程,非受中央政府補助比率逾工程建造經費百分之五十且補助經費達新臺幣一億元以上之個案公共工程,整修工程、拆除工程、疏濬工程、結構補強工程 "]
["783","臺南市政府 ","臺南市新化區大新國民小學 ","臺南市政府 ","臺南市大新國小新大樓老舊廁所整修工程委託規畫設計監造服務勞務採購 ","勞務","工程服務 ","473000","473000","112/09/08","112/09/08","臺南市－新化區 ","否","","非中央政府辦理新臺幣一億元以上之公共工程 "]
["784","臺南市政府 ","臺南市善化區善化國民小學 ","無 ","臺南市政府教育局所屬學校照明設備節能及照度保證專案委託專案管理及監造技術服務 ","勞務","工程服務 ","4950000","4950000","112/09/14","112/09/18","臺南市－全區 ","否","","非中央政府辦理新臺幣一億元以上之公共工程 "]
["785","臺南市政府 ","臺南市新市區新市國民小學 ","教育部國民及學前教育署 ","HES112005 臺南市新市國小112年度老舊廁所整修工程委託規劃設計監造 ","勞務","建築服務 ","268560","255000","112/09/05","112/09/06","臺南市－新市區 ","否","","非中央政府辦理新臺幣一億元以上之公共工程 "]
["786","臺南市政府 ","臺南市楠西區楠西國民小學 ","教育部國民及學前教育署 ","臺南市楠西國小112年度教學大樓北側廁所整修工程委託規劃設計監造勞務採購 ","勞務","建築服務 ","300000","300000","112/09/07","112/09/07","臺南市－楠西區 ","否","","非中央政府辦理新臺幣一億元以上之公共工程,整修工程、拆除工程、疏濬工程、結構補強工程 "]
["787","臺南市政府 ","臺南市麻豆區文正國民小學 ","教育部國民及學前教育署 ","文正國小廁所整修工程委託規劃設計監造技術服務勞務採購案 ","勞務","工程服務 ","285000","285000","112/09/12","112/09/13","臺南市－麻豆區 ","否","","非中央政府辦理新臺幣一億元以上之公共工程,整修工程、拆除工程、疏濬工程、結構補強工程 "]
["788","臺南市政府 ","臺南市將軍區將軍國民小學 ","臺南市政府教育局 ","誠正樓東側廁所整修工程委託規劃、設計、監造技術服務勞務採購案 ","勞務","工程服務 ","310409","304000","112/09/12","112/09/12","南部地區－全區 ","否","","整修工程、拆除工程、疏濬工程、結構補強工程 "]
["789","臺南市政府 ","臺南市將軍區漚汪國民小學 ","行政院、臺南市政府 ","漚汪國小廁所整建工程委託規劃設計監造勞務採購 ","勞務","建築服務 ","242865","242865","112/09/11","112/09/15","臺南市－將軍區 ","否","","整修工程、拆除工程、疏濬工程、結構補強工程 "]
["790","臺南市政府 ","臺南市學甲區頂洲國民小學 ","臺南市政府教育局 ","臺南市學甲區頂洲國小設置校園社區共讀站委託規劃設計監造技術服務 ","勞務","工程服務 ","189636","189636","112/09/12","112/09/15","南部地區－全區 ","否","","整修工程、拆除工程、疏濬工程、結構補強工程 "]
["791","臺南市政府 ","臺南市柳營區柳營國民小學 ","教育部國民及學前教育署 ","臺南市柳營國小老舊廁所整修工程委託技術服務規劃設計監造勞務採購案 ","勞務","建築服務 ","200000","200000","112/09/01","112/09/01","臺南市－全區 ","否","","非受中央政府補助比率逾工程建造經費百分之五十且補助經費達新臺幣一億元以上之個案公共工程 "]
["792","臺南市政府 ","臺南市善化區小新國民小學 ","臺南市政府體育局 ","小新國小運動操場整建工程委託規劃設計監造採購案 ","勞務","工程服務 ","500000","500000","112/08/30","112/09/01","臺南市－善化區 ","否","","整修工程、拆除工程、疏濬工程、結構補強工程 "]
["793","臺南市政府 ","臺南市歸仁區文化國民小學 ","教育部國民及學前教育署 ","文化國小北棟廁所整修工程委託規劃設計監造勞務採購 ","勞務","建築服務 ","260000","260000","112/08/28","112/09/06","南部地區－全區 ","否","","整修工程、拆除工程、疏濬工程、結構補強工程 "]
["794","臺南市政府 ","臺南市政府工務局 ","行政院農業委員會 ","臺南市學甲多功能教育園區新建工程 ","工程","教育用建築工程 ","177999999","172200000","112/09/19","112/09/21","臺南市－學甲區 ","否","","規劃取得綠建築標章之建築工程 "]
["795","臺南市政府 ","臺南市政府工務局 ","無 ","臺南市政府工務局111年度道路及橋梁工程委託規劃、設計及監造(開口契約)第一次採購契約變更 ","勞務","工程服務 ","7245872","6956037","112/09/05","112/09/22","臺南市－全區 ","已依規定納入辦理節能減碳檢核 ","規劃設計階段納入辦理節能減碳檢核 ",""]
["796","臺南市政府 ","臺南市政府工務局 ","無 ","「衛生福利部台南醫院多房間職務宿舍新建工程計畫」...委託規劃、設計及監造技術服務案 ","勞務","建築服務 ","24517270","24460000","112/07/25","112/09/20","臺南市－中西區,臺南市－北區,臺南市－北門區 ","否","","規劃取得綠建築標章之建築工程 "]
["797","臺南市政府 ","臺南市政府地政局 ","無 ","南科特定區開發區塊A、B、C、D、E、N及O區段徵收作業委託專業服務案 ","勞務","都市計劃及景觀建築服務 ","18600000","17120000","112/09/19","112/09/22","臺南市－善化區,臺南市－新市區,臺南市－安定區 ","否","","非中央政府辦理新臺幣一億元以上之公共工程,非受中央政府補助比率逾工程建造經費百分之五十且補助經費達新臺幣一億元以上之個案公共工程 "]
["798","臺南市政府 ","臺南市政府地政局 ","無 ","臺南市永康竹園市地重劃工程委託規劃設計監造技術服務 ","勞務","工程服務 ","17279008","17279008","112/09/23","112/09/28","臺南市－永康區 ","否","","非受中央政府補助比率逾工程建造經費百分之五十且補助經費達新臺幣一億元以上之個案公共工程 "]
["799","臺南市政府 ","臺南市市場處 ","行政院環境保護署 ","112年市場廁所整修工程委託設計監造 ","勞務","建築服務 ","1700000","1690000","112/08/31","112/09/04","臺南市－中西區,臺南市－安南區,臺南市－玉井區,臺南市－麻豆區,臺南市－佳里區,臺南市－學甲區,臺南市－新營區,臺南市－後壁區,臺南市－白河區,臺南市－東山區,臺南市－下營區,臺南市－鹽水區 ","否","","非中央政府辦理新臺幣一億元以上之公共工程 "]
["800","臺南市政府 ","臺南市市場處 ","無 ","「市定古蹟西市場本館(北翼棟、東翼棟及太子樓)及香蕉倉庫因應計畫暨內部裝修工程委託規劃設計監造」 ","勞務","建築服務 ","2500000","2500000","112/09/12","112/09/14","臺南市－中西區 ","否","","非受中央政府補助比率逾工程建造經費百分之五十且補助經費達新臺幣一億元以上之個案公共工程 "]
["801","臺南市政府 ","臺南市政府水利局 ","無 ","急水溪水系-水質淨化場委託操作專業服務 ","勞務","工程服務 ","32535959","32500000","112/09/05","112/09/06","臺南市－東山區,臺南市－鹽水區,臺南市－新市區 ","否","","非中央政府辦理新臺幣一億元以上之公共工程 "]
["802","臺南市政府 ","臺南市政府農業局 ","行政院農業委員會漁業署 ","112年將軍漁港漁具倉庫整建工程設計工作 ","勞務","工程服務 ","1000000","989000","112/09/14","112/09/19","臺南市－將軍區 ","否","","整修工程、拆除工程、疏濬工程、結構補強工程 "]
["803","臺南市政府 ","臺南市動物防疫保護處 ","無 ","臺南市毛小孩友善專區設計及監造 ","勞務","工程服務 ","552796","514100","112/08/14","112/09/06","臺南市－東區,臺南市－南區,臺南市－永康區 ","否","","非中央政府辦理新臺幣一億元以上之公共工程 "]
["804","臺南市政府 ","臺南市政府交通局 ","無 ","112年度行人倒數計數號誌工程委託設計監造服務案(開口契約)(第一次後續擴充) ","勞務","綜合工程服務 ","380000","380000","112/08/31","112/09/04","臺南市－全區 ","否","","非受中央政府補助比率逾工程建造經費百分之五十且補助經費達新臺幣一億元以上之個案公共工程 "]
["805","臺南市政府 ","臺南市政府交通局 ","無 ","112年度行人倒數計數號誌工程委託設計監造服務案(開口契約)(第二次後續擴充) ","勞務","綜合工程服務 ","1450000","1450000","112/09/26","112/09/28","南部地區－全區 ","否","","非中央政府辦理新臺幣一億元以上之公共工程,非受中央政府補助比率逾工程建造經費百分之五十且補助經費達新臺幣一億元以上之個案公共工程 "]
["806","臺南市政府 ","臺南市政府文化局 ","無 ","億載金城入口意象景觀改造工程委託監造 ","勞務","工程服務 ","486326","486325","112/09/21","112/09/23","臺南市－安平區 ","否","","非中央政府辦理新臺幣一億元以上之公共工程 "]
["807","臺南市政府 ","臺南市政府文化局 ","無 ","總爺藝文中心紅磚會議室委託申請補發使用執照 ","勞務","工程服務 ","325650","320000","112/09/07","112/09/11","臺南市－安平區,臺南市－麻豆區 ","否","","非受中央政府補助比率逾工程建造經費百分之五十且補助經費達新臺幣一億元以上之個案公共工程 "]
["808","臺南市政府 ","臺南市文化資產管理處 ","無 ","歷史建築東山牛肉崎警察官吏派出所外水外電設備佈線及設置作業 ","勞務","工程服務 ","298257","290000","112/09/07","112/09/14","臺南市－東山區 ","否","","整修工程、拆除工程、疏濬工程、結構補強工程 "]
["809","臺南市政府 ","臺南市中西區公所 ","無 ","協進國小通學步道改善工程委託設計監造技術服務 ","勞務","工程服務 ","703525","688751","112/09/26","112/09/28","臺南市－中西區 ","否","","非受中央政府補助比率逾工程建造經費百分之五十且補助經費達新臺幣一億元以上之個案公共工程 "]
["810","臺南市政府 ","臺南市柳營區公所 ","行政院環境保護署、臺南市政府環境保護局 ","滯洪池運動公園公廁修繕案-委託設計監造 ","勞務","工程服務 ","629363","629363","112/09/06","112/09/20","臺南市－柳營區 ","否","","非中央政府辦理新臺幣一億元以上之公共工程 "]
["811","臺南市政府 ","臺南市將軍區公所 ","臺南市政府 ","112年度將軍區道路側溝及景觀工程委託設計及監造(開口契約) ","勞務","工程服務 ","1500000","1500000","112/08/25","112/09/01","臺南市－將軍區 ","否","","非中央政府辦理新臺幣一億元以上之公共工程 "]
["812","臺南市政府 ","臺南市龍崎區公所 ","臺南市政府 "," 112年度龍崎區C1、C2類災害復建工程委託設計及監造開口契約(二) ","勞務","工程服務 ","1483200","1416456","112/09/15","112/09/18","臺南市－龍崎區 ","否","","災後原地復建 "]
["813","澎湖縣政府 ","澎湖縣馬公市公所 ","行政院環境保護署 "," 澎湖縣112-113年度「優質公廁及美質環境推動計畫」公廁工程改善計畫設計監造案 ","勞務","建築服務 ","455800","439900","112/09/14","112/09/21","澎湖縣－全區 ","否","","非受中央政府補助比率逾工程建造經費百分之五十且補助經費達新臺幣一億元以上之個案公共工程 "]
["814","澎湖縣政府 ","澎湖縣白沙鄉講美國民小學 ","澎湖縣政府 ","112年講美、外垵、鳥嶼國小及將澳國中校舍補強工程委託規劃設計監造聯合勞務採購案 ","勞務","工程服務 ","1948614","1948614","112/09/08","112/09/15","離島地區－全區 ","否","","非中央政府辦理新臺幣一億元以上之公共工程,整修工程、拆除工程、疏濬工程、結構補強工程 "]
["815","衛生福利部 ","衛生福利部食品藥物管理署 ","無 ","112年度「北區管理中心食品檢體儲存相關設備拆除搬運採購案」 ","勞務","工程服務 ","500000","400000","112/09/05","112/09/12","臺北市－南港區 ","否","","整修工程、拆除工程、疏濬工程、結構補強工程 "]
["816","衛生福利部 ","衛生福利部新營醫院 ","無 ","醫療大樓三樓辦公室整修工程委託設計監造技術服務 ","勞務","工程服務 ","700000","595000","112/07/10","112/09/04","臺南市－新營區 ","否","","整修工程、拆除工程、疏濬工程、結構補強工程 "]
["817","衛生福利部 ","衛生福利部玉里醫院 ","無 ","祥和院區消防設備地下配管洩漏缺失改善委託設計監造技術服務 ","勞務","工程服務 ","422500","408000","112/08/29","112/09/21","花蓮縣－玉里 ","否","","整修工程、拆除工程、疏濬工程、結構補強工程 "]
["818","環境部 ","環境部環境管理署 ","無 ","環管署北辦、北區環管中心、環境災害應變中心辦公廳舍空間整修工程委託規劃設計監造服務案 ","勞務","工程服務 ","1495000","1490000","112/09/04","112/09/11","臺北市－全區 ","否","","整修工程、拆除工程、疏濬工程、結構補強工程 "]